Workbook

Sheet f5_a1
A1: element | B1: sourceX | C1: sourceY | D1: sourceW | E1: sourceH | F1: targetX | G1: targetY | H1: targetW | I1: targetH | J1: Válaszkártyák | K1: Időigény
A2: COLOR_GREEN-DOT_2 | B2: 938 | C2: 159 | D2: 152 | E2: 152 | F2: 470 | G2: 459 | H2: 171 | I2: 171 | J2: COLOR_BROWN-DOT_1 | K2: 432
A3: COLOR_BROWN-DOT_2 | B3: 1166 | C3: 159 | D3: 152 | E3: 152 | F3: 470 | G3: 287 | H3: 171 | I3: 171 | J3: COLOR_BLUE-DOT_1 | K3: 504
A4: COLOR_GREEN-DOT_1 | B4: 1394 | C4: 159 | D4: 152 | E4: 152 | F4: 298 | G4: 459 | H4: 171 | I4: 171 | J4: COLOR_GREEN-DOT_1 | K4: 816
A5: COLOR_BROWN-DOT_1 | B5: 938 | C5: 387 | D5: 152 | E5: 152 | F5: 298 | G5: 287 | H5: 171 | I5: 171 | J5: COLOR_GREEN-DOT_2 | K5: 608
A6: COLOR_BLUE-DOT_3 | B6: 1166 | C6: 387 | D6: 152 | E6: 152 | F6: 643 | G6: 632 | H6: 171 | I6: 171 | J6: COLOR_GREEN-DOT_3 | K6: 568
A7: COLOR_GREEN-DOT_3 | B7: 1394 | C7: 387 | D7: 152 | E7: 152 | F7: 643 | G7: 459 | H7: 171 | I7: 171 | J7: COLOR_BLUE-DOT_2 | K7: 280
A8: COLOR_BLUE-DOT_1 | B8: 938 | C8: 615 | D8: 152 | E8: 152 | F8: 298 | G8: 632 | H8: 171 | I8: 171 | J8: COLOR_BLUE-DOT_3 | K8: 416
A9: COLOR_BLUE-DOT_2 | B9: 1166 | C9: 615 | D9: 152 | E9: 152 | F9: 470 | G9: 632 | H9: 171 | I9: 171 | J9: COLOR_BROWN-DOT_2 | K9: 511
A10: COLOR_BROWN-DOT_3 | B10: 1394 | C10: 615 | D10: 152 | E10: 152 | F10: 643 | G10: 287 | H10: 171 | I10: 171 | J10: COLOR_BROWN-DOT_3 | K10: 496
A12: time | B12: event | C12: element | D12: x | E12: y | F12: game
A13: 0 | B13: START | C13: ALL | D13: 0 | E13: 0 | F13: COLOR_DOT
A14: 44663 | B14: pointerdown | C14: COLOR_BROWN-DOT_1 | D14: 926 | E14: 374 | F14: COLOR_DOT
A15: 44719 | B15: pointermove | C15: COLOR_BROWN-DOT_1 | D15: 925.6000366 | E15: 373.8000183 | F15: COLOR_DOT
A16: 44727 | B16: pointermove | C16: COLOR_BROWN-DOT_1 | D16: 921.6000366 | E16: 374.6000061 | F16: COLOR_DOT
A17: 44735 | B17: pointermove | C17: COLOR_BROWN-DOT_1 | D17: 913.6000366 | E17: 374.6000061 | F17: COLOR_DOT
A18: 44743 | B18: pointermove | C18: COLOR_BROWN-DOT_1 | D18: 898.4000244 | E18: 374.6000061 | F18: COLOR_DOT
A19: 44751 | B19: pointermove | C19: COLOR_BROWN-DOT_1 | D19: 882.4000244 | E19: 373.8000183 | F19: COLOR_DOT
A20: 44759 | B20: pointermove | C20: COLOR_BROWN-DOT_1 | D20: 864 | E20: 370.6000061 | F20: COLOR_DOT
A21: 44767 | B21: pointermove | C21: COLOR_BROWN-DOT_1 | D21: 841.6000366 | E21: 369.8000183 | F21: COLOR_DOT
A22: 44775 | B22: pointermove | C22: COLOR_BROWN-DOT_1 | D22: 816.7999878 | E22: 368.2000122 | F22: COLOR_DOT
A23: 44783 | B23: pointermove | C23: COLOR_BROWN-DOT_1 | D23: 797.6000366 | E23: 368.2000122 | F23: COLOR_DOT
A24: 44791 | B24: pointermove | C24: COLOR_BROWN-DOT_1 | D24: 780.7999878 | E24: 368.2000122 | F24: COLOR_DOT
A25: 44799 | B25: pointermove | C25: COLOR_BROWN-DOT_1 | D25: 766.4000244 | E25: 368.2000122 | F25: COLOR_DOT
A26: 44807 | B26: pointermove | C26: COLOR_BROWN-DOT_1 | D26: 752.7999878 | E26: 368.2000122 | F26: COLOR_DOT
A27: 44815 | B27: pointermove | C27: COLOR_BROWN-DOT_1 | D27: 740.7999878 | E27: 368.2000122 | F27: COLOR_DOT
A28: 44823 | B28: pointermove | C28: COLOR_BROWN-DOT_1 | D28: 732 | E28: 368.2000122 | F28: COLOR_DOT
A29: 44831 | B29: pointermove | C29: COLOR_BROWN-DOT_1 | D29: 724.7999878 | E29: 368.2000122 | F29: COLOR_DOT
A30: 44839 | B30: pointermove | C30: COLOR_BROWN-DOT_1 | D30: 720 | E30: 368.2000122 | F30: COLOR_DOT
A31: 44847 | B31: pointermove | C31: COLOR_BROWN-DOT_1 | D31: 715.2000122 | E31: 368.2000122 | F31: COLOR_DOT
A32: 44855 | B32: pointermove | C32: COLOR_BROWN-DOT_1 | D32: 712.7999878 | E32: 368.2000122 | F32: COLOR_DOT
A33: 44863 | B33: pointermove | C33: COLOR_BROWN-DOT_1 | D33: 708.7999878 | E33: 368.2000122 | F33: COLOR_DOT
A34: 44871 | B34: pointermove | C34: COLOR_BROWN-DOT_1 | D34: 703.2000122 | E34: 367.3999939 | F34: COLOR_DOT
A35: 44879 | B35: pointermove | C35: COLOR_BROWN-DOT_1 | D35: 698.4000244 | E35: 367.3999939 | F35: COLOR_DOT
A36: 44887 | B36: pointermove | C36: COLOR_BROWN-DOT_1 | D36: 693.6000366 | E36: 367.3999939 | F36: COLOR_DOT
A37: 44895 | B37: pointermove | C37: COLOR_BROWN-DOT_1 | D37: 686.4000244 | E37: 367.3999939 | F37: COLOR_DOT
A38: 44903 | B38: pointermove | C38: COLOR_BROWN-DOT_1 | D38: 677.6000366 | E38: 367.3999939 | F38: COLOR_DOT
A39: 44911 | B39: pointermove | C39: COLOR_BROWN-DOT_1 | D39: 665.6000366 | E39: 365.8000183 | F39: COLOR_DOT
A40: 44919 | B40: pointermove | C40: COLOR_BROWN-DOT_1 | D40: 653.6000366 | E40: 365 | F40: COLOR_DOT
A41: 44927 | B41: pointermove | C41: COLOR_BROWN-DOT_1 | D41: 638.4000244 | E41: 362.6000061 | F41: COLOR_DOT
A42: 44935 | B42: pointermove | C42: COLOR_BROWN-DOT_1 | D42: 620 | E42: 360.2000122 | F42: COLOR_DOT
A43: 44943 | B43: pointermove | C43: COLOR_BROWN-DOT_1 | D43: 599.2000122 | E43: 355.3999939 | F43: COLOR_DOT
A44: 44951 | B44: pointermove | C44: COLOR_BROWN-DOT_1 | D44: 575.2000122 | E44: 351.3999939 | F44: COLOR_DOT
A45: 44959 | B45: pointermove | C45: COLOR_BROWN-DOT_1 | D45: 549.6000366 | E45: 346.6000061 | F45: COLOR_DOT
A46: 44967 | B46: pointermove | C46: COLOR_BROWN-DOT_1 | D46: 520 | E46: 340.2000122 | F46: COLOR_DOT
A47: 44975 | B47: pointermove | C47: COLOR_BROWN-DOT_1 | D47: 492.8000183 | E47: 333.8000183 | F47: COLOR_DOT
A48: 44983 | B48: pointermove | C48: COLOR_BROWN-DOT_1 | D48: 464 | E48: 329 | F48: COLOR_DOT
A49: 44991 | B49: pointermove | C49: COLOR_BROWN-DOT_1 | D49: 437.6000061 | E49: 324.2000122 | F49: COLOR_DOT
A50: 44999 | B50: pointermove | C50: COLOR_BROWN-DOT_1 | D50: 411.2000122 | E50: 317.8000183 | F50: COLOR_DOT
A51: 45007 | B51: pointermove | C51: COLOR_BROWN-DOT_1 | D51: 387.2000122 | E51: 313.8000183 | F51: COLOR_DOT
A52: 45015 | B52: pointermove | C52: COLOR_BROWN-DOT_1 | D52: 366.3999939 | E52: 309.8000183 | F52: COLOR_DOT
A53: 45023 | B53: pointermove | C53: COLOR_BROWN-DOT_1 | D53: 348 | E53: 305.8000183 | F53: COLOR_DOT
A54: 45031 | B54: pointermove | C54: COLOR_BROWN-DOT_1 | D54: 332 | E54: 301.8000183 | F54: COLOR_DOT
A55: 45039 | B55: pointermove | C55: COLOR_BROWN-DOT_1 | D55: 320 | E55: 298.6000061 | F55: COLOR_DOT
A56: 45047 | B56: pointermove | C56: COLOR_BROWN-DOT_1 | D56: 308.8000183 | E56: 295.3999939 | F56: COLOR_DOT
A57: 45055 | B57: pointermove | C57: COLOR_BROWN-DOT_1 | D57: 300.8000183 | E57: 293 | F57: COLOR_DOT
A58: 45063 | B58: pointermove | C58: COLOR_BROWN-DOT_1 | D58: 293.6000061 | E58: 291.3999939 | F58: COLOR_DOT
A59: 45071 | B59: pointermove | C59: COLOR_BROWN-DOT_1 | D59: 288.8000183 | E59: 290.6000061 | F59: COLOR_DOT
A60: 45079 | B60: pointermove | C60: COLOR_BROWN-DOT_1 | D60: 288 | E60: 290.6000061 | F60: COLOR_DOT
A61: 45087 | B61: pointermove | C61: COLOR_BROWN-DOT_1 | D61: 287.2000122 | E61: 290.6000061 | F61: COLOR_DOT
A62: 45095 | B62: pointermove | C62: COLOR_BROWN-DOT_1 | D62: 286.3999939 | E62: 290.6000061 | F62: COLOR_DOT
A63: 45479 | B63: pointerup | C63: COLOR_BROWN-DOT_1 | D63: 286 | E63: 291 | F63: COLOR_DOT
A64: 58127 | B64: pointerdown | C64: COLOR_BLUE-DOT_1 | D64: 981 | E64: 593 | F64: COLOR_DOT
A65: 58191 | B65: pointermove | C65: COLOR_BLUE-DOT_1 | D65: 978.4000244 | E65: 593.7999878 | F65: COLOR_DOT
A66: 58199 | B66: pointermove | C66: COLOR_BLUE-DOT_1 | D66: 972.7999878 | E66: 593.7999878 | F66: COLOR_DOT
A67: 58207 | B67: pointermove | C67: COLOR_BLUE-DOT_1 | D67: 964.7999878 | E67: 593.7999878 | F67: COLOR_DOT
A68: 58215 | B68: pointermove | C68: COLOR_BLUE-DOT_1 | D68: 948 | E68: 593.7999878 | F68: COLOR_DOT
A69: 58223 | B69: pointermove | C69: COLOR_BLUE-DOT_1 | D69: 928 | E69: 591.4000244 | F69: COLOR_DOT
A70: 58231 | B70: pointermove | C70: COLOR_BLUE-DOT_1 | D70: 899.2000122 | E70: 585.7999878 | F70: COLOR_DOT
A71: 58239 | B71: pointermove | C71: COLOR_BLUE-DOT_1 | D71: 865.6000366 | E71: 584.2000122 | F71: COLOR_DOT
A72: 58247 | B72: pointermove | C72: COLOR_BLUE-DOT_1 | D72: 829.6000366 | E72: 582.6000366 | F72: COLOR_DOT
A73: 58255 | B73: pointermove | C73: COLOR_BLUE-DOT_1 | D73: 797.6000366 | E73: 582.6000366 | F73: COLOR_DOT
A74: 58263 | B74: pointermove | C74: COLOR_BLUE-DOT_1 | D74: 759.2000122 | E74: 582.6000366 | F74: COLOR_DOT
A75: 58271 | B75: pointermove | C75: COLOR_BLUE-DOT_1 | D75: 721.6000366 | E75: 582.6000366 | F75: COLOR_DOT
A76: 58279 | B76: pointermove | C76: COLOR_BLUE-DOT_1 | D76: 682.4000244 | E76: 585.7999878 | F76: COLOR_DOT
A77: 58287 | B77: pointermove | C77: COLOR_BLUE-DOT_1 | D77: 640 | E77: 591.4000244 | F77: COLOR_DOT
A78: 58295 | B78: pointermove | C78: COLOR_BLUE-DOT_1 | D78: 600.7999878 | E78: 598.6000366 | F78: COLOR_DOT
A79: 58303 | B79: pointermove | C79: COLOR_BLUE-DOT_1 | D79: 561.6000366 | E79: 603.4000244 | F79: COLOR_DOT
A80: 58311 | B80: pointermove | C80: COLOR_BLUE-DOT_1 | D80: 521.6000366 | E80: 609 | F80: COLOR_DOT
A81: 58319 | B81: pointermove | C81: COLOR_BLUE-DOT_1 | D81: 488 | E81: 612.2000122 | F81: COLOR_DOT
A82: 58327 | B82: pointermove | C82: COLOR_BLUE-DOT_1 | D82: 455.2000122 | E82: 613.7999878 | F82: COLOR_DOT
A83: 58335 | B83: pointermove | C83: COLOR_BLUE-DOT_1 | D83: 430.3999939 | E83: 613.7999878 | F83: COLOR_DOT
A84: 58343 | B84: pointermove | C84: COLOR_BLUE-DOT_1 | D84: 411.2000122 | E84: 613.7999878 | F84: COLOR_DOT
A85: 58351 | B85: pointermove | C85: COLOR_BLUE-DOT_1 | D85: 398.3999939 | E85: 613.7999878 | F85: COLOR_DOT
A86: 58359 | B86: pointermove | C86: COLOR_BLUE-DOT_1 | D86: 387.2000122 | E86: 615.4000244 | F86: COLOR_DOT
A87: 58367 | B87: pointermove | C87: COLOR_BLUE-DOT_1 | D87: 379.2000122 | E87: 616.2000122 | F87: COLOR_DOT
A88: 58375 | B88: pointermove | C88: COLOR_BLUE-DOT_1 | D88: 375.2000122 | E88: 617 | F88: COLOR_DOT
A89: 58383 | B89: pointermove | C89: COLOR_BLUE-DOT_1 | D89: 373.6000061 | E89: 617 | F89: COLOR_DOT
A90: 58391 | B90: pointermove | C90: COLOR_BLUE-DOT_1 | D90: 372.8000183 | E90: 617 | F90: COLOR_DOT
A91: 58431 | B91: pointermove | C91: COLOR_BLUE-DOT_1 | D91: 371.2000122 | E91: 617.7999878 | F91: COLOR_DOT
A92: 58439 | B92: pointermove | C92: COLOR_BLUE-DOT_1 | D92: 370.3999939 | E92: 617.7999878 | F92: COLOR_DOT
A93: 58455 | B93: pointermove | C93: COLOR_BLUE-DOT_1 | D93: 368 | E93: 618.6000366 | F93: COLOR_DOT
A94: 58471 | B94: pointermove | C94: COLOR_BLUE-DOT_1 | D94: 366.3999939 | E94: 618.6000366 | F94: COLOR_DOT
A95: 58479 | B95: pointermove | C95: COLOR_BLUE-DOT_1 | D95: 365.6000061 | E95: 618.6000366 | F95: COLOR_DOT
A96: 58495 | B96: pointermove | C96: COLOR_BLUE-DOT_1 | D96: 364 | E96: 618.6000366 | F96: COLOR_DOT
A97: 58599 | B97: pointermove | C97: COLOR_BLUE-DOT_1 | D97: 363.2000122 | E97: 618.6000366 | F97: COLOR_DOT
A98: 58631 | B98: pointermove | C98: COLOR_BLUE-DOT_1 | D98: 363.2000122 | E98: 617.7999878 | F98: COLOR_DOT
A99: 58647 | B99: pointerup | C99: COLOR_BLUE-DOT_1 | D99: 363 | E99: 618 | F99: COLOR_DOT
A100: 60079 | B100: pointerdown | C100: COLOR_GREEN-DOT_1 | D100: 1370 | E100: 191 | F100: COLOR_DOT
A101: 60127 | B101: pointermove | C101: COLOR_GREEN-DOT_1 | D101: 1368 | E101: 190.6000061 | F101: COLOR_DOT
A102: 60135 | B102: pointermove | C102: COLOR_GREEN-DOT_1 | D102: 1366.400024 | E102: 193 | F102: COLOR_DOT
A103: 60143 | B103: pointermove | C103: COLOR_GREEN-DOT_1 | D103: 1363.200073 | E103: 196.2000122 | F103: COLOR_DOT
A104: 60151 | B104: pointermove | C104: COLOR_GREEN-DOT_1 | D104: 1358.400024 | E104: 201 | F104: COLOR_DOT
A105: 60159 | B105: pointermove | C105: COLOR_GREEN-DOT_1 | D105: 1352 | E105: 206.6000061 | F105: COLOR_DOT
A106: 60167 | B106: pointermove | C106: COLOR_GREEN-DOT_1 | D106: 1343.200073 | E106: 213 | F106: COLOR_DOT
A107: 60175 | B107: pointermove | C107: COLOR_GREEN-DOT_1 | D107: 1333.599976 | E107: 221 | F107: COLOR_DOT
A108: 60183 | B108: pointermove | C108: COLOR_GREEN-DOT_1 | D108: 1318.400024 | E108: 232.1999969 | F108: COLOR_DOT
A109: 60191 | B109: pointermove | C109: COLOR_GREEN-DOT_1 | D109: 1296.800049 | E109: 245.8000336 | F109: COLOR_DOT
A110: 60199 | B110: pointermove | C110: COLOR_GREEN-DOT_1 | D110: 1272.800049 | E110: 260.2000122 | F110: COLOR_DOT
A111: 60207 | B111: pointermove | C111: COLOR_GREEN-DOT_1 | D111: 1245.599976 | E111: 277 | F111: COLOR_DOT
A112: 60215 | B112: pointermove | C112: COLOR_GREEN-DOT_1 | D112: 1218.400024 | E112: 294.6000061 | F112: COLOR_DOT
A113: 60223 | B113: pointermove | C113: COLOR_GREEN-DOT_1 | D113: 1189.599976 | E113: 309.8000183 | F113: COLOR_DOT
A114: 60231 | B114: pointermove | C114: COLOR_GREEN-DOT_1 | D114: 1158.400024 | E114: 325 | F114: COLOR_DOT
A115: 60239 | B115: pointermove | C115: COLOR_GREEN-DOT_1 | D115: 1127.200073 | E115: 337 | F115: COLOR_DOT
A116: 60247 | B116: pointermove | C116: COLOR_GREEN-DOT_1 | D116: 1096.800049 | E116: 349 | F116: COLOR_DOT
A117: 60255 | B117: pointermove | C117: COLOR_GREEN-DOT_1 | D117: 1065.599976 | E117: 362.6000061 | F117: COLOR_DOT
A118: 60263 | B118: pointermove | C118: COLOR_GREEN-DOT_1 | D118: 1035.200073 | E118: 374.6000061 | F118: COLOR_DOT
A119: 60271 | B119: pointermove | C119: COLOR_GREEN-DOT_1 | D119: 1007.200012 | E119: 386.6000061 | F119: COLOR_DOT
A120: 60279 | B120: pointermove | C120: COLOR_GREEN-DOT_1 | D120: 979.2000122 | E120: 396.2000122 | F120: COLOR_DOT
A121: 60287 | B121: pointermove | C121: COLOR_GREEN-DOT_1 | D121: 954.4000244 | E121: 405.8000183 | F121: COLOR_DOT
A122: 60295 | B122: pointermove | C122: COLOR_GREEN-DOT_1 | D122: 931.2000122 | E122: 414.6000061 | F122: COLOR_DOT
A123: 60303 | B123: pointermove | C123: COLOR_GREEN-DOT_1 | D123: 906.4000244 | E123: 424.2000122 | F123: COLOR_DOT
A124: 60311 | B124: pointermove | C124: COLOR_GREEN-DOT_1 | D124: 880.7999878 | E124: 435.3999939 | F124: COLOR_DOT
A125: 60319 | B125: pointermove | C125: COLOR_GREEN-DOT_1 | D125: 854.4000244 | E125: 446.6000671 | F125: COLOR_DOT
A126: 60327 | B126: pointermove | C126: COLOR_GREEN-DOT_1 | D126: 829.6000366 | E126: 456.2000122 | F126: COLOR_DOT
A127: 60335 | B127: pointermove | C127: COLOR_GREEN-DOT_1 | D127: 807.2000122 | E127: 465 | F127: COLOR_DOT
A128: 60343 | B128: pointermove | C128: COLOR_GREEN-DOT_1 | D128: 787.2000122 | E128: 472.2000122 | F128: COLOR_DOT
A129: 60351 | B129: pointermove | C129: COLOR_GREEN-DOT_1 | D129: 770.4000244 | E129: 477.8000183 | F129: COLOR_DOT
A130: 60359 | B130: pointermove | C130: COLOR_GREEN-DOT_1 | D130: 756 | E130: 483.3999939 | F130: COLOR_DOT
A131: 60367 | B131: pointermove | C131: COLOR_GREEN-DOT_1 | D131: 742.4000244 | E131: 486.6000671 | F131: COLOR_DOT
A132: 60375 | B132: pointermove | C132: COLOR_GREEN-DOT_1 | D132: 731.2000122 | E132: 489 | F132: COLOR_DOT
A133: 60383 | B133: pointermove | C133: COLOR_GREEN-DOT_1 | D133: 720.7999878 | E133: 491.3999939 | F133: COLOR_DOT
A134: 60391 | B134: pointermove | C134: COLOR_GREEN-DOT_1 | D134: 712 | E134: 493 | F134: COLOR_DOT
A135: 60399 | B135: pointermove | C135: COLOR_GREEN-DOT_1 | D135: 704 | E135: 494.6000671 | F135: COLOR_DOT
A136: 60407 | B136: pointermove | C136: COLOR_GREEN-DOT_1 | D136: 697.6000366 | E136: 495.3999939 | F136: COLOR_DOT
A137: 60415 | B137: pointermove | C137: COLOR_GREEN-DOT_1 | D137: 692 | E137: 495.3999939 | F137: COLOR_DOT
A138: 60423 | B138: pointermove | C138: COLOR_GREEN-DOT_1 | D138: 684.7999878 | E138: 495.3999939 | F138: COLOR_DOT
A139: 60431 | B139: pointermove | C139: COLOR_GREEN-DOT_1 | D139: 680 | E139: 495.3999939 | F139: COLOR_DOT
A140: 60439 | B140: pointermove | C140: COLOR_GREEN-DOT_1 | D140: 674.4000244 | E140: 495.3999939 | F140: COLOR_DOT
A141: 60447 | B141: pointermove | C141: COLOR_GREEN-DOT_1 | D141: 668.7999878 | E141: 495.3999939 | F141: COLOR_DOT
A142: 60455 | B142: pointermove | C142: COLOR_GREEN-DOT_1 | D142: 663.2000122 | E142: 495.3999939 | F142: COLOR_DOT
A143: 60463 | B143: pointermove | C143: COLOR_GREEN-DOT_1 | D143: 657.6000366 | E143: 495.3999939 | F143: COLOR_DOT
A144: 60471 | B144: pointermove | C144: COLOR_GREEN-DOT_1 | D144: 652.7999878 | E144: 495.3999939 | F144: COLOR_DOT
A145: 60479 | B145: pointermove | C145: COLOR_GREEN-DOT_1 | D145: 645.6000366 | E145: 495.3999939 | F145: COLOR_DOT
A146: 60487 | B146: pointermove | C146: COLOR_GREEN-DOT_1 | D146: 637.6000366 | E146: 495.3999939 | F146: COLOR_DOT
A147: 60495 | B147: pointermove | C147: COLOR_GREEN-DOT_1 | D147: 628.7999878 | E147: 495.3999939 | F147: COLOR_DOT
A148: 60503 | B148: pointermove | C148: COLOR_GREEN-DOT_1 | D148: 617.6000366 | E148: 495.3999939 | F148: COLOR_DOT
A149: 60511 | B149: pointermove | C149: COLOR_GREEN-DOT_1 | D149: 607.2000122 | E149: 495.3999939 | F149: COLOR_DOT
A150: 60519 | B150: pointermove | C150: COLOR_GREEN-DOT_1 | D150: 595.2000122 | E150: 496.2000122 | F150: COLOR_DOT
A151: 60527 | B151: pointermove | C151: COLOR_GREEN-DOT_1 | D151: 585.6000366 | E151: 497.8000183 | F151: COLOR_DOT
A152: 60535 | B152: pointermove | C152: COLOR_GREEN-DOT_1 | D152: 575.2000122 | E152: 499.3999939 | F152: COLOR_DOT
A153: 60543 | B153: pointermove | C153: COLOR_GREEN-DOT_1 | D153: 564 | E153: 501.8000183 | F153: COLOR_DOT
A154: 60551 | B154: pointermove | C154: COLOR_GREEN-DOT_1 | D154: 552 | E154: 504.2000122 | F154: COLOR_DOT
A155: 60559 | B155: pointermove | C155: COLOR_GREEN-DOT_1 | D155: 540 | E155: 505 | F155: COLOR_DOT
A156: 60567 | B156: pointermove | C156: COLOR_GREEN-DOT_1 | D156: 528 | E156: 505 | F156: COLOR_DOT
A157: 60575 | B157: pointermove | C157: COLOR_GREEN-DOT_1 | D157: 514.4000244 | E157: 505 | F157: COLOR_DOT
A158: 60583 | B158: pointermove | C158: COLOR_GREEN-DOT_1 | D158: 501.6000061 | E158: 505 | F158: COLOR_DOT
A159: 60591 | B159: pointermove | C159: COLOR_GREEN-DOT_1 | D159: 488 | E159: 505 | F159: COLOR_DOT
A160: 60599 | B160: pointermove | C160: COLOR_GREEN-DOT_1 | D160: 475.2000122 | E160: 505 | F160: COLOR_DOT
A161: 60607 | B161: pointermove | C161: COLOR_GREEN-DOT_1 | D161: 465.6000061 | E161: 505 | F161: COLOR_DOT
A162: 60615 | B162: pointermove | C162: COLOR_GREEN-DOT_1 | D162: 456.8000183 | E162: 505 | F162: COLOR_DOT
A163: 60623 | B163: pointermove | C163: COLOR_GREEN-DOT_1 | D163: 448.8000183 | E163: 505 | F163: COLOR_DOT
A164: 60631 | B164: pointermove | C164: COLOR_GREEN-DOT_1 | D164: 443.2000122 | E164: 505 | F164: COLOR_DOT
A165: 60639 | B165: pointermove | C165: COLOR_GREEN-DOT_1 | D165: 439.2000122 | E165: 505 | F165: COLOR_DOT
A166: 60647 | B166: pointermove | C166: COLOR_GREEN-DOT_1 | D166: 436 | E166: 505 | F166: COLOR_DOT
A167: 60655 | B167: pointermove | C167: COLOR_GREEN-DOT_1 | D167: 434.3999939 | E167: 505 | F167: COLOR_DOT
A168: 60663 | B168: pointermove | C168: COLOR_GREEN-DOT_1 | D168: 432 | E168: 505.8000183 | F168: COLOR_DOT
A169: 60671 | B169: pointermove | C169: COLOR_GREEN-DOT_1 | D169: 432 | E169: 506.6000671 | F169: COLOR_DOT
A170: 60711 | B170: pointermove | C170: COLOR_GREEN-DOT_1 | D170: 431.2000122 | E170: 506.6000671 | F170: COLOR_DOT
A171: 60727 | B171: pointermove | C171: COLOR_GREEN-DOT_1 | D171: 430.3999939 | E171: 506.6000671 | F171: COLOR_DOT
A172: 60735 | B172: pointermove | C172: COLOR_GREEN-DOT_1 | D172: 429.6000061 | E172: 507.3999939 | F172: COLOR_DOT
A173: 60751 | B173: pointermove | C173: COLOR_GREEN-DOT_1 | D173: 428.8000183 | E173: 507.3999939 | F173: COLOR_DOT
A174: 60759 | B174: pointermove | C174: COLOR_GREEN-DOT_1 | D174: 428 | E174: 507.3999939 | F174: COLOR_DOT
A175: 60767 | B175: pointermove | C175: COLOR_GREEN-DOT_1 | D175: 425.6000061 | E175: 507.3999939 | F175: COLOR_DOT
A176: 60775 | B176: pointermove | C176: COLOR_GREEN-DOT_1 | D176: 421.6000061 | E176: 507.3999939 | F176: COLOR_DOT
A177: 60783 | B177: pointermove | C177: COLOR_GREEN-DOT_1 | D177: 417.6000061 | E177: 507.3999939 | F177: COLOR_DOT
A178: 60791 | B178: pointermove | C178: COLOR_GREEN-DOT_1 | D178: 412 | E178: 507.3999939 | F178: COLOR_DOT
A179: 60799 | B179: pointermove | C179: COLOR_GREEN-DOT_1 | D179: 405.6000061 | E179: 507.3999939 | F179: COLOR_DOT
A180: 60807 | B180: pointermove | C180: COLOR_GREEN-DOT_1 | D180: 400 | E180: 507.3999939 | F180: COLOR_DOT
A181: 60815 | B181: pointermove | C181: COLOR_GREEN-DOT_1 | D181: 392 | E181: 506.6000671 | F181: COLOR_DOT
A182: 60823 | B182: pointermove | C182: COLOR_GREEN-DOT_1 | D182: 386.3999939 | E182: 505.8000183 | F182: COLOR_DOT
A183: 60831 | B183: pointermove | C183: COLOR_GREEN-DOT_1 | D183: 377.6000061 | E183: 505 | F183: COLOR_DOT
A184: 60839 | B184: pointermove | C184: COLOR_GREEN-DOT_1 | D184: 369.6000061 | E184: 502.6000671 | F184: COLOR_DOT
A185: 60847 | B185: pointermove | C185: COLOR_GREEN-DOT_1 | D185: 361.6000061 | E185: 501.8000183 | F185: COLOR_DOT
A186: 60855 | B186: pointermove | C186: COLOR_GREEN-DOT_1 | D186: 352 | E186: 499.3999939 | F186: COLOR_DOT
A187: 60863 | B187: pointermove | C187: COLOR_GREEN-DOT_1 | D187: 344 | E187: 498.6000671 | F187: COLOR_DOT
A188: 60871 | B188: pointermove | C188: COLOR_GREEN-DOT_1 | D188: 336.8000183 | E188: 497 | F188: COLOR_DOT
A189: 60879 | B189: pointermove | C189: COLOR_GREEN-DOT_1 | D189: 331.2000122 | E189: 495.3999939 | F189: COLOR_DOT
A190: 60887 | B190: pointermove | C190: COLOR_GREEN-DOT_1 | D190: 326.3999939 | E190: 493.8000183 | F190: COLOR_DOT
A191: 60895 | B191: pointermove | C191: COLOR_GREEN-DOT_1 | D191: 324.8000183 | E191: 493 | F191: COLOR_DOT
A192: 61111 | B192: pointerup | C192: COLOR_GREEN-DOT_1 | D192: 325 | E192: 493 | F192: COLOR_DOT
A193: 65055 | B193: pointerdown | C193: COLOR_GREEN-DOT_2 | D193: 970 | E193: 154 | F193: COLOR_DOT
A194: 65063 | B194: pointermove | C194: COLOR_GREEN-DOT_2 | D194: 968.7999878 | E194: 156.1999969 | F194: COLOR_DOT
A195: 65071 | B195: pointermove | C195: COLOR_GREEN-DOT_2 | D195: 966.4000244 | E195: 158.6000061 | F195: COLOR_DOT
A196: 65079 | B196: pointermove | C196: COLOR_GREEN-DOT_2 | D196: 964.7999878 | E196: 161 | F196: COLOR_DOT
A197: 65087 | B197: pointermove | C197: COLOR_GREEN-DOT_2 | D197: 963.2000122 | E197: 163.4000092 | F197: COLOR_DOT
A198: 65095 | B198: pointermove | C198: COLOR_GREEN-DOT_2 | D198: 962.4000244 | E198: 165 | F198: COLOR_DOT
A199: 65103 | B199: pointermove | C199: COLOR_GREEN-DOT_2 | D199: 960.7999878 | E199: 167.4000092 | F199: COLOR_DOT
A200: 65111 | B200: pointermove | C200: COLOR_GREEN-DOT_2 | D200: 958.4000244 | E200: 170.6000061 | F200: COLOR_DOT
A201: 65119 | B201: pointermove | C201: COLOR_GREEN-DOT_2 | D201: 956 | E201: 174.6000061 | F201: COLOR_DOT
... 298 more rows

Sheet f5_a2
A1: element | B1: sourceX | C1: sourceY | D1: sourceW | E1: sourceH | F1: targetX | G1: targetY | H1: targetW | I1: targetH | J1: Válaszkártyák (f1.xlsx) | K1: Időigény
A2: SVK-€01 | B2: 938 | C2: 167 | D2: 152 | E2: 152 | F2: 470 | G2: 468 | H2: 171 | I2: 171 | J2: IRL-€02 | K2: 2272
A3: IRL-€01 | B3: 1166 | C3: 167 | D3: 152 | E3: 152 | F3: 470 | G3: 296 | H3: 171 | I3: 171 | J3: IRL-€20 | K3: 1269
A4: SVK-€02 | B4: 1394 | C4: 167 | D4: 152 | E4: 152 | F4: 298 | G4: 468 | H4: 171 | I4: 171 | J4: IRL-€01 | K4: 857
A5: IRL-€02 | B5: 938 | C5: 395 | D5: 152 | E5: 152 | F5: 298 | G5: 296 | H5: 171 | I5: 171 | J5: SVK-€02 | K5: 3604
A6: SMR-€20 | B6: 1166 | C6: 395 | D6: 152 | E6: 152 | F6: 643 | G6: 640 | H6: 171 | I6: 171 | J6: SVK-€20 | K6: 1288
A7: SVK-€20 | B7: 1394 | C7: 395 | D7: 152 | E7: 152 | F7: 643 | G7: 468 | H7: 171 | I7: 171 | J7: SMR-€01 | K7: 3178
A8: SMR-€02 | B8: 938 | C8: 624 | D8: 152 | E8: 152 | F8: 298 | G8: 640 | H8: 171 | I8: 171 | J8: SVK-€01 | K8: 704
A9: SMR-€01 | B9: 1166 | C9: 624 | D9: 152 | E9: 152 | F9: 470 | G9: 640 | H9: 171 | I9: 171 | J9: SMR-€02 | K9: 545
A10: IRL-€20 | B10: 1394 | C10: 624 | D10: 152 | E10: 152 | F10: 643 | G10: 296 | H10: 171 | I10: 171 | J10: SMR-€20 | K10: 1094
A12: time | B12: event | C12: element | D12: x | E12: y | F12: game
A13: 0 | B13: START | C13: ALL | D13: 0 | E13: 0 | F13: EUR_COIN
A14: 9775 | B14: pointerdown | C14: IRL-€02 | D14: 928.7999878 | E14: 404.2000122 | F14: EUR_COIN
A15: 9915 | B15: pointermove | C15: IRL-€02 | D15: 925.6000366 | E15: 405 | F15: EUR_COIN
A16: 9927 | B16: pointermove | C16: IRL-€02 | D16: 912.7999878 | E16: 412.2000122 | F16: EUR_COIN
A17: 9943 | B17: pointermove | C17: IRL-€02 | D17: 888 | E17: 430.6000061 | F17: EUR_COIN
A18: 9960 | B18: pointermove | C18: IRL-€02 | D18: 858.4000244 | E18: 450.6000671 | F18: EUR_COIN
A19: 9978 | B19: pointermove | C19: IRL-€02 | D19: 821.6000366 | E19: 476.2000122 | F19: EUR_COIN
A20: 9988 | B20: pointermove | C20: IRL-€02 | D20: 800 | E20: 490.6000671 | F20: EUR_COIN
A21: 10007 | B21: pointermove | C21: IRL-€02 | D21: 769.6000366 | E21: 509 | F21: EUR_COIN
A22: 10028 | B22: pointermove | C22: IRL-€02 | D22: 741.6000366 | E22: 518.6000366 | F22: EUR_COIN
A23: 10042 | B23: pointermove | C23: IRL-€02 | D23: 718.4000244 | E23: 525 | F23: EUR_COIN
A24: 10058 | B24: pointermove | C24: IRL-€02 | D24: 698.4000244 | E24: 529.7999878 | F24: EUR_COIN
A25: 10077 | B25: pointermove | C25: IRL-€02 | D25: 678.4000244 | E25: 536.2000122 | F25: EUR_COIN
A26: 10087 | B26: pointermove | C26: IRL-€02 | D26: 671.2000122 | E26: 537.7999878 | F26: EUR_COIN
A27: 10107 | B27: pointermove | C27: IRL-€02 | D27: 657.6000366 | E27: 541 | F27: EUR_COIN
A28: 10122 | B28: pointermove | C28: IRL-€02 | D28: 646.4000244 | E28: 541.7999878 | F28: EUR_COIN
A29: 10142 | B29: pointermove | C29: IRL-€02 | D29: 634.4000244 | E29: 544.2000122 | F29: EUR_COIN
A30: 10162 | B30: pointermove | C30: IRL-€02 | D30: 621.6000366 | E30: 545 | F30: EUR_COIN
A31: 10177 | B31: pointermove | C31: IRL-€02 | D31: 608 | E31: 545.7999878 | F31: EUR_COIN
A32: 10193 | B32: pointermove | C32: IRL-€02 | D32: 594.4000244 | E32: 548.2000122 | F32: EUR_COIN
A33: 10211 | B33: pointermove | C33: IRL-€02 | D33: 571.2000122 | E33: 555.4000244 | F33: EUR_COIN
A34: 10222 | B34: pointermove | C34: IRL-€02 | D34: 557.6000366 | E34: 561 | F34: EUR_COIN
A35: 10242 | B35: pointermove | C35: IRL-€02 | D35: 537.6000366 | E35: 568.2000122 | F35: EUR_COIN
A36: 10257 | B36: pointermove | C36: IRL-€02 | D36: 522.4000244 | E36: 576.2000122 | F36: EUR_COIN
A37: 10277 | B37: pointermove | C37: IRL-€02 | D37: 508.8000183 | E37: 585.7999878 | F37: EUR_COIN
A38: 10293 | B38: pointermove | C38: IRL-€02 | D38: 493.6000061 | E38: 597 | F38: EUR_COIN
A39: 10310 | B39: pointermove | C39: IRL-€02 | D39: 482.3999939 | E39: 604.2000122 | F39: EUR_COIN
A40: 10327 | B40: pointermove | C40: IRL-€02 | D40: 473.6000061 | E40: 607.4000244 | F40: EUR_COIN
A41: 10345 | B41: pointermove | C41: IRL-€02 | D41: 464.8000183 | E41: 609.7999878 | F41: EUR_COIN
A42: 10357 | B42: pointermove | C42: IRL-€02 | D42: 460.8000183 | E42: 609.7999878 | F42: EUR_COIN
A43: 10374 | B43: pointermove | C43: IRL-€02 | D43: 455.2000122 | E43: 611.4000244 | F43: EUR_COIN
A44: 10392 | B44: pointermove | C44: IRL-€02 | D44: 449.6000061 | E44: 612.2000122 | F44: EUR_COIN
A45: 10408 | B45: pointermove | C45: IRL-€02 | D45: 444.8000183 | E45: 613.7999878 | F45: EUR_COIN
A46: 10427 | B46: pointermove | C46: IRL-€02 | D46: 437.6000061 | E46: 616.2000122 | F46: EUR_COIN
A47: 10444 | B47: pointermove | C47: IRL-€02 | D47: 432 | E47: 617 | F47: EUR_COIN
A48: 10457 | B48: pointermove | C48: IRL-€02 | D48: 426.3999939 | E48: 617 | F48: EUR_COIN
A49: 10472 | B49: pointermove | C49: IRL-€02 | D49: 418.3999939 | E49: 616.2000122 | F49: EUR_COIN
A50: 10492 | B50: pointermove | C50: IRL-€02 | D50: 412.8000183 | E50: 616.2000122 | F50: EUR_COIN
A51: 10507 | B51: pointermove | C51: IRL-€02 | D51: 407.2000122 | E51: 616.2000122 | F51: EUR_COIN
A52: 10527 | B52: pointermove | C52: IRL-€02 | D52: 401.6000061 | E52: 616.2000122 | F52: EUR_COIN
A53: 10544 | B53: pointermove | C53: IRL-€02 | D53: 396 | E53: 616.2000122 | F53: EUR_COIN
A54: 10560 | B54: pointermove | C54: IRL-€02 | D54: 393.6000061 | E54: 616.2000122 | F54: EUR_COIN
A55: 10578 | B55: pointermove | C55: IRL-€02 | D55: 386.3999939 | E55: 617.7999878 | F55: EUR_COIN
A56: 10587 | B56: pointermove | C56: IRL-€02 | D56: 382.3999939 | E56: 618.6000366 | F56: EUR_COIN
A57: 10607 | B57: pointermove | C57: IRL-€02 | D57: 376.8000183 | E57: 621 | F57: EUR_COIN
A58: 10623 | B58: pointermove | C58: IRL-€02 | D58: 372 | E58: 621.7999878 | F58: EUR_COIN
A59: 10642 | B59: pointermove | C59: IRL-€02 | D59: 370.3999939 | E59: 621.7999878 | F59: EUR_COIN
A60: 10659 | B60: pointermove | C60: IRL-€02 | D60: 368 | E60: 621.7999878 | F60: EUR_COIN
A61: 10677 | B61: pointermove | C61: IRL-€02 | D61: 365.6000061 | E61: 621.7999878 | F61: EUR_COIN
A62: 10692 | B62: pointermove | C62: IRL-€02 | D62: 364 | E62: 621.7999878 | F62: EUR_COIN
A63: 10710 | B63: pointermove | C63: IRL-€02 | D63: 361.6000061 | E63: 621.7999878 | F63: EUR_COIN
A64: 10728 | B64: pointermove | C64: IRL-€02 | D64: 360 | E64: 621.7999878 | F64: EUR_COIN
A65: 10737 | B65: pointermove | C65: IRL-€02 | D65: 358.3999939 | E65: 621.7999878 | F65: EUR_COIN
A66: 10754 | B66: pointermove | C66: IRL-€02 | D66: 356.8000183 | E66: 622.6000366 | F66: EUR_COIN
A67: 10772 | B67: pointermove | C67: IRL-€02 | D67: 354.3999939 | E67: 622.6000366 | F67: EUR_COIN
A68: 10790 | B68: pointermove | C68: IRL-€02 | D68: 352 | E68: 623.4000244 | F68: EUR_COIN
A69: 10808 | B69: pointermove | C69: IRL-€02 | D69: 350.3999939 | E69: 623.4000244 | F69: EUR_COIN
A70: 10827 | B70: pointermove | C70: IRL-€02 | D70: 348 | E70: 623.4000244 | F70: EUR_COIN
A71: 10843 | B71: pointermove | C71: IRL-€02 | D71: 346.3999939 | E71: 623.4000244 | F71: EUR_COIN
A72: 10861 | B72: pointermove | C72: IRL-€02 | D72: 344 | E72: 623.4000244 | F72: EUR_COIN
A73: 10870 | B73: pointermove | C73: IRL-€02 | D73: 343.2000122 | E73: 623.4000244 | F73: EUR_COIN
A74: 10882 | B74: pointerup | C74: IRL-€02 | D74: 343.2000122 | E74: 623.4000244 | F74: EUR_COIN
A75: 12207 | B75: pointerdown | C75: IRL-€02 | D75: 880.7999878 | E75: 413 | F75: EUR_COIN
A76: 12416 | B76: pointermove | C76: IRL-€02 | D76: 880 | E76: 413 | F76: EUR_COIN
A77: 12425 | B77: pointermove | C77: IRL-€02 | D77: 876.7999878 | E77: 413 | F77: EUR_COIN
A78: 12444 | B78: pointermove | C78: IRL-€02 | D78: 869.6000366 | E78: 413 | F78: EUR_COIN
A79: 12459 | B79: pointermove | C79: IRL-€02 | D79: 864 | E79: 413 | F79: EUR_COIN
A80: 12477 | B80: pointermove | C80: IRL-€02 | D80: 856 | E80: 411.3999939 | F80: EUR_COIN
A81: 12489 | B81: pointermove | C81: IRL-€02 | D81: 849.6000366 | E81: 411.3999939 | F81: EUR_COIN
A82: 12509 | B82: pointermove | C82: IRL-€02 | D82: 840 | E82: 411.3999939 | F82: EUR_COIN
A83: 12524 | B83: pointermove | C83: IRL-€02 | D83: 834.4000244 | E83: 411.3999939 | F83: EUR_COIN
A84: 12544 | B84: pointermove | C84: IRL-€02 | D84: 828 | E84: 411.3999939 | F84: EUR_COIN
A85: 12558 | B85: pointermove | C85: IRL-€02 | D85: 821.6000366 | E85: 411.3999939 | F85: EUR_COIN
A86: 12575 | B86: pointermove | C86: IRL-€02 | D86: 813.6000366 | E86: 411.3999939 | F86: EUR_COIN
A87: 12593 | B87: pointermove | C87: IRL-€02 | D87: 805.6000366 | E87: 411.3999939 | F87: EUR_COIN
A88: 12604 | B88: pointermove | C88: IRL-€02 | D88: 799.2000122 | E88: 413 | F88: EUR_COIN
A89: 12623 | B89: pointermove | C89: IRL-€02 | D89: 783.2000122 | E89: 416.2000122 | F89: EUR_COIN
A90: 12639 | B90: pointermove | C90: IRL-€02 | D90: 761.6000366 | E90: 421.8000183 | F90: EUR_COIN
A91: 12658 | B91: pointermove | C91: IRL-€02 | D91: 734.4000244 | E91: 426.6000061 | F91: EUR_COIN
A92: 12675 | B92: pointermove | C92: IRL-€02 | D92: 696 | E92: 429 | F92: EUR_COIN
A93: 12694 | B93: pointermove | C93: IRL-€02 | D93: 640 | E93: 425 | F93: EUR_COIN
A94: 12710 | B94: pointermove | C94: IRL-€02 | D94: 587.2000122 | E94: 414.6000061 | F94: EUR_COIN
A95: 12720 | B95: pointermove | C95: IRL-€02 | D95: 552.7999878 | E95: 405 | F95: EUR_COIN
A96: 12738 | B96: pointermove | C96: IRL-€02 | D96: 504.8000183 | E96: 385 | F96: EUR_COIN
A97: 12759 | B97: pointermove | C97: IRL-€02 | D97: 469.6000061 | E97: 366.6000061 | F97: EUR_COIN
A98: 12774 | B98: pointermove | C98: IRL-€02 | D98: 450.3999939 | E98: 359.3999939 | F98: EUR_COIN
A99: 12790 | B99: pointermove | C99: IRL-€02 | D99: 443.2000122 | E99: 357.8000183 | F99: EUR_COIN
A100: 12794 | B100: pointermove | C100: IRL-€02 | D100: 442.3999939 | E100: 357.8000183 | F100: EUR_COIN
A101: 12853 | B101: pointermove | C101: IRL-€02 | D101: 442.3999939 | E101: 357 | F101: EUR_COIN
A102: 12944 | B102: pointermove | C102: IRL-€02 | D102: 442.3999939 | E102: 356.2000122 | F102: EUR_COIN
A103: 12954 | B103: pointermove | C103: IRL-€02 | D103: 440.8000183 | E103: 355.3999939 | F103: EUR_COIN
A104: 12975 | B104: pointermove | C104: IRL-€02 | D104: 438.3999939 | E104: 353 | F104: EUR_COIN
A105: 12989 | B105: pointermove | C105: IRL-€02 | D105: 432 | E105: 349.8000183 | F105: EUR_COIN
A106: 13010 | B106: pointermove | C106: IRL-€02 | D106: 421.6000061 | E106: 348.2000122 | F106: EUR_COIN
A107: 13025 | B107: pointermove | C107: IRL-€02 | D107: 407.2000122 | E107: 348.2000122 | F107: EUR_COIN
A108: 13042 | B108: pointermove | C108: IRL-€02 | D108: 392 | E108: 350.6000061 | F108: EUR_COIN
A109: 13060 | B109: pointermove | C109: IRL-€02 | D109: 376.8000183 | E109: 355.3999939 | F109: EUR_COIN
A110: 13070 | B110: pointermove | C110: IRL-€02 | D110: 364.8000183 | E110: 358.6000061 | F110: EUR_COIN
A111: 13090 | B111: pointermove | C111: IRL-€02 | D111: 350.3999939 | E111: 362.6000061 | F111: EUR_COIN
A112: 13110 | B112: pointermove | C112: IRL-€02 | D112: 339.2000122 | E112: 365 | F112: EUR_COIN
A113: 13124 | B113: pointermove | C113: IRL-€02 | D113: 328.8000183 | E113: 366.6000061 | F113: EUR_COIN
A114: 13142 | B114: pointermove | C114: IRL-€02 | D114: 321.6000061 | E114: 368.2000122 | F114: EUR_COIN
A115: 13159 | B115: pointermove | C115: IRL-€02 | D115: 313.6000061 | E115: 368.2000122 | F115: EUR_COIN
A116: 13170 | B116: pointermove | C116: IRL-€02 | D116: 311.2000122 | E116: 368.2000122 | F116: EUR_COIN
A117: 13190 | B117: pointermove | C117: IRL-€02 | D117: 308 | E117: 368.2000122 | F117: EUR_COIN
A118: 13205 | B118: pointermove | C118: IRL-€02 | D118: 304 | E118: 368.2000122 | F118: EUR_COIN
A119: 13225 | B119: pointermove | C119: IRL-€02 | D119: 300.8000183 | E119: 368.2000122 | F119: EUR_COIN
A120: 13244 | B120: pointermove | C120: IRL-€02 | D120: 299.2000122 | E120: 368.2000122 | F120: EUR_COIN
A121: 13259 | B121: pointermove | C121: IRL-€02 | D121: 296.8000183 | E121: 368.2000122 | F121: EUR_COIN
A122: 13269 | B122: pointermove | C122: IRL-€02 | D122: 295.2000122 | E122: 368.2000122 | F122: EUR_COIN
A123: 13289 | B123: pointermove | C123: IRL-€02 | D123: 293.6000061 | E123: 368.2000122 | F123: EUR_COIN
A124: 13304 | B124: pointermove | C124: IRL-€02 | D124: 291.2000122 | E124: 368.2000122 | F124: EUR_COIN
A125: 13325 | B125: pointermove | C125: IRL-€02 | D125: 288.8000183 | E125: 368.2000122 | F125: EUR_COIN
A126: 13339 | B126: pointermove | C126: IRL-€02 | D126: 287.2000122 | E126: 368.2000122 | F126: EUR_COIN
A127: 13359 | B127: pointermove | C127: IRL-€02 | D127: 284.8000183 | E127: 367.3999939 | F127: EUR_COIN
A128: 13375 | B128: pointermove | C128: IRL-€02 | D128: 283.2000122 | E128: 366.6000061 | F128: EUR_COIN
A129: 13384 | B129: pointermove | C129: IRL-€02 | D129: 281.6000061 | E129: 365 | F129: EUR_COIN
A130: 13395 | B130: pointerup | C130: IRL-€02 | D130: 281.6000061 | E130: 365 | F130: EUR_COIN
A131: 15864 | B131: pointerdown | C131: IRL-€20 | D131: 1392.800049 | E131: 621 | F131: EUR_COIN
A132: 16013 | B132: pointermove | C132: IRL-€20 | D132: 1392 | E132: 621 | F132: EUR_COIN
A133: 16022 | B133: pointermove | C133: IRL-€20 | D133: 1380 | E133: 621 | F133: EUR_COIN
A134: 16037 | B134: pointermove | C134: IRL-€20 | D134: 1340 | E134: 621 | F134: EUR_COIN
A135: 16057 | B135: pointermove | C135: IRL-€20 | D135: 1285.599976 | E135: 614.6000366 | F135: EUR_COIN
A136: 16073 | B136: pointermove | C136: IRL-€20 | D136: 1217.599976 | E136: 599.4000244 | F136: EUR_COIN
A137: 16092 | B137: pointermove | C137: IRL-€20 | D137: 1144.800049 | E137: 577 | F137: EUR_COIN
A138: 16107 | B138: pointermove | C138: IRL-€20 | D138: 1079.200073 | E138: 546.6000366 | F138: EUR_COIN
A139: 16125 | B139: pointermove | C139: IRL-€20 | D139: 1008.799988 | E139: 508.2000122 | F139: EUR_COIN
A140: 16143 | B140: pointermove | C140: IRL-€20 | D140: 941.6000366 | E140: 465 | F140: EUR_COIN
A141: 16153 | B141: pointermove | C141: IRL-€20 | D141: 911.2000122 | E141: 442.6000671 | F141: EUR_COIN
A142: 16172 | B142: pointermove | C142: IRL-€20 | D142: 880.7999878 | E142: 419.3999939 | F142: EUR_COIN
A143: 16192 | B143: pointermove | C143: IRL-€20 | D143: 867.2000122 | E143: 411.3999939 | F143: EUR_COIN
A144: 16207 | B144: pointermove | C144: IRL-€20 | D144: 860 | E144: 409 | F144: EUR_COIN
A145: 16225 | B145: pointermove | C145: IRL-€20 | D145: 856.7999878 | E145: 407.3999939 | F145: EUR_COIN
A146: 16242 | B146: pointermove | C146: IRL-€20 | D146: 855.2000122 | E146: 407.3999939 | F146: EUR_COIN
A147: 16259 | B147: pointermove | C147: IRL-€20 | D147: 852.7999878 | E147: 406.6000061 | F147: EUR_COIN
A148: 16269 | B148: pointermove | C148: IRL-€20 | D148: 850.4000244 | E148: 405.8000183 | F148: EUR_COIN
A149: 16288 | B149: pointermove | C149: IRL-€20 | D149: 845.6000366 | E149: 403.3999939 | F149: EUR_COIN
A150: 16307 | B150: pointermove | C150: IRL-€20 | D150: 840 | E150: 400.2000122 | F150: EUR_COIN
A151: 16323 | B151: pointermove | C151: IRL-€20 | D151: 835.2000122 | E151: 397.8000183 | F151: EUR_COIN
A152: 16343 | B152: pointermove | C152: IRL-€20 | D152: 829.6000366 | E152: 395.3999939 | F152: EUR_COIN
A153: 16359 | B153: pointermove | C153: IRL-€20 | D153: 827.2000122 | E153: 394.6000061 | F153: EUR_COIN
A154: 16369 | B154: pointermove | C154: IRL-€20 | D154: 824.7999878 | E154: 394.6000061 | F154: EUR_COIN
A155: 16386 | B155: pointermove | C155: IRL-€20 | D155: 822.4000244 | E155: 393.8000183 | F155: EUR_COIN
A156: 16405 | B156: pointermove | C156: IRL-€20 | D156: 819.2000122 | E156: 393.8000183 | F156: EUR_COIN
A157: 16422 | B157: pointermove | C157: IRL-€20 | D157: 816 | E157: 393.8000183 | F157: EUR_COIN
A158: 16442 | B158: pointermove | C158: IRL-€20 | D158: 809.6000366 | E158: 391.3999939 | F158: EUR_COIN
A159: 16458 | B159: pointermove | C159: IRL-€20 | D159: 804 | E159: 390.6000061 | F159: EUR_COIN
A160: 16476 | B160: pointermove | C160: IRL-€20 | D160: 796.7999878 | E160: 387.3999939 | F160: EUR_COIN
A161: 16487 | B161: pointermove | C161: IRL-€20 | D161: 791.2000122 | E161: 384.2000122 | F161: EUR_COIN
A162: 16507 | B162: pointermove | C162: IRL-€20 | D162: 781.6000366 | E162: 376.2000122 | F162: EUR_COIN
A163: 16523 | B163: pointermove | C163: IRL-€20 | D163: 774.4000244 | E163: 368.2000122 | F163: EUR_COIN
A164: 16542 | B164: pointermove | C164: IRL-€20 | D164: 768 | E164: 361.8000183 | F164: EUR_COIN
A165: 16558 | B165: pointermove | C165: IRL-€20 | D165: 761.6000366 | E165: 357 | F165: EUR_COIN
A166: 16575 | B166: pointermove | C166: IRL-€20 | D166: 757.6000366 | E166: 353.8000183 | F166: EUR_COIN
A167: 16587 | B167: pointermove | C167: IRL-€20 | D167: 754.4000244 | E167: 352.2000122 | F167: EUR_COIN
A168: 16603 | B168: pointermove | C168: IRL-€20 | D168: 749.6000366 | E168: 349.8000183 | F168: EUR_COIN
A169: 16622 | B169: pointermove | C169: IRL-€20 | D169: 747.2000122 | E169: 347.3999939 | F169: EUR_COIN
A170: 16638 | B170: pointermove | C170: IRL-€20 | D170: 744.7999878 | E170: 346.6000061 | F170: EUR_COIN
A171: 16658 | B171: pointermove | C171: IRL-€20 | D171: 742.4000244 | E171: 345.8000183 | F171: EUR_COIN
A172: 16668 | B172: pointermove | C172: IRL-€20 | D172: 741.6000366 | E172: 345.8000183 | F172: EUR_COIN
A173: 16690 | B173: pointermove | C173: IRL-€20 | D173: 739.2000122 | E173: 345.8000183 | F173: EUR_COIN
A174: 16703 | B174: pointermove | C174: IRL-€20 | D174: 738.4000244 | E174: 345.8000183 | F174: EUR_COIN
A175: 16718 | B175: pointermove | C175: IRL-€20 | D175: 736 | E175: 346.6000061 | F175: EUR_COIN
A176: 16737 | B176: pointermove | C176: IRL-€20 | D176: 734.4000244 | E176: 346.6000061 | F176: EUR_COIN
A177: 16758 | B177: pointermove | C177: IRL-€20 | D177: 732.7999878 | E177: 347.3999939 | F177: EUR_COIN
A178: 16772 | B178: pointermove | C178: IRL-€20 | D178: 731.2000122 | E178: 347.3999939 | F178: EUR_COIN
A179: 16789 | B179: pointermove | C179: IRL-€20 | D179: 729.6000366 | E179: 347.3999939 | F179: EUR_COIN
A180: 16808 | B180: pointermove | C180: IRL-€20 | D180: 727.2000122 | E180: 349 | F180: EUR_COIN
A181: 16824 | B181: pointermove | C181: IRL-€20 | D181: 726.4000244 | E181: 349 | F181: EUR_COIN
A182: 16842 | B182: pointermove | C182: IRL-€20 | D182: 724.7999878 | E182: 349.8000183 | F182: EUR_COIN
A183: 16853 | B183: pointermove | C183: IRL-€20 | D183: 723.2000122 | E183: 349.8000183 | F183: EUR_COIN
A184: 16874 | B184: pointermove | C184: IRL-€20 | D184: 721.6000366 | E184: 349.8000183 | F184: EUR_COIN
A185: 16889 | B185: pointermove | C185: IRL-€20 | D185: 720 | E185: 350.6000061 | F185: EUR_COIN
A186: 16898 | B186: pointermove | C186: IRL-€20 | D186: 718.4000244 | E186: 351.3999939 | F186: EUR_COIN
A187: 16918 | B187: pointermove | C187: IRL-€20 | D187: 716.7999878 | E187: 351.3999939 | F187: EUR_COIN
A188: 16942 | B188: pointermove | C188: IRL-€20 | D188: 715.2000122 | E188: 352.2000122 | F188: EUR_COIN
A189: 16952 | B189: pointermove | C189: IRL-€20 | D189: 713.6000366 | E189: 352.2000122 | F189: EUR_COIN
A190: 16973 | B190: pointermove | C190: IRL-€20 | D190: 712 | E190: 352.2000122 | F190: EUR_COIN
A191: 16987 | B191: pointermove | C191: IRL-€20 | D191: 709.6000366 | E191: 352.2000122 | F191: EUR_COIN
A192: 17004 | B192: pointermove | C192: IRL-€20 | D192: 708 | E192: 352.2000122 | F192: EUR_COIN
A193: 17022 | B193: pointermove | C193: IRL-€20 | D193: 705.6000366 | E193: 352.2000122 | F193: EUR_COIN
A194: 17040 | B194: pointermove | C194: IRL-€20 | D194: 704 | E194: 351.3999939 | F194: EUR_COIN
A195: 17058 | B195: pointermove | C195: IRL-€20 | D195: 701.6000366 | E195: 350.6000061 | F195: EUR_COIN
A196: 17075 | B196: pointermove | C196: IRL-€20 | D196: 699.2000122 | E196: 350.6000061 | F196: EUR_COIN
A197: 17088 | B197: pointermove | C197: IRL-€20 | D197: 697.6000366 | E197: 350.6000061 | F197: EUR_COIN
A198: 17103 | B198: pointermove | C198: IRL-€20 | D198: 696 | E198: 349.8000183 | F198: EUR_COIN
A199: 17120 | B199: pointermove | C199: IRL-€20 | D199: 693.6000366 | E199: 349.8000183 | F199: EUR_COIN
A200: 17133 | B200: pointermove | C200: IRL-€20 | D200: 692 | E200: 349.8000183 | F200: EUR_COIN
A201: 17143 | B201: pointerup | C201: IRL-€20 | D201: 692 | E201: 349.8000183 | F201: EUR_COIN
... 602 more rows

Sheet f5_a3
A1: element | B1: sourceX | C1: sourceY | D1: sourceW | E1: sourceH | F1: targetX | G1: targetY | H1: targetW | I1: targetH | J1: Válaszkártyák | K1: Időigény
A2: COLOR_GREEN-DOT_2 | B2: 937 | C2: 167 | D2: 152 | E2: 152 | F2: 470 | G2: 468 | H2: 171 | I2: 171 | J2: COLOR_GREEN-DOT_2 | K2: 941
A3: COLOR_BROWN-DOT_2 | B3: 1165 | C3: 167 | D3: 152 | E3: 152 | F3: 470 | G3: 296 | H3: 171 | I3: 171 | J3: COLOR_BROWN-DOT_1 | K3: 1229
A4: COLOR_GREEN-DOT_1 | B4: 1393 | C4: 167 | D4: 152 | E4: 152 | F4: 298 | G4: 468 | H4: 171 | I4: 171 | J4: COLOR_BLUE-DOT_1 | K4: 941
A5: COLOR_BROWN-DOT_1 | B5: 937 | C5: 395 | D5: 152 | E5: 152 | F5: 298 | G5: 296 | H5: 171 | I5: 171 | J5: COLOR_BROWN-DOT_2 | K5: 857
A6: COLOR_BLUE-DOT_3 | B6: 1165 | C6: 395 | D6: 152 | E6: 152 | F6: 642 | G6: 640 | H6: 171 | I6: 171 | J6: COLOR_GREEN-DOT_1 | K6: 1186
A7: COLOR_GREEN-DOT_3 | B7: 1393 | C7: 395 | D7: 152 | E7: 152 | F7: 642 | G7: 468 | H7: 171 | I7: 171 | J7: COLOR_BLUE-DOT_3 | K7: 1514
A8: COLOR_BLUE-DOT_1 | B8: 937 | C8: 623 | D8: 152 | E8: 152 | F8: 298 | G8: 640 | H8: 171 | I8: 171 | J8: COLOR_BLUE-DOT_2 | K8: 555
A9: COLOR_BLUE-DOT_2 | B9: 1165 | C9: 623 | D9: 152 | E9: 152 | F9: 470 | G9: 640 | H9: 171 | I9: 171 | J9: COLOR_GREEN-DOT_3 | K9: 1050
A10: COLOR_BROWN-DOT_3 | B10: 1393 | C10: 623 | D10: 152 | E10: 152 | F10: 642 | G10: 296 | H10: 171 | I10: 171 | J10: COLOR_BROWN-DOT_3 | K10: 936
A12: time | B12: event | C12: element | D12: x | E12: y | F12: game
A13: 0 | B13: START | C13: ALL | D13: 0 | E13: 0 | F13: COLOR_DOT
A14: 1243 | B14: pointerdown | C14: COLOR_GREEN-DOT_2 | D14: 926.4000244 | E14: 145 | F14: COLOR_DOT
A15: 1278 | B15: pointermove | C15: COLOR_GREEN-DOT_2 | D15: 923.2000122 | E15: 150.6000061 | F15: COLOR_DOT
A16: 1287 | B16: pointermove | C16: COLOR_GREEN-DOT_2 | D16: 920 | E16: 153.8000031 | F16: COLOR_DOT
A17: 1307 | B17: pointermove | C17: COLOR_GREEN-DOT_2 | D17: 910.4000244 | E17: 164.1999969 | F17: COLOR_DOT
A18: 1324 | B18: pointermove | C18: COLOR_GREEN-DOT_2 | D18: 898.4000244 | E18: 173 | F18: COLOR_DOT
A19: 1343 | B19: pointermove | C19: COLOR_GREEN-DOT_2 | D19: 884 | E19: 184.1999969 | F19: COLOR_DOT
A20: 1359 | B20: pointermove | C20: COLOR_GREEN-DOT_2 | D20: 866.4000244 | E20: 196.2000122 | F20: COLOR_DOT
A21: 1378 | B21: pointermove | C21: COLOR_GREEN-DOT_2 | D21: 844 | E21: 214.6000061 | F21: COLOR_DOT
A22: 1388 | B22: pointermove | C22: COLOR_GREEN-DOT_2 | D22: 827.2000122 | E22: 226.6000061 | F22: COLOR_DOT
A23: 1408 | B23: pointermove | C23: COLOR_GREEN-DOT_2 | D23: 794.4000244 | E23: 254.6000061 | F23: COLOR_DOT
A24: 1424 | B24: pointermove | C24: COLOR_GREEN-DOT_2 | D24: 761.6000366 | E24: 282.6000061 | F24: COLOR_DOT
A25: 1443 | B25: pointermove | C25: COLOR_GREEN-DOT_2 | D25: 731.2000122 | E25: 309 | F25: COLOR_DOT
A26: 1459 | B26: pointermove | C26: COLOR_GREEN-DOT_2 | D26: 712 | E26: 325 | F26: COLOR_DOT
A27: 1477 | B27: pointermove | C27: COLOR_GREEN-DOT_2 | D27: 700 | E27: 330.6000061 | F27: COLOR_DOT
A28: 1488 | B28: pointermove | C28: COLOR_GREEN-DOT_2 | D28: 697.6000366 | E28: 330.6000061 | F28: COLOR_DOT
A29: 1635 | B29: pointermove | C29: COLOR_GREEN-DOT_2 | D29: 696.7999878 | E29: 333.8000183 | F29: COLOR_DOT
A30: 1644 | B30: pointermove | C30: COLOR_GREEN-DOT_2 | D30: 692.7999878 | E30: 339.3999939 | F30: COLOR_DOT
A31: 1659 | B31: pointermove | C31: COLOR_GREEN-DOT_2 | D31: 676.7999878 | E31: 353.8000183 | F31: COLOR_DOT
A32: 1678 | B32: pointermove | C32: COLOR_GREEN-DOT_2 | D32: 644.7999878 | E32: 379.3999939 | F32: COLOR_DOT
A33: 1687 | B33: pointermove | C33: COLOR_GREEN-DOT_2 | D33: 628 | E33: 391.3999939 | F33: COLOR_DOT
A34: 1707 | B34: pointermove | C34: COLOR_GREEN-DOT_2 | D34: 593.6000366 | E34: 413 | F34: COLOR_DOT
A35: 1723 | B35: pointermove | C35: COLOR_GREEN-DOT_2 | D35: 564.7999878 | E35: 429.8000183 | F35: COLOR_DOT
A36: 1743 | B36: pointermove | C36: COLOR_GREEN-DOT_2 | D36: 548.7999878 | E36: 438.6000061 | F36: COLOR_DOT
A37: 1760 | B37: pointermove | C37: COLOR_GREEN-DOT_2 | D37: 542.4000244 | E37: 442.6000671 | F37: COLOR_DOT
A38: 1778 | B38: pointermove | C38: COLOR_GREEN-DOT_2 | D38: 538.4000244 | E38: 445 | F38: COLOR_DOT
A39: 1797 | B39: pointermove | C39: COLOR_GREEN-DOT_2 | D39: 537.6000366 | E39: 445 | F39: COLOR_DOT
A40: 1807 | B40: pointermove | C40: COLOR_GREEN-DOT_2 | D40: 536.7999878 | E40: 445 | F40: COLOR_DOT
A41: 1823 | B41: pointermove | C41: COLOR_GREEN-DOT_2 | D41: 532.7999878 | E41: 445 | F41: COLOR_DOT
A42: 1842 | B42: pointermove | C42: COLOR_GREEN-DOT_2 | D42: 528.7999878 | E42: 443.3999939 | F42: COLOR_DOT
A43: 1852 | B43: pointermove | C43: COLOR_GREEN-DOT_2 | D43: 526.4000244 | E43: 442.6000671 | F43: COLOR_DOT
A44: 1879 | B44: pointermove | C44: COLOR_GREEN-DOT_2 | D44: 523.2000122 | E44: 441.8000183 | F44: COLOR_DOT
A45: 1895 | B45: pointermove | C45: COLOR_GREEN-DOT_2 | D45: 522.4000244 | E45: 441.8000183 | F45: COLOR_DOT
A46: 1948 | B46: pointermove | C46: COLOR_GREEN-DOT_2 | D46: 521.6000366 | E46: 440.2000122 | F46: COLOR_DOT
A47: 1957 | B47: pointermove | C47: COLOR_GREEN-DOT_2 | D47: 518.4000244 | E47: 437.8000183 | F47: COLOR_DOT
A48: 1977 | B48: pointermove | C48: COLOR_GREEN-DOT_2 | D48: 508.8000183 | E48: 430.6000061 | F48: COLOR_DOT
A49: 1993 | B49: pointermove | C49: COLOR_GREEN-DOT_2 | D49: 499.2000122 | E49: 425.8000183 | F49: COLOR_DOT
A50: 2010 | B50: pointermove | C50: COLOR_GREEN-DOT_2 | D50: 489.6000061 | E50: 423.3999939 | F50: COLOR_DOT
A51: 2021 | B51: pointermove | C51: COLOR_GREEN-DOT_2 | D51: 483.2000122 | E51: 423.3999939 | F51: COLOR_DOT
A52: 2042 | B52: pointermove | C52: COLOR_GREEN-DOT_2 | D52: 476 | E52: 425 | F52: COLOR_DOT
A53: 2057 | B53: pointermove | C53: COLOR_GREEN-DOT_2 | D53: 470.3999939 | E53: 426.6000061 | F53: COLOR_DOT
A54: 2078 | B54: pointermove | C54: COLOR_GREEN-DOT_2 | D54: 468.8000183 | E54: 427.3999939 | F54: COLOR_DOT
A55: 2105 | B55: pointermove | C55: COLOR_GREEN-DOT_2 | D55: 468.8000183 | E55: 428.2000122 | F55: COLOR_DOT
A56: 2112 | B56: pointermove | C56: COLOR_GREEN-DOT_2 | D56: 468 | E56: 428.2000122 | F56: COLOR_DOT
A57: 2123 | B57: pointermove | C57: COLOR_GREEN-DOT_2 | D57: 467.2000122 | E57: 429 | F57: COLOR_DOT
A58: 2141 | B58: pointermove | C58: COLOR_GREEN-DOT_2 | D58: 466.3999939 | E58: 430.6000061 | F58: COLOR_DOT
A59: 2159 | B59: pointermove | C59: COLOR_GREEN-DOT_2 | D59: 464 | E59: 433 | F59: COLOR_DOT
A60: 2169 | B60: pointermove | C60: COLOR_GREEN-DOT_2 | D60: 463.2000122 | E60: 433.8000183 | F60: COLOR_DOT
A61: 2184 | B61: pointermove | C61: COLOR_GREEN-DOT_2 | D61: 462.3999939 | E61: 433.8000183 | F61: COLOR_DOT
A62: 2333 | B62: pointerup | C62: COLOR_GREEN-DOT_2 | D62: 462.3999939 | E62: 433.8000183 | F62: COLOR_DOT
A63: 3247 | B63: pointerdown | C63: COLOR_BROWN-DOT_1 | D63: 908 | E63: 393 | F63: COLOR_DOT
A64: 3308 | B64: pointermove | C64: COLOR_BROWN-DOT_1 | D64: 907.2000122 | E64: 393 | F64: COLOR_DOT
A65: 3327 | B65: pointermove | C65: COLOR_BROWN-DOT_1 | D65: 902.4000244 | E65: 393 | F65: COLOR_DOT
A66: 3343 | B66: pointermove | C66: COLOR_BROWN-DOT_1 | D66: 886.4000244 | E66: 390.6000061 | F66: COLOR_DOT
A67: 3359 | B67: pointermove | C67: COLOR_BROWN-DOT_1 | D67: 860 | E67: 384.2000122 | F67: COLOR_DOT
A68: 3378 | B68: pointermove | C68: COLOR_BROWN-DOT_1 | D68: 817.6000366 | E68: 369.8000183 | F68: COLOR_DOT
A69: 3391 | B69: pointermove | C69: COLOR_BROWN-DOT_1 | D69: 786.4000244 | E69: 357.8000183 | F69: COLOR_DOT
A70: 3407 | B70: pointermove | C70: COLOR_BROWN-DOT_1 | D70: 748 | E70: 338.6000061 | F70: COLOR_DOT
A71: 3426 | B71: pointermove | C71: COLOR_BROWN-DOT_1 | D71: 720 | E71: 328.2000122 | F71: COLOR_DOT
A72: 3441 | B72: pointermove | C72: COLOR_BROWN-DOT_1 | D72: 702.4000244 | E72: 325.8000183 | F72: COLOR_DOT
A73: 3454 | B73: pointermove | C73: COLOR_BROWN-DOT_1 | D73: 700 | E73: 325 | F73: COLOR_DOT
A74: 3617 | B74: pointermove | C74: COLOR_BROWN-DOT_1 | D74: 699.2000122 | E74: 325 | F74: COLOR_DOT
A75: 3625 | B75: pointermove | C75: COLOR_BROWN-DOT_1 | D75: 690.4000244 | E75: 326.6000061 | F75: COLOR_DOT
A76: 3641 | B76: pointermove | C76: COLOR_BROWN-DOT_1 | D76: 646.4000244 | E76: 332.2000122 | F76: COLOR_DOT
A77: 3660 | B77: pointermove | C77: COLOR_BROWN-DOT_1 | D77: 596 | E77: 333 | F77: COLOR_DOT
A78: 3677 | B78: pointermove | C78: COLOR_BROWN-DOT_1 | D78: 528.7999878 | E78: 329.8000183 | F78: COLOR_DOT
A79: 3687 | B79: pointermove | C79: COLOR_BROWN-DOT_1 | D79: 490.3999939 | E79: 325.8000183 | F79: COLOR_DOT
A80: 3705 | B80: pointermove | C80: COLOR_BROWN-DOT_1 | D80: 441.6000061 | E80: 322.6000061 | F80: COLOR_DOT
A81: 3726 | B81: pointermove | C81: COLOR_BROWN-DOT_1 | D81: 416 | E81: 321 | F81: COLOR_DOT
A82: 3741 | B82: pointermove | C82: COLOR_BROWN-DOT_1 | D82: 411.2000122 | E82: 321 | F82: COLOR_DOT
A83: 3899 | B83: pointermove | C83: COLOR_BROWN-DOT_1 | D83: 409.6000061 | E83: 321.8000183 | F83: COLOR_DOT
A84: 3908 | B84: pointermove | C84: COLOR_BROWN-DOT_1 | D84: 405.6000061 | E84: 323.3999939 | F84: COLOR_DOT
A85: 3926 | B85: pointermove | C85: COLOR_BROWN-DOT_1 | D85: 395.2000122 | E85: 329.8000183 | F85: COLOR_DOT
A86: 3941 | B86: pointermove | C86: COLOR_BROWN-DOT_1 | D86: 375.2000122 | E86: 337 | F86: COLOR_DOT
A87: 3961 | B87: pointermove | C87: COLOR_BROWN-DOT_1 | D87: 352 | E87: 339.3999939 | F87: COLOR_DOT
A88: 3977 | B88: pointermove | C88: COLOR_BROWN-DOT_1 | D88: 333.6000061 | E88: 337.8000183 | F88: COLOR_DOT
A89: 3986 | B89: pointermove | C89: COLOR_BROWN-DOT_1 | D89: 320 | E89: 335.3999939 | F89: COLOR_DOT
A90: 4007 | B90: pointermove | C90: COLOR_BROWN-DOT_1 | D90: 305.6000061 | E90: 328.2000122 | F90: COLOR_DOT
A91: 4027 | B91: pointermove | C91: COLOR_BROWN-DOT_1 | D91: 296.8000183 | E91: 321.8000183 | F91: COLOR_DOT
A92: 4042 | B92: pointermove | C92: COLOR_BROWN-DOT_1 | D92: 291.2000122 | E92: 318.6000061 | F92: COLOR_DOT
A93: 4059 | B93: pointermove | C93: COLOR_BROWN-DOT_1 | D93: 288 | E93: 317 | F93: COLOR_DOT
A94: 4077 | B94: pointermove | C94: COLOR_BROWN-DOT_1 | D94: 285.6000061 | E94: 315.3999939 | F94: COLOR_DOT
A95: 4081 | B95: pointermove | C95: COLOR_BROWN-DOT_1 | D95: 285.6000061 | E95: 314.6000061 | F95: COLOR_DOT
A96: 4114 | B96: pointermove | C96: COLOR_BROWN-DOT_1 | D96: 284.8000183 | E96: 314.6000061 | F96: COLOR_DOT
A97: 4227 | B97: pointermove | C97: COLOR_BROWN-DOT_1 | D97: 284.8000183 | E97: 313.8000183 | F97: COLOR_DOT
A98: 4244 | B98: pointermove | C98: COLOR_BROWN-DOT_1 | D98: 284.8000183 | E98: 311.3999939 | F98: COLOR_DOT
A99: 4259 | B99: pointermove | C99: COLOR_BROWN-DOT_1 | D99: 284.8000183 | E99: 308.2000122 | F99: COLOR_DOT
A100: 4277 | B100: pointermove | C100: COLOR_BROWN-DOT_1 | D100: 283.2000122 | E100: 303.3999939 | F100: COLOR_DOT
A101: 4287 | B101: pointermove | C101: COLOR_BROWN-DOT_1 | D101: 282.3999939 | E101: 299.3999939 | F101: COLOR_DOT
A102: 4305 | B102: pointermove | C102: COLOR_BROWN-DOT_1 | D102: 281.6000061 | E102: 296.2000122 | F102: COLOR_DOT
A103: 4318 | B103: pointermove | C103: COLOR_BROWN-DOT_1 | D103: 281.6000061 | E103: 295.3999939 | F103: COLOR_DOT
A104: 4332 | B104: pointermove | C104: COLOR_BROWN-DOT_1 | D104: 281.6000061 | E104: 294.6000061 | F104: COLOR_DOT
A105: 4441 | B105: pointermove | C105: COLOR_BROWN-DOT_1 | D105: 281.6000061 | E105: 293.8000183 | F105: COLOR_DOT
A106: 4476 | B106: pointermove | C106: COLOR_BROWN-DOT_1 | D106: 280.8000183 | E106: 293.8000183 | F106: COLOR_DOT
A107: 4557 | B107: pointerup | C107: COLOR_BROWN-DOT_1 | D107: 280.8000183 | E107: 293.8000183 | F107: COLOR_DOT
A108: 5480 | B108: pointerdown | C108: COLOR_BLUE-DOT_1 | D108: 920.7999878 | E108: 641 | F108: COLOR_DOT
A109: 5492 | B109: pointermove | C109: COLOR_BLUE-DOT_1 | D109: 916.7999878 | E109: 641 | F109: COLOR_DOT
A110: 5509 | B110: pointermove | C110: COLOR_BLUE-DOT_1 | D110: 907.2000122 | E110: 640.2000122 | F110: COLOR_DOT
A111: 5520 | B111: pointermove | C111: COLOR_BLUE-DOT_1 | D111: 899.2000122 | E111: 640.2000122 | F111: COLOR_DOT
A112: 5541 | B112: pointermove | C112: COLOR_BLUE-DOT_1 | D112: 881.6000366 | E112: 638.6000366 | F112: COLOR_DOT
A113: 5557 | B113: pointermove | C113: COLOR_BLUE-DOT_1 | D113: 860 | E113: 638.6000366 | F113: COLOR_DOT
A114: 5576 | B114: pointermove | C114: COLOR_BLUE-DOT_1 | D114: 828.7999878 | E114: 637.7999878 | F114: COLOR_DOT
A115: 5592 | B115: pointermove | C115: COLOR_BLUE-DOT_1 | D115: 784 | E115: 634.6000366 | F115: COLOR_DOT
A116: 5609 | B116: pointermove | C116: COLOR_BLUE-DOT_1 | D116: 740 | E116: 628.2000122 | F116: COLOR_DOT
A117: 5627 | B117: pointermove | C117: COLOR_BLUE-DOT_1 | D117: 684.7999878 | E117: 619.4000244 | F117: COLOR_DOT
A118: 5640 | B118: pointermove | C118: COLOR_BLUE-DOT_1 | D118: 654.4000244 | E118: 614.6000366 | F118: COLOR_DOT
A119: 5655 | B119: pointermove | C119: COLOR_BLUE-DOT_1 | D119: 624 | E119: 607.4000244 | F119: COLOR_DOT
A120: 5675 | B120: pointermove | C120: COLOR_BLUE-DOT_1 | D120: 613.6000366 | E120: 601 | F120: COLOR_DOT
A121: 5831 | B121: pointermove | C121: COLOR_BLUE-DOT_1 | D121: 606.4000244 | E121: 602.6000366 | F121: COLOR_DOT
A122: 5840 | B122: pointermove | C122: COLOR_BLUE-DOT_1 | D122: 592.7999878 | E122: 606.6000366 | F122: COLOR_DOT
A123: 5861 | B123: pointermove | C123: COLOR_BLUE-DOT_1 | D123: 552 | E123: 613.7999878 | F123: COLOR_DOT
A124: 5874 | B124: pointermove | C124: COLOR_BLUE-DOT_1 | D124: 503.2000122 | E124: 621.7999878 | F124: COLOR_DOT
A125: 5891 | B125: pointermove | C125: COLOR_BLUE-DOT_1 | D125: 458.3999939 | E125: 623.4000244 | F125: COLOR_DOT
A126: 5909 | B126: pointermove | C126: COLOR_BLUE-DOT_1 | D126: 414.3999939 | E126: 623.4000244 | F126: COLOR_DOT
A127: 5920 | B127: pointermove | C127: COLOR_BLUE-DOT_1 | D127: 393.6000061 | E127: 623.4000244 | F127: COLOR_DOT
A128: 5941 | B128: pointermove | C128: COLOR_BLUE-DOT_1 | D128: 372.8000183 | E128: 625.7999878 | F128: COLOR_DOT
A129: 5958 | B129: pointermove | C129: COLOR_BLUE-DOT_1 | D129: 368 | E129: 627.4000244 | F129: COLOR_DOT
A130: 5966 | B130: pointermove | C130: COLOR_BLUE-DOT_1 | D130: 368 | E130: 626.6000366 | F130: COLOR_DOT
A131: 6110 | B131: pointermove | C131: COLOR_BLUE-DOT_1 | D131: 367.2000122 | E131: 627.4000244 | F131: COLOR_DOT
A132: 6120 | B132: pointermove | C132: COLOR_BLUE-DOT_1 | D132: 365.6000061 | E132: 629 | F132: COLOR_DOT
A133: 6139 | B133: pointermove | C133: COLOR_BLUE-DOT_1 | D133: 358.3999939 | E133: 633 | F133: COLOR_DOT
A134: 6160 | B134: pointermove | C134: COLOR_BLUE-DOT_1 | D134: 348.8000183 | E134: 637.7999878 | F134: COLOR_DOT
A135: 6175 | B135: pointermove | C135: COLOR_BLUE-DOT_1 | D135: 338.3999939 | E135: 641 | F135: COLOR_DOT
A136: 6192 | B136: pointermove | C136: COLOR_BLUE-DOT_1 | D136: 327.2000122 | E136: 641.7999878 | F136: COLOR_DOT
A137: 6209 | B137: pointermove | C137: COLOR_BLUE-DOT_1 | D137: 316 | E137: 644.2000122 | F137: COLOR_DOT
A138: 6220 | B138: pointermove | C138: COLOR_BLUE-DOT_1 | D138: 309.6000061 | E138: 645 | F138: COLOR_DOT
A139: 6240 | B139: pointermove | C139: COLOR_BLUE-DOT_1 | D139: 301.6000061 | E139: 647.4000244 | F139: COLOR_DOT
A140: 6255 | B140: pointermove | C140: COLOR_BLUE-DOT_1 | D140: 296.8000183 | E140: 649.7999878 | F140: COLOR_DOT
A141: 6274 | B141: pointermove | C141: COLOR_BLUE-DOT_1 | D141: 291.2000122 | E141: 653 | F141: COLOR_DOT
A142: 6291 | B142: pointermove | C142: COLOR_BLUE-DOT_1 | D142: 287.2000122 | E142: 656.2000122 | F142: COLOR_DOT
A143: 6309 | B143: pointermove | C143: COLOR_BLUE-DOT_1 | D143: 284 | E143: 657.7999878 | F143: COLOR_DOT
A144: 6319 | B144: pointermove | C144: COLOR_BLUE-DOT_1 | D144: 282.3999939 | E144: 658.6000366 | F144: COLOR_DOT
A145: 6338 | B145: pointermove | C145: COLOR_BLUE-DOT_1 | D145: 280.8000183 | E145: 658.6000366 | F145: COLOR_DOT
A146: 6356 | B146: pointermove | C146: COLOR_BLUE-DOT_1 | D146: 280 | E146: 658.6000366 | F146: COLOR_DOT
A147: 6421 | B147: pointermove | C147: COLOR_BLUE-DOT_1 | D147: 280.8000183 | E147: 659.4000244 | F147: COLOR_DOT
A148: 6505 | B148: pointerup | C148: COLOR_BLUE-DOT_1 | D148: 280.8000183 | E148: 659.4000244 | F148: COLOR_DOT
A149: 7607 | B149: pointerdown | C149: COLOR_BROWN-DOT_2 | D149: 1158.400024 | E149: 157 | F149: COLOR_DOT
A150: 7609 | B150: pointermove | C150: COLOR_BROWN-DOT_2 | D150: 1157.599976 | E150: 157 | F150: COLOR_DOT
A151: 7623 | B151: pointermove | C151: COLOR_BROWN-DOT_2 | D151: 1155.200073 | E151: 157.8000031 | F151: COLOR_DOT
A152: 7639 | B152: pointermove | C152: COLOR_BROWN-DOT_2 | D152: 1145.599976 | E152: 161.8000031 | F152: COLOR_DOT
A153: 7658 | B153: pointermove | C153: COLOR_BROWN-DOT_2 | D153: 1126.400024 | E153: 169.8000031 | F153: COLOR_DOT
A154: 7676 | B154: pointermove | C154: COLOR_BROWN-DOT_2 | D154: 1096.800049 | E154: 184.1999969 | F154: COLOR_DOT
A155: 7693 | B155: pointermove | C155: COLOR_BROWN-DOT_2 | D155: 1060.800049 | E155: 201.8000336 | F155: COLOR_DOT
A156: 7709 | B156: pointermove | C156: COLOR_BROWN-DOT_2 | D156: 1024.800049 | E156: 215.4000092 | F156: COLOR_DOT
A157: 7719 | B157: pointermove | C157: COLOR_BROWN-DOT_2 | D157: 994.4000244 | E157: 228.1999969 | F157: COLOR_DOT
A158: 7739 | B158: pointermove | C158: COLOR_BROWN-DOT_2 | D158: 944 | E158: 249.8000336 | F158: COLOR_DOT
A159: 7758 | B159: pointermove | C159: COLOR_BROWN-DOT_2 | D159: 900 | E159: 263.3999939 | F159: COLOR_DOT
A160: 7774 | B160: pointermove | C160: COLOR_BROWN-DOT_2 | D160: 873.6000366 | E160: 269 | F160: COLOR_DOT
A161: 7793 | B161: pointermove | C161: COLOR_BROWN-DOT_2 | D161: 865.6000366 | E161: 269.8000183 | F161: COLOR_DOT
A162: 7949 | B162: pointermove | C162: COLOR_BROWN-DOT_2 | D162: 864.7999878 | E162: 270.6000061 | F162: COLOR_DOT
A163: 7960 | B163: pointermove | C163: COLOR_BROWN-DOT_2 | D163: 856 | E163: 273.8000183 | F163: COLOR_DOT
A164: 7975 | B164: pointermove | C164: COLOR_BROWN-DOT_2 | D164: 819.2000122 | E164: 288.2000122 | F164: COLOR_DOT
A165: 7993 | B165: pointermove | C165: COLOR_BROWN-DOT_2 | D165: 767.2000122 | E165: 303.3999939 | F165: COLOR_DOT
A166: 8009 | B166: pointermove | C166: COLOR_BROWN-DOT_2 | D166: 708.7999878 | E166: 316.2000122 | F166: COLOR_DOT
A167: 8023 | B167: pointermove | C167: COLOR_BROWN-DOT_2 | D167: 663.2000122 | E167: 324.2000122 | F167: COLOR_DOT
A168: 8038 | B168: pointermove | C168: COLOR_BROWN-DOT_2 | D168: 597.6000366 | E168: 333.8000183 | F168: COLOR_DOT
A169: 8058 | B169: pointermove | C169: COLOR_BROWN-DOT_2 | D169: 560.7999878 | E169: 337.8000183 | F169: COLOR_DOT
A170: 8074 | B170: pointermove | C170: COLOR_BROWN-DOT_2 | D170: 545.6000366 | E170: 339.3999939 | F170: COLOR_DOT
A171: 8082 | B171: pointermove | C171: COLOR_BROWN-DOT_2 | D171: 544 | E171: 340.2000122 | F171: COLOR_DOT
A172: 8248 | B172: pointermove | C172: COLOR_BROWN-DOT_2 | D172: 543.2000122 | E172: 340.2000122 | F172: COLOR_DOT
A173: 8256 | B173: pointermove | C173: COLOR_BROWN-DOT_2 | D173: 541.6000366 | E173: 338.6000061 | F173: COLOR_DOT
A174: 8274 | B174: pointermove | C174: COLOR_BROWN-DOT_2 | D174: 536 | E174: 333.8000183 | F174: COLOR_DOT
A175: 8292 | B175: pointermove | C175: COLOR_BROWN-DOT_2 | D175: 527.2000122 | E175: 321.8000183 | F175: COLOR_DOT
A176: 8309 | B176: pointermove | C176: COLOR_BROWN-DOT_2 | D176: 517.6000366 | E176: 309.8000183 | F176: COLOR_DOT
A177: 8322 | B177: pointermove | C177: COLOR_BROWN-DOT_2 | D177: 512.7999878 | E177: 303.3999939 | F177: COLOR_DOT
A178: 8338 | B178: pointermove | C178: COLOR_BROWN-DOT_2 | D178: 509.6000061 | E178: 299.3999939 | F178: COLOR_DOT
A179: 8356 | B179: pointermove | C179: COLOR_BROWN-DOT_2 | D179: 507.2000122 | E179: 297.8000183 | F179: COLOR_DOT
A180: 8376 | B180: pointermove | C180: COLOR_BROWN-DOT_2 | D180: 503.2000122 | E180: 296.2000122 | F180: COLOR_DOT
A181: 8391 | B181: pointermove | C181: COLOR_BROWN-DOT_2 | D181: 498.3999939 | E181: 293.8000183 | F181: COLOR_DOT
A182: 8409 | B182: pointermove | C182: COLOR_BROWN-DOT_2 | D182: 493.6000061 | E182: 292.2000122 | F182: COLOR_DOT
A183: 8417 | B183: pointermove | C183: COLOR_BROWN-DOT_2 | D183: 491.2000122 | E183: 289.8000183 | F183: COLOR_DOT
A184: 8437 | B184: pointermove | C184: COLOR_BROWN-DOT_2 | D184: 487.2000122 | E184: 287.3999939 | F184: COLOR_DOT
A185: 8458 | B185: pointermove | C185: COLOR_BROWN-DOT_2 | D185: 486.3999939 | E185: 285.8000183 | F185: COLOR_DOT
A186: 8464 | B186: pointermove | C186: COLOR_BROWN-DOT_2 | D186: 484.8000183 | E186: 285.8000183 | F186: COLOR_DOT
A187: 8649 | B187: pointerup | C187: COLOR_BROWN-DOT_2 | D187: 484.8000183 | E187: 285.8000183 | F187: COLOR_DOT
A188: 9708 | B188: pointerdown | C188: COLOR_GREEN-DOT_1 | D188: 1386.400024 | E188: 193.8000336 | F188: COLOR_DOT
A189: 9708 | B189: pointermove | C189: COLOR_GREEN-DOT_1 | D189: 1385.599976 | E189: 193.8000336 | F189: COLOR_DOT
A190: 9724 | B190: pointermove | C190: COLOR_GREEN-DOT_1 | D190: 1380 | E190: 195.4000092 | F190: COLOR_DOT
A191: 9742 | B191: pointermove | C191: COLOR_GREEN-DOT_1 | D191: 1366.400024 | E191: 198.6000061 | F191: COLOR_DOT
A192: 9751 | B192: pointermove | C192: COLOR_GREEN-DOT_1 | D192: 1352 | E192: 202.6000061 | F192: COLOR_DOT
A193: 9771 | B193: pointermove | C193: COLOR_GREEN-DOT_1 | D193: 1323.200073 | E193: 210.6000061 | F193: COLOR_DOT
A194: 9792 | B194: pointermove | C194: COLOR_GREEN-DOT_1 | D194: 1280.800049 | E194: 221.8000336 | F194: COLOR_DOT
A195: 9808 | B195: pointermove | C195: COLOR_GREEN-DOT_1 | D195: 1235.200073 | E195: 233.8000336 | F195: COLOR_DOT
A196: 9824 | B196: pointermove | C196: COLOR_GREEN-DOT_1 | D196: 1196.800049 | E196: 246.6000061 | F196: COLOR_DOT
A197: 9841 | B197: pointermove | C197: COLOR_GREEN-DOT_1 | D197: 1158.400024 | E197: 260.2000122 | F197: COLOR_DOT
A198: 9852 | B198: pointermove | C198: COLOR_GREEN-DOT_1 | D198: 1140 | E198: 268.2000122 | F198: COLOR_DOT
A199: 9872 | B199: pointermove | C199: COLOR_GREEN-DOT_1 | D199: 1127.200073 | E199: 273 | F199: COLOR_DOT
A200: 9888 | B200: pointermove | C200: COLOR_GREEN-DOT_1 | D200: 1126.400024 | E200: 272.2000122 | F200: COLOR_DOT
A201: 10022 | B201: pointermove | C201: COLOR_GREEN-DOT_1 | D201: 1122.400024 | E201: 272.2000122 | F201: COLOR_DOT
... 209 more rows

Sheet f5_a2_p1
A1: CTRL+SHIFT+R
C3: Sorcímkék | D3: Mennyiség / element | E3: hol.van
C4: ALL | D4: 1 | E4: =MATCH(C_P!C4,'C'!$C:$C,0) -> 13
C5: IRL-€01 | D5: 46 | E5: =MATCH(C_P!C5,'C'!$C:$C,0) -> 202
C6: IRL-€02 | D6: 117 | E6: =MATCH(C_P!C6,'C'!$C:$C,0) -> 14
C7: IRL-€20 | D7: 71 | E7: =MATCH(C_P!C7,'C'!$C:$C,0) -> 131
C8: SMR-€01 | D8: 155 | E8: =MATCH(C_P!C8,'C'!$C:$C,0) -> 525
C9: SMR-€02 | D9: 30 | E9: =MATCH(C_P!C9,'C'!$C:$C,0) -> 716
C10: SMR-€20 | D10: 58 | E10: =MATCH(C_P!C10,'C'!$C:$C,0) -> 746
C11: SVK-€01 | D11: 36 | E11: =MATCH(C_P!C11,'C'!$C:$C,0) -> 680
C12: SVK-€02 | D12: 206 | E12: =MATCH(C_P!C12,'C'!$C:$C,0) -> 248
C13: SVK-€20 | D13: 71 | E13: =MATCH(C_P!C13,'C'!$C:$C,0) -> 454
C14: Végösszeg | D14: 791

Sheet C
A1: element | B1: sourceX | C1: sourceY | D1: sourceW | E1: sourceH | F1: targetX | G1: targetY | H1: targetW | I1: targetH | J1: Válaszkártyák (f1.xlsx) | K1: Időigény | L1: Sebesség3
A2: SVK-€01 | B2: 938 | C2: 167 | D2: 152 | E2: 152 | F2: 470 | G2: 468 | H2: 171 | I2: 171 | J2: IRL-€02 | K2: 2272 | L2: =VLOOKUP(J2,C_eredmeny!$A$1:$B$9,2,0)/K2 -> 0.8088391627
A3: IRL-€01 | B3: 1166 | C3: 167 | D3: 152 | E3: 152 | F3: 470 | G3: 296 | H3: 171 | I3: 171 | J3: IRL-€20 | K3: 1269 | L3: =VLOOKUP(J3,C_eredmeny!$A$1:$B$9,2,0)/K3 -> 0.6104521946
A4: SVK-€02 | B4: 1394 | C4: 167 | D4: 152 | E4: 152 | F4: 298 | G4: 468 | H4: 171 | I4: 171 | J4: IRL-€01 | K4: 857 | L4: =VLOOKUP(J4,C_eredmeny!$A$1:$B$9,2,0)/K4 -> 0.7702267835
A5: IRL-€02 | B5: 938 | C5: 395 | D5: 152 | E5: 152 | F5: 298 | G5: 296 | H5: 171 | I5: 171 | J5: SVK-€02 | K5: 3604 | L5: =VLOOKUP(J5,C_eredmeny!$A$1:$B$9,2,0)/K5 -> 0.3115394021
A6: SMR-€20 | B6: 1166 | C6: 395 | D6: 152 | E6: 152 | F6: 643 | G6: 640 | H6: 171 | I6: 171 | J6: SVK-€20 | K6: 1288 | L6: =VLOOKUP(J6,C_eredmeny!$A$1:$B$9,2,0)/K6 -> 0.5718661874
A7: SVK-€20 | B7: 1394 | C7: 395 | D7: 152 | E7: 152 | F7: 643 | G7: 468 | H7: 171 | I7: 171 | J7: SMR-€01 | K7: 3178 | L7: =VLOOKUP(J7,C_eredmeny!$A$1:$B$9,2,0)/K7 -> 0.9123941895
A8: SMR-€02 | B8: 938 | C8: 624 | D8: 152 | E8: 152 | F8: 298 | G8: 640 | H8: 171 | I8: 171 | J8: SVK-€01 | K8: 704 | L8: =VLOOKUP(J8,C_eredmeny!$A$1:$B$9,2,0)/K8 -> 0.7823720235
A9: SMR-€01 | B9: 1166 | C9: 624 | D9: 152 | E9: 152 | F9: 470 | G9: 640 | H9: 171 | I9: 171 | J9: SMR-€02 | K9: 545 | L9: =VLOOKUP(J9,C_eredmeny!$A$1:$B$9,2,0)/K9 -> 1.113709882
A10: IRL-€20 | B10: 1394 | C10: 624 | D10: 152 | E10: 152 | F10: 643 | G10: 296 | H10: 171 | I10: 171 | J10: SMR-€20 | K10: 1094 | L10: =VLOOKUP(J10,C_eredmeny!$A$1:$B$9,2,0)/K10 -> 1.758074612
A12: time | B12: event | C12: element | D12: x | E12: y | F12: game
A13: 0 | B13: START | C13: ALL | D13: 0 | E13: 0 | F13: EUR_COIN
A14: 9775 | B14: pointerdown | C14: IRL-€02 | D14: 928.7999878 | E14: 404.2000122 | F14: EUR_COIN
A15: 9915 | B15: pointermove | C15: IRL-€02 | D15: 925.6000366 | E15: 405 | F15: EUR_COIN
A16: 9927 | B16: pointermove | C16: IRL-€02 | D16: 912.7999878 | E16: 412.2000122 | F16: EUR_COIN
A17: 9943 | B17: pointermove | C17: IRL-€02 | D17: 888 | E17: 430.6000061 | F17: EUR_COIN
A18: 9960 | B18: pointermove | C18: IRL-€02 | D18: 858.4000244 | E18: 450.6000671 | F18: EUR_COIN
A19: 9978 | B19: pointermove | C19: IRL-€02 | D19: 821.6000366 | E19: 476.2000122 | F19: EUR_COIN
A20: 9988 | B20: pointermove | C20: IRL-€02 | D20: 800 | E20: 490.6000671 | F20: EUR_COIN
A21: 10007 | B21: pointermove | C21: IRL-€02 | D21: 769.6000366 | E21: 509 | F21: EUR_COIN
A22: 10028 | B22: pointermove | C22: IRL-€02 | D22: 741.6000366 | E22: 518.6000366 | F22: EUR_COIN
A23: 10042 | B23: pointermove | C23: IRL-€02 | D23: 718.4000244 | E23: 525 | F23: EUR_COIN
A24: 10058 | B24: pointermove | C24: IRL-€02 | D24: 698.4000244 | E24: 529.7999878 | F24: EUR_COIN
A25: 10077 | B25: pointermove | C25: IRL-€02 | D25: 678.4000244 | E25: 536.2000122 | F25: EUR_COIN
A26: 10087 | B26: pointermove | C26: IRL-€02 | D26: 671.2000122 | E26: 537.7999878 | F26: EUR_COIN
A27: 10107 | B27: pointermove | C27: IRL-€02 | D27: 657.6000366 | E27: 541 | F27: EUR_COIN
A28: 10122 | B28: pointermove | C28: IRL-€02 | D28: 646.4000244 | E28: 541.7999878 | F28: EUR_COIN
A29: 10142 | B29: pointermove | C29: IRL-€02 | D29: 634.4000244 | E29: 544.2000122 | F29: EUR_COIN
A30: 10162 | B30: pointermove | C30: IRL-€02 | D30: 621.6000366 | E30: 545 | F30: EUR_COIN
A31: 10177 | B31: pointermove | C31: IRL-€02 | D31: 608 | E31: 545.7999878 | F31: EUR_COIN
A32: 10193 | B32: pointermove | C32: IRL-€02 | D32: 594.4000244 | E32: 548.2000122 | F32: EUR_COIN
A33: 10211 | B33: pointermove | C33: IRL-€02 | D33: 571.2000122 | E33: 555.4000244 | F33: EUR_COIN
A34: 10222 | B34: pointermove | C34: IRL-€02 | D34: 557.6000366 | E34: 561 | F34: EUR_COIN
A35: 10242 | B35: pointermove | C35: IRL-€02 | D35: 537.6000366 | E35: 568.2000122 | F35: EUR_COIN
A36: 10257 | B36: pointermove | C36: IRL-€02 | D36: 522.4000244 | E36: 576.2000122 | F36: EUR_COIN
A37: 10277 | B37: pointermove | C37: IRL-€02 | D37: 508.8000183 | E37: 585.7999878 | F37: EUR_COIN
A38: 10293 | B38: pointermove | C38: IRL-€02 | D38: 493.6000061 | E38: 597 | F38: EUR_COIN
A39: 10310 | B39: pointermove | C39: IRL-€02 | D39: 482.3999939 | E39: 604.2000122 | F39: EUR_COIN
A40: 10327 | B40: pointermove | C40: IRL-€02 | D40: 473.6000061 | E40: 607.4000244 | F40: EUR_COIN
A41: 10345 | B41: pointermove | C41: IRL-€02 | D41: 464.8000183 | E41: 609.7999878 | F41: EUR_COIN
A42: 10357 | B42: pointermove | C42: IRL-€02 | D42: 460.8000183 | E42: 609.7999878 | F42: EUR_COIN
A43: 10374 | B43: pointermove | C43: IRL-€02 | D43: 455.2000122 | E43: 611.4000244 | F43: EUR_COIN
A44: 10392 | B44: pointermove | C44: IRL-€02 | D44: 449.6000061 | E44: 612.2000122 | F44: EUR_COIN
A45: 10408 | B45: pointermove | C45: IRL-€02 | D45: 444.8000183 | E45: 613.7999878 | F45: EUR_COIN
A46: 10427 | B46: pointermove | C46: IRL-€02 | D46: 437.6000061 | E46: 616.2000122 | F46: EUR_COIN
A47: 10444 | B47: pointermove | C47: IRL-€02 | D47: 432 | E47: 617 | F47: EUR_COIN
A48: 10457 | B48: pointermove | C48: IRL-€02 | D48: 426.3999939 | E48: 617 | F48: EUR_COIN
A49: 10472 | B49: pointermove | C49: IRL-€02 | D49: 418.3999939 | E49: 616.2000122 | F49: EUR_COIN
A50: 10492 | B50: pointermove | C50: IRL-€02 | D50: 412.8000183 | E50: 616.2000122 | F50: EUR_COIN
A51: 10507 | B51: pointermove | C51: IRL-€02 | D51: 407.2000122 | E51: 616.2000122 | F51: EUR_COIN
A52: 10527 | B52: pointermove | C52: IRL-€02 | D52: 401.6000061 | E52: 616.2000122 | F52: EUR_COIN
A53: 10544 | B53: pointermove | C53: IRL-€02 | D53: 396 | E53: 616.2000122 | F53: EUR_COIN
A54: 10560 | B54: pointermove | C54: IRL-€02 | D54: 393.6000061 | E54: 616.2000122 | F54: EUR_COIN
A55: 10578 | B55: pointermove | C55: IRL-€02 | D55: 386.3999939 | E55: 617.7999878 | F55: EUR_COIN
A56: 10587 | B56: pointermove | C56: IRL-€02 | D56: 382.3999939 | E56: 618.6000366 | F56: EUR_COIN
A57: 10607 | B57: pointermove | C57: IRL-€02 | D57: 376.8000183 | E57: 621 | F57: EUR_COIN
A58: 10623 | B58: pointermove | C58: IRL-€02 | D58: 372 | E58: 621.7999878 | F58: EUR_COIN
A59: 10642 | B59: pointermove | C59: IRL-€02 | D59: 370.3999939 | E59: 621.7999878 | F59: EUR_COIN
A60: 10659 | B60: pointermove | C60: IRL-€02 | D60: 368 | E60: 621.7999878 | F60: EUR_COIN
A61: 10677 | B61: pointermove | C61: IRL-€02 | D61: 365.6000061 | E61: 621.7999878 | F61: EUR_COIN
A62: 10692 | B62: pointermove | C62: IRL-€02 | D62: 364 | E62: 621.7999878 | F62: EUR_COIN
A63: 10710 | B63: pointermove | C63: IRL-€02 | D63: 361.6000061 | E63: 621.7999878 | F63: EUR_COIN
A64: 10728 | B64: pointermove | C64: IRL-€02 | D64: 360 | E64: 621.7999878 | F64: EUR_COIN
A65: 10737 | B65: pointermove | C65: IRL-€02 | D65: 358.3999939 | E65: 621.7999878 | F65: EUR_COIN
A66: 10754 | B66: pointermove | C66: IRL-€02 | D66: 356.8000183 | E66: 622.6000366 | F66: EUR_COIN
A67: 10772 | B67: pointermove | C67: IRL-€02 | D67: 354.3999939 | E67: 622.6000366 | F67: EUR_COIN
A68: 10790 | B68: pointermove | C68: IRL-€02 | D68: 352 | E68: 623.4000244 | F68: EUR_COIN
A69: 10808 | B69: pointermove | C69: IRL-€02 | D69: 350.3999939 | E69: 623.4000244 | F69: EUR_COIN
A70: 10827 | B70: pointermove | C70: IRL-€02 | D70: 348 | E70: 623.4000244 | F70: EUR_COIN
A71: 10843 | B71: pointermove | C71: IRL-€02 | D71: 346.3999939 | E71: 623.4000244 | F71: EUR_COIN
A72: 10861 | B72: pointermove | C72: IRL-€02 | D72: 344 | E72: 623.4000244 | F72: EUR_COIN
A73: 10870 | B73: pointermove | C73: IRL-€02 | D73: 343.2000122 | E73: 623.4000244 | F73: EUR_COIN
A74: 10882 | B74: pointerup | C74: IRL-€02 | D74: 343.2000122 | E74: 623.4000244 | F74: EUR_COIN
A75: 12207 | B75: pointerdown | C75: IRL-€02 | D75: 880.7999878 | E75: 413 | F75: EUR_COIN
A76: 12416 | B76: pointermove | C76: IRL-€02 | D76: 880 | E76: 413 | F76: EUR_COIN
A77: 12425 | B77: pointermove | C77: IRL-€02 | D77: 876.7999878 | E77: 413 | F77: EUR_COIN
A78: 12444 | B78: pointermove | C78: IRL-€02 | D78: 869.6000366 | E78: 413 | F78: EUR_COIN
A79: 12459 | B79: pointermove | C79: IRL-€02 | D79: 864 | E79: 413 | F79: EUR_COIN
A80: 12477 | B80: pointermove | C80: IRL-€02 | D80: 856 | E80: 411.3999939 | F80: EUR_COIN
A81: 12489 | B81: pointermove | C81: IRL-€02 | D81: 849.6000366 | E81: 411.3999939 | F81: EUR_COIN
A82: 12509 | B82: pointermove | C82: IRL-€02 | D82: 840 | E82: 411.3999939 | F82: EUR_COIN
A83: 12524 | B83: pointermove | C83: IRL-€02 | D83: 834.4000244 | E83: 411.3999939 | F83: EUR_COIN
A84: 12544 | B84: pointermove | C84: IRL-€02 | D84: 828 | E84: 411.3999939 | F84: EUR_COIN
A85: 12558 | B85: pointermove | C85: IRL-€02 | D85: 821.6000366 | E85: 411.3999939 | F85: EUR_COIN
A86: 12575 | B86: pointermove | C86: IRL-€02 | D86: 813.6000366 | E86: 411.3999939 | F86: EUR_COIN
A87: 12593 | B87: pointermove | C87: IRL-€02 | D87: 805.6000366 | E87: 411.3999939 | F87: EUR_COIN
A88: 12604 | B88: pointermove | C88: IRL-€02 | D88: 799.2000122 | E88: 413 | F88: EUR_COIN
A89: 12623 | B89: pointermove | C89: IRL-€02 | D89: 783.2000122 | E89: 416.2000122 | F89: EUR_COIN
A90: 12639 | B90: pointermove | C90: IRL-€02 | D90: 761.6000366 | E90: 421.8000183 | F90: EUR_COIN
A91: 12658 | B91: pointermove | C91: IRL-€02 | D91: 734.4000244 | E91: 426.6000061 | F91: EUR_COIN
A92: 12675 | B92: pointermove | C92: IRL-€02 | D92: 696 | E92: 429 | F92: EUR_COIN
A93: 12694 | B93: pointermove | C93: IRL-€02 | D93: 640 | E93: 425 | F93: EUR_COIN
A94: 12710 | B94: pointermove | C94: IRL-€02 | D94: 587.2000122 | E94: 414.6000061 | F94: EUR_COIN
A95: 12720 | B95: pointermove | C95: IRL-€02 | D95: 552.7999878 | E95: 405 | F95: EUR_COIN
A96: 12738 | B96: pointermove | C96: IRL-€02 | D96: 504.8000183 | E96: 385 | F96: EUR_COIN
A97: 12759 | B97: pointermove | C97: IRL-€02 | D97: 469.6000061 | E97: 366.6000061 | F97: EUR_COIN
A98: 12774 | B98: pointermove | C98: IRL-€02 | D98: 450.3999939 | E98: 359.3999939 | F98: EUR_COIN
A99: 12790 | B99: pointermove | C99: IRL-€02 | D99: 443.2000122 | E99: 357.8000183 | F99: EUR_COIN
A100: 12794 | B100: pointermove | C100: IRL-€02 | D100: 442.3999939 | E100: 357.8000183 | F100: EUR_COIN
A101: 12853 | B101: pointermove | C101: IRL-€02 | D101: 442.3999939 | E101: 357 | F101: EUR_COIN
A102: 12944 | B102: pointermove | C102: IRL-€02 | D102: 442.3999939 | E102: 356.2000122 | F102: EUR_COIN
A103: 12954 | B103: pointermove | C103: IRL-€02 | D103: 440.8000183 | E103: 355.3999939 | F103: EUR_COIN
A104: 12975 | B104: pointermove | C104: IRL-€02 | D104: 438.3999939 | E104: 353 | F104: EUR_COIN
A105: 12989 | B105: pointermove | C105: IRL-€02 | D105: 432 | E105: 349.8000183 | F105: EUR_COIN
A106: 13010 | B106: pointermove | C106: IRL-€02 | D106: 421.6000061 | E106: 348.2000122 | F106: EUR_COIN
A107: 13025 | B107: pointermove | C107: IRL-€02 | D107: 407.2000122 | E107: 348.2000122 | F107: EUR_COIN
A108: 13042 | B108: pointermove | C108: IRL-€02 | D108: 392 | E108: 350.6000061 | F108: EUR_COIN
A109: 13060 | B109: pointermove | C109: IRL-€02 | D109: 376.8000183 | E109: 355.3999939 | F109: EUR_COIN
A110: 13070 | B110: pointermove | C110: IRL-€02 | D110: 364.8000183 | E110: 358.6000061 | F110: EUR_COIN
A111: 13090 | B111: pointermove | C111: IRL-€02 | D111: 350.3999939 | E111: 362.6000061 | F111: EUR_COIN
A112: 13110 | B112: pointermove | C112: IRL-€02 | D112: 339.2000122 | E112: 365 | F112: EUR_COIN
A113: 13124 | B113: pointermove | C113: IRL-€02 | D113: 328.8000183 | E113: 366.6000061 | F113: EUR_COIN
A114: 13142 | B114: pointermove | C114: IRL-€02 | D114: 321.6000061 | E114: 368.2000122 | F114: EUR_COIN
A115: 13159 | B115: pointermove | C115: IRL-€02 | D115: 313.6000061 | E115: 368.2000122 | F115: EUR_COIN
A116: 13170 | B116: pointermove | C116: IRL-€02 | D116: 311.2000122 | E116: 368.2000122 | F116: EUR_COIN
A117: 13190 | B117: pointermove | C117: IRL-€02 | D117: 308 | E117: 368.2000122 | F117: EUR_COIN
A118: 13205 | B118: pointermove | C118: IRL-€02 | D118: 304 | E118: 368.2000122 | F118: EUR_COIN
A119: 13225 | B119: pointermove | C119: IRL-€02 | D119: 300.8000183 | E119: 368.2000122 | F119: EUR_COIN
A120: 13244 | B120: pointermove | C120: IRL-€02 | D120: 299.2000122 | E120: 368.2000122 | F120: EUR_COIN
A121: 13259 | B121: pointermove | C121: IRL-€02 | D121: 296.8000183 | E121: 368.2000122 | F121: EUR_COIN
A122: 13269 | B122: pointermove | C122: IRL-€02 | D122: 295.2000122 | E122: 368.2000122 | F122: EUR_COIN
A123: 13289 | B123: pointermove | C123: IRL-€02 | D123: 293.6000061 | E123: 368.2000122 | F123: EUR_COIN
A124: 13304 | B124: pointermove | C124: IRL-€02 | D124: 291.2000122 | E124: 368.2000122 | F124: EUR_COIN
A125: 13325 | B125: pointermove | C125: IRL-€02 | D125: 288.8000183 | E125: 368.2000122 | F125: EUR_COIN
A126: 13339 | B126: pointermove | C126: IRL-€02 | D126: 287.2000122 | E126: 368.2000122 | F126: EUR_COIN
A127: 13359 | B127: pointermove | C127: IRL-€02 | D127: 284.8000183 | E127: 367.3999939 | F127: EUR_COIN
A128: 13375 | B128: pointermove | C128: IRL-€02 | D128: 283.2000122 | E128: 366.6000061 | F128: EUR_COIN
A129: 13384 | B129: pointermove | C129: IRL-€02 | D129: 281.6000061 | E129: 365 | F129: EUR_COIN
A130: 13395 | B130: pointerup | C130: IRL-€02 | D130: 281.6000061 | E130: 365 | F130: EUR_COIN
A131: 15864 | B131: pointerdown | C131: IRL-€20 | D131: 1392.800049 | E131: 621 | F131: EUR_COIN
A132: 16013 | B132: pointermove | C132: IRL-€20 | D132: 1392 | E132: 621 | F132: EUR_COIN
A133: 16022 | B133: pointermove | C133: IRL-€20 | D133: 1380 | E133: 621 | F133: EUR_COIN
A134: 16037 | B134: pointermove | C134: IRL-€20 | D134: 1340 | E134: 621 | F134: EUR_COIN
A135: 16057 | B135: pointermove | C135: IRL-€20 | D135: 1285.599976 | E135: 614.6000366 | F135: EUR_COIN
A136: 16073 | B136: pointermove | C136: IRL-€20 | D136: 1217.599976 | E136: 599.4000244 | F136: EUR_COIN
A137: 16092 | B137: pointermove | C137: IRL-€20 | D137: 1144.800049 | E137: 577 | F137: EUR_COIN
A138: 16107 | B138: pointermove | C138: IRL-€20 | D138: 1079.200073 | E138: 546.6000366 | F138: EUR_COIN
A139: 16125 | B139: pointermove | C139: IRL-€20 | D139: 1008.799988 | E139: 508.2000122 | F139: EUR_COIN
A140: 16143 | B140: pointermove | C140: IRL-€20 | D140: 941.6000366 | E140: 465 | F140: EUR_COIN
A141: 16153 | B141: pointermove | C141: IRL-€20 | D141: 911.2000122 | E141: 442.6000671 | F141: EUR_COIN
A142: 16172 | B142: pointermove | C142: IRL-€20 | D142: 880.7999878 | E142: 419.3999939 | F142: EUR_COIN
A143: 16192 | B143: pointermove | C143: IRL-€20 | D143: 867.2000122 | E143: 411.3999939 | F143: EUR_COIN
A144: 16207 | B144: pointermove | C144: IRL-€20 | D144: 860 | E144: 409 | F144: EUR_COIN
A145: 16225 | B145: pointermove | C145: IRL-€20 | D145: 856.7999878 | E145: 407.3999939 | F145: EUR_COIN
A146: 16242 | B146: pointermove | C146: IRL-€20 | D146: 855.2000122 | E146: 407.3999939 | F146: EUR_COIN
A147: 16259 | B147: pointermove | C147: IRL-€20 | D147: 852.7999878 | E147: 406.6000061 | F147: EUR_COIN
A148: 16269 | B148: pointermove | C148: IRL-€20 | D148: 850.4000244 | E148: 405.8000183 | F148: EUR_COIN
A149: 16288 | B149: pointermove | C149: IRL-€20 | D149: 845.6000366 | E149: 403.3999939 | F149: EUR_COIN
A150: 16307 | B150: pointermove | C150: IRL-€20 | D150: 840 | E150: 400.2000122 | F150: EUR_COIN
A151: 16323 | B151: pointermove | C151: IRL-€20 | D151: 835.2000122 | E151: 397.8000183 | F151: EUR_COIN
A152: 16343 | B152: pointermove | C152: IRL-€20 | D152: 829.6000366 | E152: 395.3999939 | F152: EUR_COIN
A153: 16359 | B153: pointermove | C153: IRL-€20 | D153: 827.2000122 | E153: 394.6000061 | F153: EUR_COIN
A154: 16369 | B154: pointermove | C154: IRL-€20 | D154: 824.7999878 | E154: 394.6000061 | F154: EUR_COIN
A155: 16386 | B155: pointermove | C155: IRL-€20 | D155: 822.4000244 | E155: 393.8000183 | F155: EUR_COIN
A156: 16405 | B156: pointermove | C156: IRL-€20 | D156: 819.2000122 | E156: 393.8000183 | F156: EUR_COIN
A157: 16422 | B157: pointermove | C157: IRL-€20 | D157: 816 | E157: 393.8000183 | F157: EUR_COIN
A158: 16442 | B158: pointermove | C158: IRL-€20 | D158: 809.6000366 | E158: 391.3999939 | F158: EUR_COIN
A159: 16458 | B159: pointermove | C159: IRL-€20 | D159: 804 | E159: 390.6000061 | F159: EUR_COIN
A160: 16476 | B160: pointermove | C160: IRL-€20 | D160: 796.7999878 | E160: 387.3999939 | F160: EUR_COIN
A161: 16487 | B161: pointermove | C161: IRL-€20 | D161: 791.2000122 | E161: 384.2000122 | F161: EUR_COIN
A162: 16507 | B162: pointermove | C162: IRL-€20 | D162: 781.6000366 | E162: 376.2000122 | F162: EUR_COIN
A163: 16523 | B163: pointermove | C163: IRL-€20 | D163: 774.4000244 | E163: 368.2000122 | F163: EUR_COIN
A164: 16542 | B164: pointermove | C164: IRL-€20 | D164: 768 | E164: 361.8000183 | F164: EUR_COIN
A165: 16558 | B165: pointermove | C165: IRL-€20 | D165: 761.6000366 | E165: 357 | F165: EUR_COIN
A166: 16575 | B166: pointermove | C166: IRL-€20 | D166: 757.6000366 | E166: 353.8000183 | F166: EUR_COIN
A167: 16587 | B167: pointermove | C167: IRL-€20 | D167: 754.4000244 | E167: 352.2000122 | F167: EUR_COIN
A168: 16603 | B168: pointermove | C168: IRL-€20 | D168: 749.6000366 | E168: 349.8000183 | F168: EUR_COIN
A169: 16622 | B169: pointermove | C169: IRL-€20 | D169: 747.2000122 | E169: 347.3999939 | F169: EUR_COIN
A170: 16638 | B170: pointermove | C170: IRL-€20 | D170: 744.7999878 | E170: 346.6000061 | F170: EUR_COIN
A171: 16658 | B171: pointermove | C171: IRL-€20 | D171: 742.4000244 | E171: 345.8000183 | F171: EUR_COIN
A172: 16668 | B172: pointermove | C172: IRL-€20 | D172: 741.6000366 | E172: 345.8000183 | F172: EUR_COIN
A173: 16690 | B173: pointermove | C173: IRL-€20 | D173: 739.2000122 | E173: 345.8000183 | F173: EUR_COIN
A174: 16703 | B174: pointermove | C174: IRL-€20 | D174: 738.4000244 | E174: 345.8000183 | F174: EUR_COIN
A175: 16718 | B175: pointermove | C175: IRL-€20 | D175: 736 | E175: 346.6000061 | F175: EUR_COIN
A176: 16737 | B176: pointermove | C176: IRL-€20 | D176: 734.4000244 | E176: 346.6000061 | F176: EUR_COIN
A177: 16758 | B177: pointermove | C177: IRL-€20 | D177: 732.7999878 | E177: 347.3999939 | F177: EUR_COIN
A178: 16772 | B178: pointermove | C178: IRL-€20 | D178: 731.2000122 | E178: 347.3999939 | F178: EUR_COIN
A179: 16789 | B179: pointermove | C179: IRL-€20 | D179: 729.6000366 | E179: 347.3999939 | F179: EUR_COIN
A180: 16808 | B180: pointermove | C180: IRL-€20 | D180: 727.2000122 | E180: 349 | F180: EUR_COIN
A181: 16824 | B181: pointermove | C181: IRL-€20 | D181: 726.4000244 | E181: 349 | F181: EUR_COIN
A182: 16842 | B182: pointermove | C182: IRL-€20 | D182: 724.7999878 | E182: 349.8000183 | F182: EUR_COIN
A183: 16853 | B183: pointermove | C183: IRL-€20 | D183: 723.2000122 | E183: 349.8000183 | F183: EUR_COIN
A184: 16874 | B184: pointermove | C184: IRL-€20 | D184: 721.6000366 | E184: 349.8000183 | F184: EUR_COIN
A185: 16889 | B185: pointermove | C185: IRL-€20 | D185: 720 | E185: 350.6000061 | F185: EUR_COIN
A186: 16898 | B186: pointermove | C186: IRL-€20 | D186: 718.4000244 | E186: 351.3999939 | F186: EUR_COIN
A187: 16918 | B187: pointermove | C187: IRL-€20 | D187: 716.7999878 | E187: 351.3999939 | F187: EUR_COIN
A188: 16942 | B188: pointermove | C188: IRL-€20 | D188: 715.2000122 | E188: 352.2000122 | F188: EUR_COIN
A189: 16952 | B189: pointermove | C189: IRL-€20 | D189: 713.6000366 | E189: 352.2000122 | F189: EUR_COIN
A190: 16973 | B190: pointermove | C190: IRL-€20 | D190: 712 | E190: 352.2000122 | F190: EUR_COIN
A191: 16987 | B191: pointermove | C191: IRL-€20 | D191: 709.6000366 | E191: 352.2000122 | F191: EUR_COIN
A192: 17004 | B192: pointermove | C192: IRL-€20 | D192: 708 | E192: 352.2000122 | F192: EUR_COIN
A193: 17022 | B193: pointermove | C193: IRL-€20 | D193: 705.6000366 | E193: 352.2000122 | F193: EUR_COIN
A194: 17040 | B194: pointermove | C194: IRL-€20 | D194: 704 | E194: 351.3999939 | F194: EUR_COIN
A195: 17058 | B195: pointermove | C195: IRL-€20 | D195: 701.6000366 | E195: 350.6000061 | F195: EUR_COIN
A196: 17075 | B196: pointermove | C196: IRL-€20 | D196: 699.2000122 | E196: 350.6000061 | F196: EUR_COIN
A197: 17088 | B197: pointermove | C197: IRL-€20 | D197: 697.6000366 | E197: 350.6000061 | F197: EUR_COIN
A198: 17103 | B198: pointermove | C198: IRL-€20 | D198: 696 | E198: 349.8000183 | F198: EUR_COIN
A199: 17120 | B199: pointermove | C199: IRL-€20 | D199: 693.6000366 | E199: 349.8000183 | F199: EUR_COIN
A200: 17133 | B200: pointermove | C200: IRL-€20 | D200: 692 | E200: 349.8000183 | F200: EUR_COIN
A201: 17143 | B201: pointerup | C201: IRL-€20 | D201: 692 | E201: 349.8000183 | F201: EUR_COIN
... 602 more rows

Sheet C_P
C3: Sorcímkék
C4: ALL
C5: IRL-€01
C6: IRL-€02
C7: IRL-€20
C8: SMR-€01
C9: SMR-€02
C10: SMR-€20
C11: SVK-€01
C12: SVK-€02
C13: SVK-€20
C14: (üres)
C15: Végösszeg

Sheet C_filter
D11: =COUNT(D13:D1048576)+12 -> 83 | I11: =SUM(I14:I83) -> 736.5636494
A12: time | B12: event | C12: element | D12: x | E12: y | F12: game | G12: x2 | H12: y2 | I12: tavolsag
A13: 28078 | B13: pointerdown | C13: SVK-€20 | D13: 1408 | E13: 397 | F13: EUR_COIN | G13: =$D$13-D13 -> 0 | H13: =$E$13-E13 -> 0 | I13: =SQRT(G13*G13+H13*H13) -> 0
A14: 28246 | B14: pointermove | C14: SVK-€20 | D14: 1403.200073 | E14: 397.8000183 | F14: EUR_COIN | G14: =$D$13-D14-SUM(G$13:G13) -> 4.799926758 | H14: =$E$13-E14-SUM(H$13:H13) -> -0.8000183105 | I14: =SQRT(G14*G14+H14*H14) -> 4.866140789
A15: 28255 | B15: pointermove | C15: SVK-€20 | D15: 1390.400024 | E15: 401 | F15: EUR_COIN | G15: =$D$13-D15-SUM(G$13:G14) -> 12.80004883 | H15: =$E$13-E15-SUM(H$13:H14) -> -3.199981689 | I15: =SQRT(G15*G15+H15*H15) -> 13.19398093
A16: 28266 | B16: pointermove | C16: SVK-€20 | D16: 1368.800049 | E16: 405 | F16: EUR_COIN | G16: =$D$13-D16-SUM(G$13:G15) -> 21.59997559 | H16: =$E$13-E16-SUM(H$13:H15) -> -4 | I16: 21.96722434
A17: 28285 | B17: pointermove | C17: SVK-€20 | D17: 1326.400024 | E17: 412.2000122 | F17: EUR_COIN | G17: =$D$13-D17-SUM(G$13:G16) -> 42.40002441 | H17: =$E$13-E17-SUM(H$13:H16) -> -7.200012207 | I17: 43.00700229
A18: 28300 | B18: pointermove | C18: SVK-€20 | D18: 1278.400024 | E18: 418.6000061 | F18: EUR_COIN | G18: =$D$13-D18-SUM(G$13:G17) -> 48 | H18: =$E$13-E18-SUM(H$13:H17) -> -6.399993896 | I18: 48.42478623
A19: 28319 | B19: pointermove | C19: SVK-€20 | D19: 1224 | E19: 424.2000122 | F19: EUR_COIN | G19: =$D$13-D19-SUM(G$13:G18) -> 54.40002441 | H19: =$E$13-E19-SUM(H$13:H18) -> -5.600006104 | I19: 54.68750063
A20: 28336 | B20: pointermove | C20: SVK-€20 | D20: 1174.400024 | E20: 429 | F20: EUR_COIN | G20: =$D$13-D20-SUM(G$13:G19) -> 49.59997559 | H20: =$E$13-E20-SUM(H$13:H19) -> -4.799987793 | I20: 49.83169133
A21: 28354 | B21: pointermove | C21: SVK-€20 | D21: 1104.800049 | E21: 435.3999939 | F21: EUR_COIN | G21: =$D$13-D21-SUM(G$13:G20) -> 69.59997559 | H21: =$E$13-E21-SUM(H$13:H20) -> -6.399993896 | I21: 69.8936086
A22: 28371 | B22: pointermove | C22: SVK-€20 | D22: 1056.800049 | E22: 436.2000122 | F22: EUR_COIN | G22: =$D$13-D22-SUM(G$13:G21) -> 48 | H22: =$E$13-E22-SUM(H$13:H21) -> -0.8000183105 | I22: 48.00666651
A23: 28389 | B23: pointermove | C23: SVK-€20 | D23: 1004 | E23: 436.2000122 | F23: EUR_COIN | G23: =$D$13-D23-SUM(G$13:G22) -> 52.80004883 | H23: =$E$13-E23-SUM(H$13:H22) -> 0 | I23: 52.80004883
A24: 28399 | B24: pointermove | C24: SVK-€20 | D24: 976 | E24: 436.2000122 | F24: EUR_COIN | G24: =$D$13-D24-SUM(G$13:G23) -> 28 | H24: =$E$13-E24-SUM(H$13:H23) -> 0 | I24: 28
A25: 28419 | B25: pointermove | C25: SVK-€20 | D25: 938.4000244 | E25: 436.2000122 | F25: EUR_COIN | G25: =$D$13-D25-SUM(G$13:G24) -> 37.59997559 | H25: =$E$13-E25-SUM(H$13:H24) -> 0 | I25: 37.59997559
A26: 28435 | B26: pointermove | C26: SVK-€20 | D26: 906.4000244 | E26: 436.2000122 | F26: EUR_COIN | G26: =$D$13-D26-SUM(G$13:G25) -> 32 | H26: =$E$13-E26-SUM(H$13:H25) -> 0 | I26: 32
A27: 28455 | B27: pointermove | C27: SVK-€20 | D27: 890.4000244 | E27: 436.2000122 | F27: EUR_COIN | G27: =$D$13-D27-SUM(G$13:G26) -> 16 | H27: =$E$13-E27-SUM(H$13:H26) -> 0 | I27: 16
A28: 28471 | B28: pointermove | C28: SVK-€20 | D28: 879.2000122 | E28: 436.2000122 | F28: EUR_COIN | G28: =$D$13-D28-SUM(G$13:G27) -> 11.20001221 | H28: =$E$13-E28-SUM(H$13:H27) -> 0 | I28: 11.20001221
A29: 28487 | B29: pointermove | C29: SVK-€20 | D29: 875.2000122 | E29: 436.2000122 | F29: EUR_COIN | G29: =$D$13-D29-SUM(G$13:G28) -> 4 | H29: =$E$13-E29-SUM(H$13:H28) -> 0 | I29: 4
A30: 28505 | B30: pointermove | C30: SVK-€20 | D30: 872 | E30: 437.8000183 | F30: EUR_COIN | G30: =$D$13-D30-SUM(G$13:G29) -> 3.200012207 | H30: =$E$13-E30-SUM(H$13:H29) -> -1.600006104 | I30: 3.577722412
A31: 28514 | B31: pointermove | C31: SVK-€20 | D31: 869.6000366 | E31: 438.6000061 | F31: EUR_COIN | G31: =$D$13-D31-SUM(G$13:G30) -> 2.399963379 | H31: =$E$13-E31-SUM(H$13:H30) -> -0.799987793 | I31: 2.529783526
A32: 28535 | B32: pointermove | C32: SVK-€20 | D32: 868 | E32: 440.2000122 | F32: EUR_COIN | G32: =$D$13-D32-SUM(G$13:G31) -> 1.600036621 | H32: =$E$13-E32-SUM(H$13:H31) -> -1.600006104 | I32: 2.262771911
A33: 28549 | B33: pointermove | C33: SVK-€20 | D33: 865.6000366 | E33: 441 | F33: EUR_COIN | G33: =$D$13-D33-SUM(G$13:G32) -> 2.399963379 | H33: =$E$13-E33-SUM(H$13:H32) -> -0.799987793 | I33: 2.529783526
A34: 28568 | B34: pointermove | C34: SVK-€20 | D34: 863.2000122 | E34: 442.6000671 | F34: EUR_COIN | G34: =$D$13-D34-SUM(G$13:G33) -> 2.400024414 | H34: =$E$13-E34-SUM(H$13:H33) -> -1.600067139 | I34: 2.884498576
A35: 28586 | B35: pointermove | C35: SVK-€20 | D35: 860.7999878 | E35: 445.8000183 | F35: EUR_COIN | G35: =$D$13-D35-SUM(G$13:G34) -> 2.400024414 | H35: =$E$13-E35-SUM(H$13:H34) -> -3.199951172 | I35: 3.999975586
A36: 28597 | B36: pointermove | C36: SVK-€20 | D36: 857.6000366 | E36: 449 | F36: EUR_COIN | G36: =$D$13-D36-SUM(G$13:G35) -> 3.199951172 | H36: =$E$13-E36-SUM(H$13:H35) -> -3.199981689 | I36: 4.525435925
A37: 28622 | B37: pointermove | C37: SVK-€20 | D37: 844 | E37: 461.8000183 | F37: EUR_COIN | G37: =$D$13-D37-SUM(G$13:G36) -> 13.60003662 | H37: =$E$13-E37-SUM(H$13:H36) -> -12.80001831 | I37: 18.67622726
A38: 28635 | B38: pointermove | C38: SVK-€20 | D38: 838.4000244 | E38: 467.3999939 | F38: EUR_COIN | G38: =$D$13-D38-SUM(G$13:G37) -> 5.599975586 | H38: =$E$13-E38-SUM(H$13:H37) -> -5.599975586 | I38: 7.919561423
A39: 28650 | B39: pointermove | C39: SVK-€20 | D39: 831.2000122 | E39: 473.8000183 | F39: EUR_COIN | G39: =$D$13-D39-SUM(G$13:G38) -> 7.200012207 | H39: =$E$13-E39-SUM(H$13:H38) -> -6.400024414 | I39: 9.633301007
A40: 28670 | B40: pointermove | C40: SVK-€20 | D40: 823.2000122 | E40: 479.3999939 | F40: EUR_COIN | G40: =$D$13-D40-SUM(G$13:G39) -> 8 | H40: =$E$13-E40-SUM(H$13:H39) -> -5.599975586 | I40: 9.765230492
A41: 28686 | B41: pointermove | C41: SVK-€20 | D41: 814.4000244 | E41: 484.2000122 | F41: EUR_COIN | G41: =$D$13-D41-SUM(G$13:G40) -> 8.799987793 | H41: =$E$13-E41-SUM(H$13:H40) -> -4.800018311 | I41: 10.02396932
A42: 28705 | B42: pointermove | C42: SVK-€20 | D42: 806.4000244 | E42: 488.2000122 | F42: EUR_COIN | G42: =$D$13-D42-SUM(G$13:G41) -> 8 | H42: =$E$13-E42-SUM(H$13:H41) -> -4 | I42: 8.94427191
A43: 28721 | B43: pointermove | C43: SVK-€20 | D43: 800 | E43: 491.3999939 | F43: EUR_COIN | G43: =$D$13-D43-SUM(G$13:G42) -> 6.400024414 | H43: =$E$13-E43-SUM(H$13:H42) -> -3.199981689 | I43: 7.155431176
A44: 28739 | B44: pointermove | C44: SVK-€20 | D44: 795.2000122 | E44: 492.2000122 | F44: EUR_COIN | G44: =$D$13-D44-SUM(G$13:G43) -> 4.799987793 | H44: =$E$13-E44-SUM(H$13:H43) -> -0.8000183105 | I44: 4.866200994
A45: 28750 | B45: pointermove | C45: SVK-€20 | D45: 792 | E45: 492.2000122 | F45: EUR_COIN | G45: =$D$13-D45-SUM(G$13:G44) -> 3.200012207 | H45: =$E$13-E45-SUM(H$13:H44) -> 0 | I45: 3.200012207
A46: 28770 | B46: pointermove | C46: SVK-€20 | D46: 787.2000122 | E46: 492.2000122 | F46: EUR_COIN | G46: =$D$13-D46-SUM(G$13:G45) -> 4.799987793 | H46: =$E$13-E46-SUM(H$13:H45) -> 0 | I46: 4.799987793
A47: 28785 | B47: pointermove | C47: SVK-€20 | D47: 783.2000122 | E47: 491.3999939 | F47: EUR_COIN | G47: =$D$13-D47-SUM(G$13:G46) -> 4 | H47: =$E$13-E47-SUM(H$13:H46) -> 0.8000183105 | I47: 4.079219202
A48: 28802 | B48: pointermove | C48: SVK-€20 | D48: 781.6000366 | E48: 491.3999939 | F48: EUR_COIN | G48: =$D$13-D48-SUM(G$13:G47) -> 1.599975586 | H48: =$E$13-E48-SUM(H$13:H47) -> 0 | I48: 1.599975586
A49: 28820 | B49: pointermove | C49: SVK-€20 | D49: 778.4000244 | E49: 491.3999939 | F49: EUR_COIN | G49: =$D$13-D49-SUM(G$13:G48) -> 3.200012207 | H49: =$E$13-E49-SUM(H$13:H48) -> 0 | I49: 3.200012207
A50: 28830 | B50: pointermove | C50: SVK-€20 | D50: 776.7999878 | E50: 491.3999939 | F50: EUR_COIN | G50: =$D$13-D50-SUM(G$13:G49) -> 1.600036621 | H50: =$E$13-E50-SUM(H$13:H49) -> 0 | I50: 1.600036621
A51: 28849 | B51: pointermove | C51: SVK-€20 | D51: 775.2000122 | E51: 491.3999939 | F51: EUR_COIN | G51: =$D$13-D51-SUM(G$13:G50) -> 1.599975586 | H51: =$E$13-E51-SUM(H$13:H50) -> 0 | I51: 1.599975586
A52: 28867 | B52: pointermove | C52: SVK-€20 | D52: 772.7999878 | E52: 491.3999939 | F52: EUR_COIN | G52: =$D$13-D52-SUM(G$13:G51) -> 2.400024414 | H52: =$E$13-E52-SUM(H$13:H51) -> 0 | I52: 2.400024414
A53: 28885 | B53: pointermove | C53: SVK-€20 | D53: 769.6000366 | E53: 490.6000671 | F53: EUR_COIN | G53: =$D$13-D53-SUM(G$13:G52) -> 3.199951172 | H53: =$E$13-E53-SUM(H$13:H52) -> 0.7999267578 | I53: 3.298419367
A54: 28901 | B54: pointermove | C54: SVK-€20 | D54: 766.4000244 | E54: 489 | F54: EUR_COIN | G54: =$D$13-D54-SUM(G$13:G53) -> 3.200012207 | H54: =$E$13-E54-SUM(H$13:H53) -> 1.600067139 | I54: 3.577749708
A55: 28920 | B55: pointermove | C55: SVK-€20 | D55: 761.6000366 | E55: 488.2000122 | F55: EUR_COIN | G55: =$D$13-D55-SUM(G$13:G54) -> 4.799987793 | H55: =$E$13-E55-SUM(H$13:H54) -> 0.799987793 | I55: 4.866195976
A56: 28936 | B56: pointermove | C56: SVK-€20 | D56: 757.6000366 | E56: 486.6000671 | F56: EUR_COIN | G56: =$D$13-D56-SUM(G$13:G55) -> 4 | H56: =$E$13-E56-SUM(H$13:H55) -> 1.599945068 | I56: 4.308111445
A57: 28955 | B57: pointermove | C57: SVK-€20 | D57: 752.7999878 | E57: 484.2000122 | F57: EUR_COIN | G57: =$D$13-D57-SUM(G$13:G56) -> 4.800048828 | H57: =$E$13-E57-SUM(H$13:H56) -> 2.400054932 | I57: 5.366631385
A58: 28963 | B58: pointermove | C58: SVK-€20 | D58: 751.2000122 | E58: 484.2000122 | F58: EUR_COIN | G58: =$D$13-D58-SUM(G$13:G57) -> 1.599975586 | H58: =$E$13-E58-SUM(H$13:H57) -> 0 | I58: 1.599975586
A59: 28985 | B59: pointermove | C59: SVK-€20 | D59: 746.4000244 | E59: 483.3999939 | F59: EUR_COIN | G59: =$D$13-D59-SUM(G$13:G58) -> 4.799987793 | H59: =$E$13-E59-SUM(H$13:H58) -> 0.8000183105 | I59: 4.866200994
A60: 29000 | B60: pointermove | C60: SVK-€20 | D60: 743.2000122 | E60: 483.3999939 | F60: EUR_COIN | G60: =$D$13-D60-SUM(G$13:G59) -> 3.200012207 | H60: =$E$13-E60-SUM(H$13:H59) -> 0 | I60: 3.200012207
A61: 29016 | B61: pointermove | C61: SVK-€20 | D61: 740 | E61: 482.6000671 | F61: EUR_COIN | G61: =$D$13-D61-SUM(G$13:G60) -> 3.200012207 | H61: =$E$13-E61-SUM(H$13:H60) -> 0.7999267578 | I61: 3.29847858
A62: 29036 | B62: pointermove | C62: SVK-€20 | D62: 736.7999878 | E62: 482.6000671 | F62: EUR_COIN | G62: =$D$13-D62-SUM(G$13:G61) -> 3.200012207 | H62: =$E$13-E62-SUM(H$13:H61) -> 0 | I62: 3.200012207
A63: 29052 | B63: pointermove | C63: SVK-€20 | D63: 734.4000244 | E63: 481.8000183 | F63: EUR_COIN | G63: =$D$13-D63-SUM(G$13:G62) -> 2.399963379 | H63: =$E$13-E63-SUM(H$13:H62) -> 0.8000488281 | I63: 2.529802828
A64: 29070 | B64: pointermove | C64: SVK-€20 | D64: 732 | E64: 481.8000183 | F64: EUR_COIN | G64: =$D$13-D64-SUM(G$13:G63) -> 2.400024414 | H64: =$E$13-E64-SUM(H$13:H63) -> 0 | I64: 2.400024414
A65: 29088 | B65: pointermove | C65: SVK-€20 | D65: 729.6000366 | E65: 481.8000183 | F65: EUR_COIN | G65: =$D$13-D65-SUM(G$13:G64) -> 2.399963379 | H65: =$E$13-E65-SUM(H$13:H64) -> 0 | I65: 2.399963379
A66: 29100 | B66: pointermove | C66: SVK-€20 | D66: 727.2000122 | E66: 481.8000183 | F66: EUR_COIN | G66: =$D$13-D66-SUM(G$13:G65) -> 2.400024414 | H66: =$E$13-E66-SUM(H$13:H65) -> 0 | I66: 2.400024414
A67: 29116 | B67: pointermove | C67: SVK-€20 | D67: 724.7999878 | E67: 481.8000183 | F67: EUR_COIN | G67: =$D$13-D67-SUM(G$13:G66) -> 2.400024414 | H67: =$E$13-E67-SUM(H$13:H66) -> 0 | I67: 2.400024414
A68: 29135 | B68: pointermove | C68: SVK-€20 | D68: 723.2000122 | E68: 481.8000183 | F68: EUR_COIN | G68: =$D$13-D68-SUM(G$13:G67) -> 1.599975586 | H68: =$E$13-E68-SUM(H$13:H67) -> 0 | I68: 1.599975586
A69: 29155 | B69: pointermove | C69: SVK-€20 | D69: 720.7999878 | E69: 481.8000183 | F69: EUR_COIN | G69: =$D$13-D69-SUM(G$13:G68) -> 2.400024414 | H69: =$E$13-E69-SUM(H$13:H68) -> 0 | I69: 2.400024414
A70: 29171 | B70: pointermove | C70: SVK-€20 | D70: 718.4000244 | E70: 481.8000183 | F70: EUR_COIN | G70: =$D$13-D70-SUM(G$13:G69) -> 2.399963379 | H70: =$E$13-E70-SUM(H$13:H69) -> 0 | I70: 2.399963379
A71: 29187 | B71: pointermove | C71: SVK-€20 | D71: 716.7999878 | E71: 481.8000183 | F71: EUR_COIN | G71: =$D$13-D71-SUM(G$13:G70) -> 1.600036621 | H71: =$E$13-E71-SUM(H$13:H70) -> 0 | I71: 1.600036621
A72: 29200 | B72: pointermove | C72: SVK-€20 | D72: 715.2000122 | E72: 481.8000183 | F72: EUR_COIN | G72: =$D$13-D72-SUM(G$13:G71) -> 1.599975586 | H72: =$E$13-E72-SUM(H$13:H71) -> 0 | I72: 1.599975586
A73: 29215 | B73: pointermove | C73: SVK-€20 | D73: 713.6000366 | E73: 481.8000183 | F73: EUR_COIN | G73: =$D$13-D73-SUM(G$13:G72) -> 1.599975586 | H73: =$E$13-E73-SUM(H$13:H72) -> 0 | I73: 1.599975586
A74: 29232 | B74: pointermove | C74: SVK-€20 | D74: 711.2000122 | E74: 481.8000183 | F74: EUR_COIN | G74: =$D$13-D74-SUM(G$13:G73) -> 2.400024414 | H74: =$E$13-E74-SUM(H$13:H73) -> 0 | I74: 2.400024414
A75: 29252 | B75: pointermove | C75: SVK-€20 | D75: 708.7999878 | E75: 481.8000183 | F75: EUR_COIN | G75: =$D$13-D75-SUM(G$13:G74) -> 2.400024414 | H75: =$E$13-E75-SUM(H$13:H74) -> 0 | I75: 2.400024414
A76: 29268 | B76: pointermove | C76: SVK-€20 | D76: 707.2000122 | E76: 481.8000183 | F76: EUR_COIN | G76: =$D$13-D76-SUM(G$13:G75) -> 1.599975586 | H76: =$E$13-E76-SUM(H$13:H75) -> 0 | I76: 1.599975586
A77: 29285 | B77: pointermove | C77: SVK-€20 | D77: 704.7999878 | E77: 481.8000183 | F77: EUR_COIN | G77: =$D$13-D77-SUM(G$13:G76) -> 2.400024414 | H77: =$E$13-E77-SUM(H$13:H76) -> 0 | I77: 2.400024414
A78: 29303 | B78: pointermove | C78: SVK-€20 | D78: 702.4000244 | E78: 481.8000183 | F78: EUR_COIN | G78: =$D$13-D78-SUM(G$13:G77) -> 2.399963379 | H78: =$E$13-E78-SUM(H$13:H77) -> 0 | I78: 2.399963379
A79: 29321 | B79: pointermove | C79: SVK-€20 | D79: 700.7999878 | E79: 481.8000183 | F79: EUR_COIN | G79: =$D$13-D79-SUM(G$13:G78) -> 1.600036621 | H79: =$E$13-E79-SUM(H$13:H78) -> 0 | I79: =SQRT(G79*G79+H79*H79) -> 1.600036621
A80: 29330 | B80: pointermove | C80: SVK-€20 | D80: 699.2000122 | E80: 481.8000183 | F80: EUR_COIN | G80: =$D$13-D80-SUM(G$13:G79) -> 1.599975586 | H80: =$E$13-E80-SUM(H$13:H79) -> 0 | I80: 1.599975586
A81: 29350 | B81: pointermove | C81: SVK-€20 | D81: 696.7999878 | E81: 481.8000183 | F81: EUR_COIN | G81: =$D$13-D81-SUM(G$13:G80) -> 2.400024414 | H81: =$E$13-E81-SUM(H$13:H80) -> 0 | I81: 2.400024414
A82: 29366 | B82: pointermove | C82: SVK-€20 | D82: 695.2000122 | E82: 481.8000183 | F82: EUR_COIN | G82: =$D$13-D82-SUM(G$13:G81) -> 1.599975586 | H82: =$E$13-E82-SUM(H$13:H81) -> 0 | I82: 1.599975586
A83: 29375 | B83: pointerup | C83: SVK-€20 | D83: 695.2000122 | E83: 481.8000183 | F83: EUR_COIN | G83: =$D$13-D83-SUM(G$13:G82) -> 0 | H83: =$E$13-E83-SUM(H$13:H82) -> 0 | I83: 0

Sheet C_eredmeny
A1: IRL-€01 | B1: 660.0843535
A2: IRL-€02 | B2: 1837.682578
A3: IRL-€20 | B3: 774.663835
A4: SMR-€01 | B4: 2899.588734
A5: SMR-€02 | B5: 606.9718854
A6: SMR-€20 | B6: 1923.333626
A7: SVK-€01 | B7: 550.7899045
A8: SVK-€02 | B8: 1122.788005
A9: SVK-€20 | B9: 736.5636494

Sheet f5_a1_m
A1: element | B1: sourceX | C1: sourceY | D1: sourceW | E1: sourceH | F1: targetX | G1: targetY | H1: targetW | I1: targetH | J1: Válaszkártyák | K1: Időigény | L1: Sebesség3
A2: COLOR_GREEN-DOT_2 | B2: 938 | C2: 159 | D2: 152 | E2: 152 | F2: 470 | G2: 459 | H2: 171 | I2: 171 | J2: COLOR_BROWN-DOT_1 | K2: 432 | L2: 1.50145676
A3: COLOR_BROWN-DOT_2 | B3: 1166 | C3: 159 | D3: 152 | E3: 152 | F3: 470 | G3: 287 | H3: 171 | I3: 171 | J3: COLOR_BLUE-DOT_1 | K3: 504 | L3: 1.234800511
A4: COLOR_GREEN-DOT_1 | B4: 1394 | C4: 159 | D4: 152 | E4: 152 | F4: 298 | G4: 459 | H4: 171 | I4: 171 | J4: COLOR_GREEN-DOT_1 | K4: 816 | L4: 1.373971071
A5: COLOR_BROWN-DOT_1 | B5: 938 | C5: 387 | D5: 152 | E5: 152 | F5: 298 | G5: 287 | H5: 171 | I5: 171 | J5: COLOR_GREEN-DOT_2 | K5: 608 | L5: 0.9131085884
A6: COLOR_BLUE-DOT_3 | B6: 1166 | C6: 387 | D6: 152 | E6: 152 | F6: 643 | G6: 632 | H6: 171 | I6: 171 | J6: COLOR_GREEN-DOT_3 | K6: 568 | L6: 1.504669801
A7: COLOR_GREEN-DOT_3 | B7: 1394 | C7: 387 | D7: 152 | E7: 152 | F7: 643 | G7: 459 | H7: 171 | I7: 171 | J7: COLOR_BLUE-DOT_2 | K7: 280 | L7: 2.558371192
A8: COLOR_BLUE-DOT_1 | B8: 938 | C8: 615 | D8: 152 | E8: 152 | F8: 298 | G8: 632 | H8: 171 | I8: 171 | J8: COLOR_BLUE-DOT_3 | K8: 416 | L8: 1.518981404
A9: COLOR_BLUE-DOT_2 | B9: 1166 | C9: 615 | D9: 152 | E9: 152 | F9: 470 | G9: 632 | H9: 171 | I9: 171 | J9: COLOR_BROWN-DOT_2 | K9: 511 | L9: 1.7578598
A10: COLOR_BROWN-DOT_3 | B10: 1394 | C10: 615 | D10: 152 | E10: 152 | F10: 643 | G10: 287 | H10: 171 | I10: 171 | J10: COLOR_BROWN-DOT_3 | K10: 496 | L10: 1.646442065
A12: time | B12: event | C12: element | D12: x | E12: y | F12: game
A13: 0 | B13: START | C13: ALL | D13: 0 | E13: 0 | F13: COLOR_DOT
A14: 44663 | B14: pointerdown | C14: COLOR_BROWN-DOT_1 | D14: 926 | E14: 374 | F14: COLOR_DOT
A15: 44719 | B15: pointermove | C15: COLOR_BROWN-DOT_1 | D15: 925.6000366 | E15: 373.8000183 | F15: COLOR_DOT
A16: 44727 | B16: pointermove | C16: COLOR_BROWN-DOT_1 | D16: 921.6000366 | E16: 374.6000061 | F16: COLOR_DOT
A17: 44735 | B17: pointermove | C17: COLOR_BROWN-DOT_1 | D17: 913.6000366 | E17: 374.6000061 | F17: COLOR_DOT
A18: 44743 | B18: pointermove | C18: COLOR_BROWN-DOT_1 | D18: 898.4000244 | E18: 374.6000061 | F18: COLOR_DOT
A19: 44751 | B19: pointermove | C19: COLOR_BROWN-DOT_1 | D19: 882.4000244 | E19: 373.8000183 | F19: COLOR_DOT
A20: 44759 | B20: pointermove | C20: COLOR_BROWN-DOT_1 | D20: 864 | E20: 370.6000061 | F20: COLOR_DOT
A21: 44767 | B21: pointermove | C21: COLOR_BROWN-DOT_1 | D21: 841.6000366 | E21: 369.8000183 | F21: COLOR_DOT
A22: 44775 | B22: pointermove | C22: COLOR_BROWN-DOT_1 | D22: 816.7999878 | E22: 368.2000122 | F22: COLOR_DOT
A23: 44783 | B23: pointermove | C23: COLOR_BROWN-DOT_1 | D23: 797.6000366 | E23: 368.2000122 | F23: COLOR_DOT
A24: 44791 | B24: pointermove | C24: COLOR_BROWN-DOT_1 | D24: 780.7999878 | E24: 368.2000122 | F24: COLOR_DOT
A25: 44799 | B25: pointermove | C25: COLOR_BROWN-DOT_1 | D25: 766.4000244 | E25: 368.2000122 | F25: COLOR_DOT
A26: 44807 | B26: pointermove | C26: COLOR_BROWN-DOT_1 | D26: 752.7999878 | E26: 368.2000122 | F26: COLOR_DOT
A27: 44815 | B27: pointermove | C27: COLOR_BROWN-DOT_1 | D27: 740.7999878 | E27: 368.2000122 | F27: COLOR_DOT
A28: 44823 | B28: pointermove | C28: COLOR_BROWN-DOT_1 | D28: 732 | E28: 368.2000122 | F28: COLOR_DOT
A29: 44831 | B29: pointermove | C29: COLOR_BROWN-DOT_1 | D29: 724.7999878 | E29: 368.2000122 | F29: COLOR_DOT
A30: 44839 | B30: pointermove | C30: COLOR_BROWN-DOT_1 | D30: 720 | E30: 368.2000122 | F30: COLOR_DOT
A31: 44847 | B31: pointermove | C31: COLOR_BROWN-DOT_1 | D31: 715.2000122 | E31: 368.2000122 | F31: COLOR_DOT
A32: 44855 | B32: pointermove | C32: COLOR_BROWN-DOT_1 | D32: 712.7999878 | E32: 368.2000122 | F32: COLOR_DOT
A33: 44863 | B33: pointermove | C33: COLOR_BROWN-DOT_1 | D33: 708.7999878 | E33: 368.2000122 | F33: COLOR_DOT
A34: 44871 | B34: pointermove | C34: COLOR_BROWN-DOT_1 | D34: 703.2000122 | E34: 367.3999939 | F34: COLOR_DOT
A35: 44879 | B35: pointermove | C35: COLOR_BROWN-DOT_1 | D35: 698.4000244 | E35: 367.3999939 | F35: COLOR_DOT
A36: 44887 | B36: pointermove | C36: COLOR_BROWN-DOT_1 | D36: 693.6000366 | E36: 367.3999939 | F36: COLOR_DOT
A37: 44895 | B37: pointermove | C37: COLOR_BROWN-DOT_1 | D37: 686.4000244 | E37: 367.3999939 | F37: COLOR_DOT
A38: 44903 | B38: pointermove | C38: COLOR_BROWN-DOT_1 | D38: 677.6000366 | E38: 367.3999939 | F38: COLOR_DOT
A39: 44911 | B39: pointermove | C39: COLOR_BROWN-DOT_1 | D39: 665.6000366 | E39: 365.8000183 | F39: COLOR_DOT
A40: 44919 | B40: pointermove | C40: COLOR_BROWN-DOT_1 | D40: 653.6000366 | E40: 365 | F40: COLOR_DOT
A41: 44927 | B41: pointermove | C41: COLOR_BROWN-DOT_1 | D41: 638.4000244 | E41: 362.6000061 | F41: COLOR_DOT
A42: 44935 | B42: pointermove | C42: COLOR_BROWN-DOT_1 | D42: 620 | E42: 360.2000122 | F42: COLOR_DOT
A43: 44943 | B43: pointermove | C43: COLOR_BROWN-DOT_1 | D43: 599.2000122 | E43: 355.3999939 | F43: COLOR_DOT
A44: 44951 | B44: pointermove | C44: COLOR_BROWN-DOT_1 | D44: 575.2000122 | E44: 351.3999939 | F44: COLOR_DOT
A45: 44959 | B45: pointermove | C45: COLOR_BROWN-DOT_1 | D45: 549.6000366 | E45: 346.6000061 | F45: COLOR_DOT
A46: 44967 | B46: pointermove | C46: COLOR_BROWN-DOT_1 | D46: 520 | E46: 340.2000122 | F46: COLOR_DOT
A47: 44975 | B47: pointermove | C47: COLOR_BROWN-DOT_1 | D47: 492.8000183 | E47: 333.8000183 | F47: COLOR_DOT
A48: 44983 | B48: pointermove | C48: COLOR_BROWN-DOT_1 | D48: 464 | E48: 329 | F48: COLOR_DOT
A49: 44991 | B49: pointermove | C49: COLOR_BROWN-DOT_1 | D49: 437.6000061 | E49: 324.2000122 | F49: COLOR_DOT
A50: 44999 | B50: pointermove | C50: COLOR_BROWN-DOT_1 | D50: 411.2000122 | E50: 317.8000183 | F50: COLOR_DOT
A51: 45007 | B51: pointermove | C51: COLOR_BROWN-DOT_1 | D51: 387.2000122 | E51: 313.8000183 | F51: COLOR_DOT
A52: 45015 | B52: pointermove | C52: COLOR_BROWN-DOT_1 | D52: 366.3999939 | E52: 309.8000183 | F52: COLOR_DOT
A53: 45023 | B53: pointermove | C53: COLOR_BROWN-DOT_1 | D53: 348 | E53: 305.8000183 | F53: COLOR_DOT
A54: 45031 | B54: pointermove | C54: COLOR_BROWN-DOT_1 | D54: 332 | E54: 301.8000183 | F54: COLOR_DOT
A55: 45039 | B55: pointermove | C55: COLOR_BROWN-DOT_1 | D55: 320 | E55: 298.6000061 | F55: COLOR_DOT
A56: 45047 | B56: pointermove | C56: COLOR_BROWN-DOT_1 | D56: 308.8000183 | E56: 295.3999939 | F56: COLOR_DOT
A57: 45055 | B57: pointermove | C57: COLOR_BROWN-DOT_1 | D57: 300.8000183 | E57: 293 | F57: COLOR_DOT
A58: 45063 | B58: pointermove | C58: COLOR_BROWN-DOT_1 | D58: 293.6000061 | E58: 291.3999939 | F58: COLOR_DOT
A59: 45071 | B59: pointermove | C59: COLOR_BROWN-DOT_1 | D59: 288.8000183 | E59: 290.6000061 | F59: COLOR_DOT
A60: 45079 | B60: pointermove | C60: COLOR_BROWN-DOT_1 | D60: 288 | E60: 290.6000061 | F60: COLOR_DOT
A61: 45087 | B61: pointermove | C61: COLOR_BROWN-DOT_1 | D61: 287.2000122 | E61: 290.6000061 | F61: COLOR_DOT
A62: 45095 | B62: pointermove | C62: COLOR_BROWN-DOT_1 | D62: 286.3999939 | E62: 290.6000061 | F62: COLOR_DOT
A63: 45479 | B63: pointerup | C63: COLOR_BROWN-DOT_1 | D63: 286 | E63: 291 | F63: COLOR_DOT
A64: 58127 | B64: pointerdown | C64: COLOR_BLUE-DOT_1 | D64: 981 | E64: 593 | F64: COLOR_DOT
A65: 58191 | B65: pointermove | C65: COLOR_BLUE-DOT_1 | D65: 978.4000244 | E65: 593.7999878 | F65: COLOR_DOT
A66: 58199 | B66: pointermove | C66: COLOR_BLUE-DOT_1 | D66: 972.7999878 | E66: 593.7999878 | F66: COLOR_DOT
A67: 58207 | B67: pointermove | C67: COLOR_BLUE-DOT_1 | D67: 964.7999878 | E67: 593.7999878 | F67: COLOR_DOT
A68: 58215 | B68: pointermove | C68: COLOR_BLUE-DOT_1 | D68: 948 | E68: 593.7999878 | F68: COLOR_DOT
A69: 58223 | B69: pointermove | C69: COLOR_BLUE-DOT_1 | D69: 928 | E69: 591.4000244 | F69: COLOR_DOT
A70: 58231 | B70: pointermove | C70: COLOR_BLUE-DOT_1 | D70: 899.2000122 | E70: 585.7999878 | F70: COLOR_DOT
A71: 58239 | B71: pointermove | C71: COLOR_BLUE-DOT_1 | D71: 865.6000366 | E71: 584.2000122 | F71: COLOR_DOT
A72: 58247 | B72: pointermove | C72: COLOR_BLUE-DOT_1 | D72: 829.6000366 | E72: 582.6000366 | F72: COLOR_DOT
A73: 58255 | B73: pointermove | C73: COLOR_BLUE-DOT_1 | D73: 797.6000366 | E73: 582.6000366 | F73: COLOR_DOT
A74: 58263 | B74: pointermove | C74: COLOR_BLUE-DOT_1 | D74: 759.2000122 | E74: 582.6000366 | F74: COLOR_DOT
A75: 58271 | B75: pointermove | C75: COLOR_BLUE-DOT_1 | D75: 721.6000366 | E75: 582.6000366 | F75: COLOR_DOT
A76: 58279 | B76: pointermove | C76: COLOR_BLUE-DOT_1 | D76: 682.4000244 | E76: 585.7999878 | F76: COLOR_DOT
A77: 58287 | B77: pointermove | C77: COLOR_BLUE-DOT_1 | D77: 640 | E77: 591.4000244 | F77: COLOR_DOT
A78: 58295 | B78: pointermove | C78: COLOR_BLUE-DOT_1 | D78: 600.7999878 | E78: 598.6000366 | F78: COLOR_DOT
A79: 58303 | B79: pointermove | C79: COLOR_BLUE-DOT_1 | D79: 561.6000366 | E79: 603.4000244 | F79: COLOR_DOT
A80: 58311 | B80: pointermove | C80: COLOR_BLUE-DOT_1 | D80: 521.6000366 | E80: 609 | F80: COLOR_DOT
A81: 58319 | B81: pointermove | C81: COLOR_BLUE-DOT_1 | D81: 488 | E81: 612.2000122 | F81: COLOR_DOT
A82: 58327 | B82: pointermove | C82: COLOR_BLUE-DOT_1 | D82: 455.2000122 | E82: 613.7999878 | F82: COLOR_DOT
A83: 58335 | B83: pointermove | C83: COLOR_BLUE-DOT_1 | D83: 430.3999939 | E83: 613.7999878 | F83: COLOR_DOT
A84: 58343 | B84: pointermove | C84: COLOR_BLUE-DOT_1 | D84: 411.2000122 | E84: 613.7999878 | F84: COLOR_DOT
A85: 58351 | B85: pointermove | C85: COLOR_BLUE-DOT_1 | D85: 398.3999939 | E85: 613.7999878 | F85: COLOR_DOT
A86: 58359 | B86: pointermove | C86: COLOR_BLUE-DOT_1 | D86: 387.2000122 | E86: 615.4000244 | F86: COLOR_DOT
A87: 58367 | B87: pointermove | C87: COLOR_BLUE-DOT_1 | D87: 379.2000122 | E87: 616.2000122 | F87: COLOR_DOT
A88: 58375 | B88: pointermove | C88: COLOR_BLUE-DOT_1 | D88: 375.2000122 | E88: 617 | F88: COLOR_DOT
A89: 58383 | B89: pointermove | C89: COLOR_BLUE-DOT_1 | D89: 373.6000061 | E89: 617 | F89: COLOR_DOT
A90: 58391 | B90: pointermove | C90: COLOR_BLUE-DOT_1 | D90: 372.8000183 | E90: 617 | F90: COLOR_DOT
A91: 58431 | B91: pointermove | C91: COLOR_BLUE-DOT_1 | D91: 371.2000122 | E91: 617.7999878 | F91: COLOR_DOT
A92: 58439 | B92: pointermove | C92: COLOR_BLUE-DOT_1 | D92: 370.3999939 | E92: 617.7999878 | F92: COLOR_DOT
A93: 58455 | B93: pointermove | C93: COLOR_BLUE-DOT_1 | D93: 368 | E93: 618.6000366 | F93: COLOR_DOT
A94: 58471 | B94: pointermove | C94: COLOR_BLUE-DOT_1 | D94: 366.3999939 | E94: 618.6000366 | F94: COLOR_DOT
A95: 58479 | B95: pointermove | C95: COLOR_BLUE-DOT_1 | D95: 365.6000061 | E95: 618.6000366 | F95: COLOR_DOT
A96: 58495 | B96: pointermove | C96: COLOR_BLUE-DOT_1 | D96: 364 | E96: 618.6000366 | F96: COLOR_DOT
A97: 58599 | B97: pointermove | C97: COLOR_BLUE-DOT_1 | D97: 363.2000122 | E97: 618.6000366 | F97: COLOR_DOT
A98: 58631 | B98: pointermove | C98: COLOR_BLUE-DOT_1 | D98: 363.2000122 | E98: 617.7999878 | F98: COLOR_DOT
A99: 58647 | B99: pointerup | C99: COLOR_BLUE-DOT_1 | D99: 363 | E99: 618 | F99: COLOR_DOT
A100: 60079 | B100: pointerdown | C100: COLOR_GREEN-DOT_1 | D100: 1370 | E100: 191 | F100: COLOR_DOT
A101: 60127 | B101: pointermove | C101: COLOR_GREEN-DOT_1 | D101: 1368 | E101: 190.6000061 | F101: COLOR_DOT
A102: 60135 | B102: pointermove | C102: COLOR_GREEN-DOT_1 | D102: 1366.400024 | E102: 193 | F102: COLOR_DOT
A103: 60143 | B103: pointermove | C103: COLOR_GREEN-DOT_1 | D103: 1363.200073 | E103: 196.2000122 | F103: COLOR_DOT
A104: 60151 | B104: pointermove | C104: COLOR_GREEN-DOT_1 | D104: 1358.400024 | E104: 201 | F104: COLOR_DOT
A105: 60159 | B105: pointermove | C105: COLOR_GREEN-DOT_1 | D105: 1352 | E105: 206.6000061 | F105: COLOR_DOT
A106: 60167 | B106: pointermove | C106: COLOR_GREEN-DOT_1 | D106: 1343.200073 | E106: 213 | F106: COLOR_DOT
A107: 60175 | B107: pointermove | C107: COLOR_GREEN-DOT_1 | D107: 1333.599976 | E107: 221 | F107: COLOR_DOT
A108: 60183 | B108: pointermove | C108: COLOR_GREEN-DOT_1 | D108: 1318.400024 | E108: 232.1999969 | F108: COLOR_DOT
A109: 60191 | B109: pointermove | C109: COLOR_GREEN-DOT_1 | D109: 1296.800049 | E109: 245.8000336 | F109: COLOR_DOT
A110: 60199 | B110: pointermove | C110: COLOR_GREEN-DOT_1 | D110: 1272.800049 | E110: 260.2000122 | F110: COLOR_DOT
A111: 60207 | B111: pointermove | C111: COLOR_GREEN-DOT_1 | D111: 1245.599976 | E111: 277 | F111: COLOR_DOT
A112: 60215 | B112: pointermove | C112: COLOR_GREEN-DOT_1 | D112: 1218.400024 | E112: 294.6000061 | F112: COLOR_DOT
A113: 60223 | B113: pointermove | C113: COLOR_GREEN-DOT_1 | D113: 1189.599976 | E113: 309.8000183 | F113: COLOR_DOT
A114: 60231 | B114: pointermove | C114: COLOR_GREEN-DOT_1 | D114: 1158.400024 | E114: 325 | F114: COLOR_DOT
A115: 60239 | B115: pointermove | C115: COLOR_GREEN-DOT_1 | D115: 1127.200073 | E115: 337 | F115: COLOR_DOT
A116: 60247 | B116: pointermove | C116: COLOR_GREEN-DOT_1 | D116: 1096.800049 | E116: 349 | F116: COLOR_DOT
A117: 60255 | B117: pointermove | C117: COLOR_GREEN-DOT_1 | D117: 1065.599976 | E117: 362.6000061 | F117: COLOR_DOT
A118: 60263 | B118: pointermove | C118: COLOR_GREEN-DOT_1 | D118: 1035.200073 | E118: 374.6000061 | F118: COLOR_DOT
A119: 60271 | B119: pointermove | C119: COLOR_GREEN-DOT_1 | D119: 1007.200012 | E119: 386.6000061 | F119: COLOR_DOT
A120: 60279 | B120: pointermove | C120: COLOR_GREEN-DOT_1 | D120: 979.2000122 | E120: 396.2000122 | F120: COLOR_DOT
A121: 60287 | B121: pointermove | C121: COLOR_GREEN-DOT_1 | D121: 954.4000244 | E121: 405.8000183 | F121: COLOR_DOT
A122: 60295 | B122: pointermove | C122: COLOR_GREEN-DOT_1 | D122: 931.2000122 | E122: 414.6000061 | F122: COLOR_DOT
A123: 60303 | B123: pointermove | C123: COLOR_GREEN-DOT_1 | D123: 906.4000244 | E123: 424.2000122 | F123: COLOR_DOT
A124: 60311 | B124: pointermove | C124: COLOR_GREEN-DOT_1 | D124: 880.7999878 | E124: 435.3999939 | F124: COLOR_DOT
A125: 60319 | B125: pointermove | C125: COLOR_GREEN-DOT_1 | D125: 854.4000244 | E125: 446.6000671 | F125: COLOR_DOT
A126: 60327 | B126: pointermove | C126: COLOR_GREEN-DOT_1 | D126: 829.6000366 | E126: 456.2000122 | F126: COLOR_DOT
A127: 60335 | B127: pointermove | C127: COLOR_GREEN-DOT_1 | D127: 807.2000122 | E127: 465 | F127: COLOR_DOT
A128: 60343 | B128: pointermove | C128: COLOR_GREEN-DOT_1 | D128: 787.2000122 | E128: 472.2000122 | F128: COLOR_DOT
A129: 60351 | B129: pointermove | C129: COLOR_GREEN-DOT_1 | D129: 770.4000244 | E129: 477.8000183 | F129: COLOR_DOT
A130: 60359 | B130: pointermove | C130: COLOR_GREEN-DOT_1 | D130: 756 | E130: 483.3999939 | F130: COLOR_DOT
A131: 60367 | B131: pointermove | C131: COLOR_GREEN-DOT_1 | D131: 742.4000244 | E131: 486.6000671 | F131: COLOR_DOT
A132: 60375 | B132: pointermove | C132: COLOR_GREEN-DOT_1 | D132: 731.2000122 | E132: 489 | F132: COLOR_DOT
A133: 60383 | B133: pointermove | C133: COLOR_GREEN-DOT_1 | D133: 720.7999878 | E133: 491.3999939 | F133: COLOR_DOT
A134: 60391 | B134: pointermove | C134: COLOR_GREEN-DOT_1 | D134: 712 | E134: 493 | F134: COLOR_DOT
A135: 60399 | B135: pointermove | C135: COLOR_GREEN-DOT_1 | D135: 704 | E135: 494.6000671 | F135: COLOR_DOT
A136: 60407 | B136: pointermove | C136: COLOR_GREEN-DOT_1 | D136: 697.6000366 | E136: 495.3999939 | F136: COLOR_DOT
A137: 60415 | B137: pointermove | C137: COLOR_GREEN-DOT_1 | D137: 692 | E137: 495.3999939 | F137: COLOR_DOT
A138: 60423 | B138: pointermove | C138: COLOR_GREEN-DOT_1 | D138: 684.7999878 | E138: 495.3999939 | F138: COLOR_DOT
A139: 60431 | B139: pointermove | C139: COLOR_GREEN-DOT_1 | D139: 680 | E139: 495.3999939 | F139: COLOR_DOT
A140: 60439 | B140: pointermove | C140: COLOR_GREEN-DOT_1 | D140: 674.4000244 | E140: 495.3999939 | F140: COLOR_DOT
A141: 60447 | B141: pointermove | C141: COLOR_GREEN-DOT_1 | D141: 668.7999878 | E141: 495.3999939 | F141: COLOR_DOT
A142: 60455 | B142: pointermove | C142: COLOR_GREEN-DOT_1 | D142: 663.2000122 | E142: 495.3999939 | F142: COLOR_DOT
A143: 60463 | B143: pointermove | C143: COLOR_GREEN-DOT_1 | D143: 657.6000366 | E143: 495.3999939 | F143: COLOR_DOT
A144: 60471 | B144: pointermove | C144: COLOR_GREEN-DOT_1 | D144: 652.7999878 | E144: 495.3999939 | F144: COLOR_DOT
A145: 60479 | B145: pointermove | C145: COLOR_GREEN-DOT_1 | D145: 645.6000366 | E145: 495.3999939 | F145: COLOR_DOT
A146: 60487 | B146: pointermove | C146: COLOR_GREEN-DOT_1 | D146: 637.6000366 | E146: 495.3999939 | F146: COLOR_DOT
A147: 60495 | B147: pointermove | C147: COLOR_GREEN-DOT_1 | D147: 628.7999878 | E147: 495.3999939 | F147: COLOR_DOT
A148: 60503 | B148: pointermove | C148: COLOR_GREEN-DOT_1 | D148: 617.6000366 | E148: 495.3999939 | F148: COLOR_DOT
A149: 60511 | B149: pointermove | C149: COLOR_GREEN-DOT_1 | D149: 607.2000122 | E149: 495.3999939 | F149: COLOR_DOT
A150: 60519 | B150: pointermove | C150: COLOR_GREEN-DOT_1 | D150: 595.2000122 | E150: 496.2000122 | F150: COLOR_DOT
A151: 60527 | B151: pointermove | C151: COLOR_GREEN-DOT_1 | D151: 585.6000366 | E151: 497.8000183 | F151: COLOR_DOT
A152: 60535 | B152: pointermove | C152: COLOR_GREEN-DOT_1 | D152: 575.2000122 | E152: 499.3999939 | F152: COLOR_DOT
A153: 60543 | B153: pointermove | C153: COLOR_GREEN-DOT_1 | D153: 564 | E153: 501.8000183 | F153: COLOR_DOT
A154: 60551 | B154: pointermove | C154: COLOR_GREEN-DOT_1 | D154: 552 | E154: 504.2000122 | F154: COLOR_DOT
A155: 60559 | B155: pointermove | C155: COLOR_GREEN-DOT_1 | D155: 540 | E155: 505 | F155: COLOR_DOT
A156: 60567 | B156: pointermove | C156: COLOR_GREEN-DOT_1 | D156: 528 | E156: 505 | F156: COLOR_DOT
A157: 60575 | B157: pointermove | C157: COLOR_GREEN-DOT_1 | D157: 514.4000244 | E157: 505 | F157: COLOR_DOT
A158: 60583 | B158: pointermove | C158: COLOR_GREEN-DOT_1 | D158: 501.6000061 | E158: 505 | F158: COLOR_DOT
A159: 60591 | B159: pointermove | C159: COLOR_GREEN-DOT_1 | D159: 488 | E159: 505 | F159: COLOR_DOT
A160: 60599 | B160: pointermove | C160: COLOR_GREEN-DOT_1 | D160: 475.2000122 | E160: 505 | F160: COLOR_DOT
A161: 60607 | B161: pointermove | C161: COLOR_GREEN-DOT_1 | D161: 465.6000061 | E161: 505 | F161: COLOR_DOT
A162: 60615 | B162: pointermove | C162: COLOR_GREEN-DOT_1 | D162: 456.8000183 | E162: 505 | F162: COLOR_DOT
A163: 60623 | B163: pointermove | C163: COLOR_GREEN-DOT_1 | D163: 448.8000183 | E163: 505 | F163: COLOR_DOT
A164: 60631 | B164: pointermove | C164: COLOR_GREEN-DOT_1 | D164: 443.2000122 | E164: 505 | F164: COLOR_DOT
A165: 60639 | B165: pointermove | C165: COLOR_GREEN-DOT_1 | D165: 439.2000122 | E165: 505 | F165: COLOR_DOT
A166: 60647 | B166: pointermove | C166: COLOR_GREEN-DOT_1 | D166: 436 | E166: 505 | F166: COLOR_DOT
A167: 60655 | B167: pointermove | C167: COLOR_GREEN-DOT_1 | D167: 434.3999939 | E167: 505 | F167: COLOR_DOT
A168: 60663 | B168: pointermove | C168: COLOR_GREEN-DOT_1 | D168: 432 | E168: 505.8000183 | F168: COLOR_DOT
A169: 60671 | B169: pointermove | C169: COLOR_GREEN-DOT_1 | D169: 432 | E169: 506.6000671 | F169: COLOR_DOT
A170: 60711 | B170: pointermove | C170: COLOR_GREEN-DOT_1 | D170: 431.2000122 | E170: 506.6000671 | F170: COLOR_DOT
A171: 60727 | B171: pointermove | C171: COLOR_GREEN-DOT_1 | D171: 430.3999939 | E171: 506.6000671 | F171: COLOR_DOT
A172: 60735 | B172: pointermove | C172: COLOR_GREEN-DOT_1 | D172: 429.6000061 | E172: 507.3999939 | F172: COLOR_DOT
A173: 60751 | B173: pointermove | C173: COLOR_GREEN-DOT_1 | D173: 428.8000183 | E173: 507.3999939 | F173: COLOR_DOT
A174: 60759 | B174: pointermove | C174: COLOR_GREEN-DOT_1 | D174: 428 | E174: 507.3999939 | F174: COLOR_DOT
A175: 60767 | B175: pointermove | C175: COLOR_GREEN-DOT_1 | D175: 425.6000061 | E175: 507.3999939 | F175: COLOR_DOT
A176: 60775 | B176: pointermove | C176: COLOR_GREEN-DOT_1 | D176: 421.6000061 | E176: 507.3999939 | F176: COLOR_DOT
A177: 60783 | B177: pointermove | C177: COLOR_GREEN-DOT_1 | D177: 417.6000061 | E177: 507.3999939 | F177: COLOR_DOT
A178: 60791 | B178: pointermove | C178: COLOR_GREEN-DOT_1 | D178: 412 | E178: 507.3999939 | F178: COLOR_DOT
A179: 60799 | B179: pointermove | C179: COLOR_GREEN-DOT_1 | D179: 405.6000061 | E179: 507.3999939 | F179: COLOR_DOT
A180: 60807 | B180: pointermove | C180: COLOR_GREEN-DOT_1 | D180: 400 | E180: 507.3999939 | F180: COLOR_DOT
A181: 60815 | B181: pointermove | C181: COLOR_GREEN-DOT_1 | D181: 392 | E181: 506.6000671 | F181: COLOR_DOT
A182: 60823 | B182: pointermove | C182: COLOR_GREEN-DOT_1 | D182: 386.3999939 | E182: 505.8000183 | F182: COLOR_DOT
A183: 60831 | B183: pointermove | C183: COLOR_GREEN-DOT_1 | D183: 377.6000061 | E183: 505 | F183: COLOR_DOT
A184: 60839 | B184: pointermove | C184: COLOR_GREEN-DOT_1 | D184: 369.6000061 | E184: 502.6000671 | F184: COLOR_DOT
A185: 60847 | B185: pointermove | C185: COLOR_GREEN-DOT_1 | D185: 361.6000061 | E185: 501.8000183 | F185: COLOR_DOT
A186: 60855 | B186: pointermove | C186: COLOR_GREEN-DOT_1 | D186: 352 | E186: 499.3999939 | F186: COLOR_DOT
A187: 60863 | B187: pointermove | C187: COLOR_GREEN-DOT_1 | D187: 344 | E187: 498.6000671 | F187: COLOR_DOT
A188: 60871 | B188: pointermove | C188: COLOR_GREEN-DOT_1 | D188: 336.8000183 | E188: 497 | F188: COLOR_DOT
A189: 60879 | B189: pointermove | C189: COLOR_GREEN-DOT_1 | D189: 331.2000122 | E189: 495.3999939 | F189: COLOR_DOT
A190: 60887 | B190: pointermove | C190: COLOR_GREEN-DOT_1 | D190: 326.3999939 | E190: 493.8000183 | F190: COLOR_DOT
A191: 60895 | B191: pointermove | C191: COLOR_GREEN-DOT_1 | D191: 324.8000183 | E191: 493 | F191: COLOR_DOT
A192: 61111 | B192: pointerup | C192: COLOR_GREEN-DOT_1 | D192: 325 | E192: 493 | F192: COLOR_DOT
A193: 65055 | B193: pointerdown | C193: COLOR_GREEN-DOT_2 | D193: 970 | E193: 154 | F193: COLOR_DOT
A194: 65063 | B194: pointermove | C194: COLOR_GREEN-DOT_2 | D194: 968.7999878 | E194: 156.1999969 | F194: COLOR_DOT
A195: 65071 | B195: pointermove | C195: COLOR_GREEN-DOT_2 | D195: 966.4000244 | E195: 158.6000061 | F195: COLOR_DOT
A196: 65079 | B196: pointermove | C196: COLOR_GREEN-DOT_2 | D196: 964.7999878 | E196: 161 | F196: COLOR_DOT
A197: 65087 | B197: pointermove | C197: COLOR_GREEN-DOT_2 | D197: 963.2000122 | E197: 163.4000092 | F197: COLOR_DOT
A198: 65095 | B198: pointermove | C198: COLOR_GREEN-DOT_2 | D198: 962.4000244 | E198: 165 | F198: COLOR_DOT
A199: 65103 | B199: pointermove | C199: COLOR_GREEN-DOT_2 | D199: 960.7999878 | E199: 167.4000092 | F199: COLOR_DOT
A200: 65111 | B200: pointermove | C200: COLOR_GREEN-DOT_2 | D200: 958.4000244 | E200: 170.6000061 | F200: COLOR_DOT
A201: 65119 | B201: pointermove | C201: COLOR_GREEN-DOT_2 | D201: 956 | E201: 174.6000061 | F201: COLOR_DOT
... 298 more rows

Sheet f5_a2_m
A1: element | B1: sourceX | C1: sourceY | D1: sourceW | E1: sourceH | F1: targetX | G1: targetY | H1: targetW | I1: targetH | J1: Válaszkártyák (f1.xlsx) | K1: Időigény | L1: Sebesség3
A2: SVK-€01 | B2: 938 | C2: 167 | D2: 152 | E2: 152 | F2: 470 | G2: 468 | H2: 171 | I2: 171 | J2: IRL-€02 | K2: 2272 | L2: 0.8088391627
A3: IRL-€01 | B3: 1166 | C3: 167 | D3: 152 | E3: 152 | F3: 470 | G3: 296 | H3: 171 | I3: 171 | J3: IRL-€20 | K3: 1269 | L3: 0.6104521946
A4: SVK-€02 | B4: 1394 | C4: 167 | D4: 152 | E4: 152 | F4: 298 | G4: 468 | H4: 171 | I4: 171 | J4: IRL-€01 | K4: 857 | L4: 0.7702267835
A5: IRL-€02 | B5: 938 | C5: 395 | D5: 152 | E5: 152 | F5: 298 | G5: 296 | H5: 171 | I5: 171 | J5: SVK-€02 | K5: 3604 | L5: 0.3115394021
A6: SMR-€20 | B6: 1166 | C6: 395 | D6: 152 | E6: 152 | F6: 643 | G6: 640 | H6: 171 | I6: 171 | J6: SVK-€20 | K6: 1288 | L6: 0.5718661874
A7: SVK-€20 | B7: 1394 | C7: 395 | D7: 152 | E7: 152 | F7: 643 | G7: 468 | H7: 171 | I7: 171 | J7: SMR-€01 | K7: 3178 | L7: 0.9123941895
A8: SMR-€02 | B8: 938 | C8: 624 | D8: 152 | E8: 152 | F8: 298 | G8: 640 | H8: 171 | I8: 171 | J8: SVK-€01 | K8: 704 | L8: 0.7823720235
A9: SMR-€01 | B9: 1166 | C9: 624 | D9: 152 | E9: 152 | F9: 470 | G9: 640 | H9: 171 | I9: 171 | J9: SMR-€02 | K9: 545 | L9: 1.113709882
A10: IRL-€20 | B10: 1394 | C10: 624 | D10: 152 | E10: 152 | F10: 643 | G10: 296 | H10: 171 | I10: 171 | J10: SMR-€20 | K10: 1094 | L10: 1.758074612
A12: time | B12: event | C12: element | D12: x | E12: y | F12: game
A13: 0 | B13: START | C13: ALL | D13: 0 | E13: 0 | F13: EUR_COIN
A14: 9775 | B14: pointerdown | C14: IRL-€02 | D14: 928.7999878 | E14: 404.2000122 | F14: EUR_COIN
A15: 9915 | B15: pointermove | C15: IRL-€02 | D15: 925.6000366 | E15: 405 | F15: EUR_COIN
A16: 9927 | B16: pointermove | C16: IRL-€02 | D16: 912.7999878 | E16: 412.2000122 | F16: EUR_COIN
A17: 9943 | B17: pointermove | C17: IRL-€02 | D17: 888 | E17: 430.6000061 | F17: EUR_COIN
A18: 9960 | B18: pointermove | C18: IRL-€02 | D18: 858.4000244 | E18: 450.6000671 | F18: EUR_COIN
A19: 9978 | B19: pointermove | C19: IRL-€02 | D19: 821.6000366 | E19: 476.2000122 | F19: EUR_COIN
A20: 9988 | B20: pointermove | C20: IRL-€02 | D20: 800 | E20: 490.6000671 | F20: EUR_COIN
A21: 10007 | B21: pointermove | C21: IRL-€02 | D21: 769.6000366 | E21: 509 | F21: EUR_COIN
A22: 10028 | B22: pointermove | C22: IRL-€02 | D22: 741.6000366 | E22: 518.6000366 | F22: EUR_COIN
A23: 10042 | B23: pointermove | C23: IRL-€02 | D23: 718.4000244 | E23: 525 | F23: EUR_COIN
A24: 10058 | B24: pointermove | C24: IRL-€02 | D24: 698.4000244 | E24: 529.7999878 | F24: EUR_COIN
A25: 10077 | B25: pointermove | C25: IRL-€02 | D25: 678.4000244 | E25: 536.2000122 | F25: EUR_COIN
A26: 10087 | B26: pointermove | C26: IRL-€02 | D26: 671.2000122 | E26: 537.7999878 | F26: EUR_COIN
A27: 10107 | B27: pointermove | C27: IRL-€02 | D27: 657.6000366 | E27: 541 | F27: EUR_COIN
A28: 10122 | B28: pointermove | C28: IRL-€02 | D28: 646.4000244 | E28: 541.7999878 | F28: EUR_COIN
A29: 10142 | B29: pointermove | C29: IRL-€02 | D29: 634.4000244 | E29: 544.2000122 | F29: EUR_COIN
A30: 10162 | B30: pointermove | C30: IRL-€02 | D30: 621.6000366 | E30: 545 | F30: EUR_COIN
A31: 10177 | B31: pointermove | C31: IRL-€02 | D31: 608 | E31: 545.7999878 | F31: EUR_COIN
A32: 10193 | B32: pointermove | C32: IRL-€02 | D32: 594.4000244 | E32: 548.2000122 | F32: EUR_COIN
A33: 10211 | B33: pointermove | C33: IRL-€02 | D33: 571.2000122 | E33: 555.4000244 | F33: EUR_COIN
A34: 10222 | B34: pointermove | C34: IRL-€02 | D34: 557.6000366 | E34: 561 | F34: EUR_COIN
A35: 10242 | B35: pointermove | C35: IRL-€02 | D35: 537.6000366 | E35: 568.2000122 | F35: EUR_COIN
A36: 10257 | B36: pointermove | C36: IRL-€02 | D36: 522.4000244 | E36: 576.2000122 | F36: EUR_COIN
A37: 10277 | B37: pointermove | C37: IRL-€02 | D37: 508.8000183 | E37: 585.7999878 | F37: EUR_COIN
A38: 10293 | B38: pointermove | C38: IRL-€02 | D38: 493.6000061 | E38: 597 | F38: EUR_COIN
A39: 10310 | B39: pointermove | C39: IRL-€02 | D39: 482.3999939 | E39: 604.2000122 | F39: EUR_COIN
A40: 10327 | B40: pointermove | C40: IRL-€02 | D40: 473.6000061 | E40: 607.4000244 | F40: EUR_COIN
A41: 10345 | B41: pointermove | C41: IRL-€02 | D41: 464.8000183 | E41: 609.7999878 | F41: EUR_COIN
A42: 10357 | B42: pointermove | C42: IRL-€02 | D42: 460.8000183 | E42: 609.7999878 | F42: EUR_COIN
A43: 10374 | B43: pointermove | C43: IRL-€02 | D43: 455.2000122 | E43: 611.4000244 | F43: EUR_COIN
A44: 10392 | B44: pointermove | C44: IRL-€02 | D44: 449.6000061 | E44: 612.2000122 | F44: EUR_COIN
A45: 10408 | B45: pointermove | C45: IRL-€02 | D45: 444.8000183 | E45: 613.7999878 | F45: EUR_COIN
A46: 10427 | B46: pointermove | C46: IRL-€02 | D46: 437.6000061 | E46: 616.2000122 | F46: EUR_COIN
A47: 10444 | B47: pointermove | C47: IRL-€02 | D47: 432 | E47: 617 | F47: EUR_COIN
A48: 10457 | B48: pointermove | C48: IRL-€02 | D48: 426.3999939 | E48: 617 | F48: EUR_COIN
A49: 10472 | B49: pointermove | C49: IRL-€02 | D49: 418.3999939 | E49: 616.2000122 | F49: EUR_COIN
A50: 10492 | B50: pointermove | C50: IRL-€02 | D50: 412.8000183 | E50: 616.2000122 | F50: EUR_COIN
A51: 10507 | B51: pointermove | C51: IRL-€02 | D51: 407.2000122 | E51: 616.2000122 | F51: EUR_COIN
A52: 10527 | B52: pointermove | C52: IRL-€02 | D52: 401.6000061 | E52: 616.2000122 | F52: EUR_COIN
A53: 10544 | B53: pointermove | C53: IRL-€02 | D53: 396 | E53: 616.2000122 | F53: EUR_COIN
A54: 10560 | B54: pointermove | C54: IRL-€02 | D54: 393.6000061 | E54: 616.2000122 | F54: EUR_COIN
A55: 10578 | B55: pointermove | C55: IRL-€02 | D55: 386.3999939 | E55: 617.7999878 | F55: EUR_COIN
A56: 10587 | B56: pointermove | C56: IRL-€02 | D56: 382.3999939 | E56: 618.6000366 | F56: EUR_COIN
A57: 10607 | B57: pointermove | C57: IRL-€02 | D57: 376.8000183 | E57: 621 | F57: EUR_COIN
A58: 10623 | B58: pointermove | C58: IRL-€02 | D58: 372 | E58: 621.7999878 | F58: EUR_COIN
A59: 10642 | B59: pointermove | C59: IRL-€02 | D59: 370.3999939 | E59: 621.7999878 | F59: EUR_COIN
A60: 10659 | B60: pointermove | C60: IRL-€02 | D60: 368 | E60: 621.7999878 | F60: EUR_COIN
A61: 10677 | B61: pointermove | C61: IRL-€02 | D61: 365.6000061 | E61: 621.7999878 | F61: EUR_COIN
A62: 10692 | B62: pointermove | C62: IRL-€02 | D62: 364 | E62: 621.7999878 | F62: EUR_COIN
A63: 10710 | B63: pointermove | C63: IRL-€02 | D63: 361.6000061 | E63: 621.7999878 | F63: EUR_COIN
A64: 10728 | B64: pointermove | C64: IRL-€02 | D64: 360 | E64: 621.7999878 | F64: EUR_COIN
A65: 10737 | B65: pointermove | C65: IRL-€02 | D65: 358.3999939 | E65: 621.7999878 | F65: EUR_COIN
A66: 10754 | B66: pointermove | C66: IRL-€02 | D66: 356.8000183 | E66: 622.6000366 | F66: EUR_COIN
A67: 10772 | B67: pointermove | C67: IRL-€02 | D67: 354.3999939 | E67: 622.6000366 | F67: EUR_COIN
A68: 10790 | B68: pointermove | C68: IRL-€02 | D68: 352 | E68: 623.4000244 | F68: EUR_COIN
A69: 10808 | B69: pointermove | C69: IRL-€02 | D69: 350.3999939 | E69: 623.4000244 | F69: EUR_COIN
A70: 10827 | B70: pointermove | C70: IRL-€02 | D70: 348 | E70: 623.4000244 | F70: EUR_COIN
A71: 10843 | B71: pointermove | C71: IRL-€02 | D71: 346.3999939 | E71: 623.4000244 | F71: EUR_COIN
A72: 10861 | B72: pointermove | C72: IRL-€02 | D72: 344 | E72: 623.4000244 | F72: EUR_COIN
A73: 10870 | B73: pointermove | C73: IRL-€02 | D73: 343.2000122 | E73: 623.4000244 | F73: EUR_COIN
A74: 10882 | B74: pointerup | C74: IRL-€02 | D74: 343.2000122 | E74: 623.4000244 | F74: EUR_COIN
A75: 12207 | B75: pointerdown | C75: IRL-€02 | D75: 880.7999878 | E75: 413 | F75: EUR_COIN
A76: 12416 | B76: pointermove | C76: IRL-€02 | D76: 880 | E76: 413 | F76: EUR_COIN
A77: 12425 | B77: pointermove | C77: IRL-€02 | D77: 876.7999878 | E77: 413 | F77: EUR_COIN
A78: 12444 | B78: pointermove | C78: IRL-€02 | D78: 869.6000366 | E78: 413 | F78: EUR_COIN
A79: 12459 | B79: pointermove | C79: IRL-€02 | D79: 864 | E79: 413 | F79: EUR_COIN
A80: 12477 | B80: pointermove | C80: IRL-€02 | D80: 856 | E80: 411.3999939 | F80: EUR_COIN
A81: 12489 | B81: pointermove | C81: IRL-€02 | D81: 849.6000366 | E81: 411.3999939 | F81: EUR_COIN
A82: 12509 | B82: pointermove | C82: IRL-€02 | D82: 840 | E82: 411.3999939 | F82: EUR_COIN
A83: 12524 | B83: pointermove | C83: IRL-€02 | D83: 834.4000244 | E83: 411.3999939 | F83: EUR_COIN
A84: 12544 | B84: pointermove | C84: IRL-€02 | D84: 828 | E84: 411.3999939 | F84: EUR_COIN
A85: 12558 | B85: pointermove | C85: IRL-€02 | D85: 821.6000366 | E85: 411.3999939 | F85: EUR_COIN
A86: 12575 | B86: pointermove | C86: IRL-€02 | D86: 813.6000366 | E86: 411.3999939 | F86: EUR_COIN
A87: 12593 | B87: pointermove | C87: IRL-€02 | D87: 805.6000366 | E87: 411.3999939 | F87: EUR_COIN
A88: 12604 | B88: pointermove | C88: IRL-€02 | D88: 799.2000122 | E88: 413 | F88: EUR_COIN
A89: 12623 | B89: pointermove | C89: IRL-€02 | D89: 783.2000122 | E89: 416.2000122 | F89: EUR_COIN
A90: 12639 | B90: pointermove | C90: IRL-€02 | D90: 761.6000366 | E90: 421.8000183 | F90: EUR_COIN
A91: 12658 | B91: pointermove | C91: IRL-€02 | D91: 734.4000244 | E91: 426.6000061 | F91: EUR_COIN
A92: 12675 | B92: pointermove | C92: IRL-€02 | D92: 696 | E92: 429 | F92: EUR_COIN
A93: 12694 | B93: pointermove | C93: IRL-€02 | D93: 640 | E93: 425 | F93: EUR_COIN
A94: 12710 | B94: pointermove | C94: IRL-€02 | D94: 587.2000122 | E94: 414.6000061 | F94: EUR_COIN
A95: 12720 | B95: pointermove | C95: IRL-€02 | D95: 552.7999878 | E95: 405 | F95: EUR_COIN
A96: 12738 | B96: pointermove | C96: IRL-€02 | D96: 504.8000183 | E96: 385 | F96: EUR_COIN
A97: 12759 | B97: pointermove | C97: IRL-€02 | D97: 469.6000061 | E97: 366.6000061 | F97: EUR_COIN
A98: 12774 | B98: pointermove | C98: IRL-€02 | D98: 450.3999939 | E98: 359.3999939 | F98: EUR_COIN
A99: 12790 | B99: pointermove | C99: IRL-€02 | D99: 443.2000122 | E99: 357.8000183 | F99: EUR_COIN
A100: 12794 | B100: pointermove | C100: IRL-€02 | D100: 442.3999939 | E100: 357.8000183 | F100: EUR_COIN
A101: 12853 | B101: pointermove | C101: IRL-€02 | D101: 442.3999939 | E101: 357 | F101: EUR_COIN
A102: 12944 | B102: pointermove | C102: IRL-€02 | D102: 442.3999939 | E102: 356.2000122 | F102: EUR_COIN
A103: 12954 | B103: pointermove | C103: IRL-€02 | D103: 440.8000183 | E103: 355.3999939 | F103: EUR_COIN
A104: 12975 | B104: pointermove | C104: IRL-€02 | D104: 438.3999939 | E104: 353 | F104: EUR_COIN
A105: 12989 | B105: pointermove | C105: IRL-€02 | D105: 432 | E105: 349.8000183 | F105: EUR_COIN
A106: 13010 | B106: pointermove | C106: IRL-€02 | D106: 421.6000061 | E106: 348.2000122 | F106: EUR_COIN
A107: 13025 | B107: pointermove | C107: IRL-€02 | D107: 407.2000122 | E107: 348.2000122 | F107: EUR_COIN
A108: 13042 | B108: pointermove | C108: IRL-€02 | D108: 392 | E108: 350.6000061 | F108: EUR_COIN
A109: 13060 | B109: pointermove | C109: IRL-€02 | D109: 376.8000183 | E109: 355.3999939 | F109: EUR_COIN
A110: 13070 | B110: pointermove | C110: IRL-€02 | D110: 364.8000183 | E110: 358.6000061 | F110: EUR_COIN
A111: 13090 | B111: pointermove | C111: IRL-€02 | D111: 350.3999939 | E111: 362.6000061 | F111: EUR_COIN
A112: 13110 | B112: pointermove | C112: IRL-€02 | D112: 339.2000122 | E112: 365 | F112: EUR_COIN
A113: 13124 | B113: pointermove | C113: IRL-€02 | D113: 328.8000183 | E113: 366.6000061 | F113: EUR_COIN
A114: 13142 | B114: pointermove | C114: IRL-€02 | D114: 321.6000061 | E114: 368.2000122 | F114: EUR_COIN
A115: 13159 | B115: pointermove | C115: IRL-€02 | D115: 313.6000061 | E115: 368.2000122 | F115: EUR_COIN
A116: 13170 | B116: pointermove | C116: IRL-€02 | D116: 311.2000122 | E116: 368.2000122 | F116: EUR_COIN
A117: 13190 | B117: pointermove | C117: IRL-€02 | D117: 308 | E117: 368.2000122 | F117: EUR_COIN
A118: 13205 | B118: pointermove | C118: IRL-€02 | D118: 304 | E118: 368.2000122 | F118: EUR_COIN
A119: 13225 | B119: pointermove | C119: IRL-€02 | D119: 300.8000183 | E119: 368.2000122 | F119: EUR_COIN
A120: 13244 | B120: pointermove | C120: IRL-€02 | D120: 299.2000122 | E120: 368.2000122 | F120: EUR_COIN
A121: 13259 | B121: pointermove | C121: IRL-€02 | D121: 296.8000183 | E121: 368.2000122 | F121: EUR_COIN
A122: 13269 | B122: pointermove | C122: IRL-€02 | D122: 295.2000122 | E122: 368.2000122 | F122: EUR_COIN
A123: 13289 | B123: pointermove | C123: IRL-€02 | D123: 293.6000061 | E123: 368.2000122 | F123: EUR_COIN
A124: 13304 | B124: pointermove | C124: IRL-€02 | D124: 291.2000122 | E124: 368.2000122 | F124: EUR_COIN
A125: 13325 | B125: pointermove | C125: IRL-€02 | D125: 288.8000183 | E125: 368.2000122 | F125: EUR_COIN
A126: 13339 | B126: pointermove | C126: IRL-€02 | D126: 287.2000122 | E126: 368.2000122 | F126: EUR_COIN
A127: 13359 | B127: pointermove | C127: IRL-€02 | D127: 284.8000183 | E127: 367.3999939 | F127: EUR_COIN
A128: 13375 | B128: pointermove | C128: IRL-€02 | D128: 283.2000122 | E128: 366.6000061 | F128: EUR_COIN
A129: 13384 | B129: pointermove | C129: IRL-€02 | D129: 281.6000061 | E129: 365 | F129: EUR_COIN
A130: 13395 | B130: pointerup | C130: IRL-€02 | D130: 281.6000061 | E130: 365 | F130: EUR_COIN
A131: 15864 | B131: pointerdown | C131: IRL-€20 | D131: 1392.800049 | E131: 621 | F131: EUR_COIN
A132: 16013 | B132: pointermove | C132: IRL-€20 | D132: 1392 | E132: 621 | F132: EUR_COIN
A133: 16022 | B133: pointermove | C133: IRL-€20 | D133: 1380 | E133: 621 | F133: EUR_COIN
A134: 16037 | B134: pointermove | C134: IRL-€20 | D134: 1340 | E134: 621 | F134: EUR_COIN
A135: 16057 | B135: pointermove | C135: IRL-€20 | D135: 1285.599976 | E135: 614.6000366 | F135: EUR_COIN
A136: 16073 | B136: pointermove | C136: IRL-€20 | D136: 1217.599976 | E136: 599.4000244 | F136: EUR_COIN
A137: 16092 | B137: pointermove | C137: IRL-€20 | D137: 1144.800049 | E137: 577 | F137: EUR_COIN
A138: 16107 | B138: pointermove | C138: IRL-€20 | D138: 1079.200073 | E138: 546.6000366 | F138: EUR_COIN
A139: 16125 | B139: pointermove | C139: IRL-€20 | D139: 1008.799988 | E139: 508.2000122 | F139: EUR_COIN
A140: 16143 | B140: pointermove | C140: IRL-€20 | D140: 941.6000366 | E140: 465 | F140: EUR_COIN
A141: 16153 | B141: pointermove | C141: IRL-€20 | D141: 911.2000122 | E141: 442.6000671 | F141: EUR_COIN
A142: 16172 | B142: pointermove | C142: IRL-€20 | D142: 880.7999878 | E142: 419.3999939 | F142: EUR_COIN
A143: 16192 | B143: pointermove | C143: IRL-€20 | D143: 867.2000122 | E143: 411.3999939 | F143: EUR_COIN
A144: 16207 | B144: pointermove | C144: IRL-€20 | D144: 860 | E144: 409 | F144: EUR_COIN
A145: 16225 | B145: pointermove | C145: IRL-€20 | D145: 856.7999878 | E145: 407.3999939 | F145: EUR_COIN
A146: 16242 | B146: pointermove | C146: IRL-€20 | D146: 855.2000122 | E146: 407.3999939 | F146: EUR_COIN
A147: 16259 | B147: pointermove | C147: IRL-€20 | D147: 852.7999878 | E147: 406.6000061 | F147: EUR_COIN
A148: 16269 | B148: pointermove | C148: IRL-€20 | D148: 850.4000244 | E148: 405.8000183 | F148: EUR_COIN
A149: 16288 | B149: pointermove | C149: IRL-€20 | D149: 845.6000366 | E149: 403.3999939 | F149: EUR_COIN
A150: 16307 | B150: pointermove | C150: IRL-€20 | D150: 840 | E150: 400.2000122 | F150: EUR_COIN
A151: 16323 | B151: pointermove | C151: IRL-€20 | D151: 835.2000122 | E151: 397.8000183 | F151: EUR_COIN
A152: 16343 | B152: pointermove | C152: IRL-€20 | D152: 829.6000366 | E152: 395.3999939 | F152: EUR_COIN
A153: 16359 | B153: pointermove | C153: IRL-€20 | D153: 827.2000122 | E153: 394.6000061 | F153: EUR_COIN
A154: 16369 | B154: pointermove | C154: IRL-€20 | D154: 824.7999878 | E154: 394.6000061 | F154: EUR_COIN
A155: 16386 | B155: pointermove | C155: IRL-€20 | D155: 822.4000244 | E155: 393.8000183 | F155: EUR_COIN
A156: 16405 | B156: pointermove | C156: IRL-€20 | D156: 819.2000122 | E156: 393.8000183 | F156: EUR_COIN
A157: 16422 | B157: pointermove | C157: IRL-€20 | D157: 816 | E157: 393.8000183 | F157: EUR_COIN
A158: 16442 | B158: pointermove | C158: IRL-€20 | D158: 809.6000366 | E158: 391.3999939 | F158: EUR_COIN
A159: 16458 | B159: pointermove | C159: IRL-€20 | D159: 804 | E159: 390.6000061 | F159: EUR_COIN
A160: 16476 | B160: pointermove | C160: IRL-€20 | D160: 796.7999878 | E160: 387.3999939 | F160: EUR_COIN
A161: 16487 | B161: pointermove | C161: IRL-€20 | D161: 791.2000122 | E161: 384.2000122 | F161: EUR_COIN
A162: 16507 | B162: pointermove | C162: IRL-€20 | D162: 781.6000366 | E162: 376.2000122 | F162: EUR_COIN
A163: 16523 | B163: pointermove | C163: IRL-€20 | D163: 774.4000244 | E163: 368.2000122 | F163: EUR_COIN
A164: 16542 | B164: pointermove | C164: IRL-€20 | D164: 768 | E164: 361.8000183 | F164: EUR_COIN
A165: 16558 | B165: pointermove | C165: IRL-€20 | D165: 761.6000366 | E165: 357 | F165: EUR_COIN
A166: 16575 | B166: pointermove | C166: IRL-€20 | D166: 757.6000366 | E166: 353.8000183 | F166: EUR_COIN
A167: 16587 | B167: pointermove | C167: IRL-€20 | D167: 754.4000244 | E167: 352.2000122 | F167: EUR_COIN
A168: 16603 | B168: pointermove | C168: IRL-€20 | D168: 749.6000366 | E168: 349.8000183 | F168: EUR_COIN
A169: 16622 | B169: pointermove | C169: IRL-€20 | D169: 747.2000122 | E169: 347.3999939 | F169: EUR_COIN
A170: 16638 | B170: pointermove | C170: IRL-€20 | D170: 744.7999878 | E170: 346.6000061 | F170: EUR_COIN
A171: 16658 | B171: pointermove | C171: IRL-€20 | D171: 742.4000244 | E171: 345.8000183 | F171: EUR_COIN
A172: 16668 | B172: pointermove | C172: IRL-€20 | D172: 741.6000366 | E172: 345.8000183 | F172: EUR_COIN
A173: 16690 | B173: pointermove | C173: IRL-€20 | D173: 739.2000122 | E173: 345.8000183 | F173: EUR_COIN
A174: 16703 | B174: pointermove | C174: IRL-€20 | D174: 738.4000244 | E174: 345.8000183 | F174: EUR_COIN
A175: 16718 | B175: pointermove | C175: IRL-€20 | D175: 736 | E175: 346.6000061 | F175: EUR_COIN
A176: 16737 | B176: pointermove | C176: IRL-€20 | D176: 734.4000244 | E176: 346.6000061 | F176: EUR_COIN
A177: 16758 | B177: pointermove | C177: IRL-€20 | D177: 732.7999878 | E177: 347.3999939 | F177: EUR_COIN
A178: 16772 | B178: pointermove | C178: IRL-€20 | D178: 731.2000122 | E178: 347.3999939 | F178: EUR_COIN
A179: 16789 | B179: pointermove | C179: IRL-€20 | D179: 729.6000366 | E179: 347.3999939 | F179: EUR_COIN
A180: 16808 | B180: pointermove | C180: IRL-€20 | D180: 727.2000122 | E180: 349 | F180: EUR_COIN
A181: 16824 | B181: pointermove | C181: IRL-€20 | D181: 726.4000244 | E181: 349 | F181: EUR_COIN
A182: 16842 | B182: pointermove | C182: IRL-€20 | D182: 724.7999878 | E182: 349.8000183 | F182: EUR_COIN
A183: 16853 | B183: pointermove | C183: IRL-€20 | D183: 723.2000122 | E183: 349.8000183 | F183: EUR_COIN
A184: 16874 | B184: pointermove | C184: IRL-€20 | D184: 721.6000366 | E184: 349.8000183 | F184: EUR_COIN
A185: 16889 | B185: pointermove | C185: IRL-€20 | D185: 720 | E185: 350.6000061 | F185: EUR_COIN
A186: 16898 | B186: pointermove | C186: IRL-€20 | D186: 718.4000244 | E186: 351.3999939 | F186: EUR_COIN
A187: 16918 | B187: pointermove | C187: IRL-€20 | D187: 716.7999878 | E187: 351.3999939 | F187: EUR_COIN
A188: 16942 | B188: pointermove | C188: IRL-€20 | D188: 715.2000122 | E188: 352.2000122 | F188: EUR_COIN
A189: 16952 | B189: pointermove | C189: IRL-€20 | D189: 713.6000366 | E189: 352.2000122 | F189: EUR_COIN
A190: 16973 | B190: pointermove | C190: IRL-€20 | D190: 712 | E190: 352.2000122 | F190: EUR_COIN
A191: 16987 | B191: pointermove | C191: IRL-€20 | D191: 709.6000366 | E191: 352.2000122 | F191: EUR_COIN
A192: 17004 | B192: pointermove | C192: IRL-€20 | D192: 708 | E192: 352.2000122 | F192: EUR_COIN
A193: 17022 | B193: pointermove | C193: IRL-€20 | D193: 705.6000366 | E193: 352.2000122 | F193: EUR_COIN
A194: 17040 | B194: pointermove | C194: IRL-€20 | D194: 704 | E194: 351.3999939 | F194: EUR_COIN
A195: 17058 | B195: pointermove | C195: IRL-€20 | D195: 701.6000366 | E195: 350.6000061 | F195: EUR_COIN
A196: 17075 | B196: pointermove | C196: IRL-€20 | D196: 699.2000122 | E196: 350.6000061 | F196: EUR_COIN
A197: 17088 | B197: pointermove | C197: IRL-€20 | D197: 697.6000366 | E197: 350.6000061 | F197: EUR_COIN
A198: 17103 | B198: pointermove | C198: IRL-€20 | D198: 696 | E198: 349.8000183 | F198: EUR_COIN
A199: 17120 | B199: pointermove | C199: IRL-€20 | D199: 693.6000366 | E199: 349.8000183 | F199: EUR_COIN
A200: 17133 | B200: pointermove | C200: IRL-€20 | D200: 692 | E200: 349.8000183 | F200: EUR_COIN
A201: 17143 | B201: pointerup | C201: IRL-€20 | D201: 692 | E201: 349.8000183 | F201: EUR_COIN
... 602 more rows

Sheet f5_a3_m
A1: element | B1: sourceX | C1: sourceY | D1: sourceW | E1: sourceH | F1: targetX | G1: targetY | H1: targetW | I1: targetH | J1: Válaszkártyák | K1: Időigény | L1: Sebesség3
A2: COLOR_GREEN-DOT_2 | B2: 937 | C2: 167 | D2: 152 | E2: 152 | F2: 470 | G2: 468 | H2: 171 | I2: 171 | J2: COLOR_GREEN-DOT_2 | K2: 941 | L2: 0.6166749916
A3: COLOR_BROWN-DOT_2 | B3: 1165 | C3: 167 | D3: 152 | E3: 152 | F3: 470 | G3: 296 | H3: 171 | I3: 171 | J3: COLOR_BROWN-DOT_1 | K3: 1229 | L3: 0.5440906096
A4: COLOR_GREEN-DOT_1 | B4: 1393 | C4: 167 | D4: 152 | E4: 152 | F4: 298 | G4: 468 | H4: 171 | I4: 171 | J4: COLOR_BLUE-DOT_1 | K4: 941 | L4: 0.6982419241
A5: COLOR_BROWN-DOT_1 | B5: 937 | C5: 395 | D5: 152 | E5: 152 | F5: 298 | G5: 296 | H5: 171 | I5: 171 | J5: COLOR_BROWN-DOT_2 | K5: 857 | L5: 0.8499841719
A6: COLOR_BLUE-DOT_3 | B6: 1165 | C6: 395 | D6: 152 | E6: 152 | F6: 642 | G6: 640 | H6: 171 | I6: 171 | J6: COLOR_GREEN-DOT_1 | K6: 1186 | L6: 0.9650337536
A7: COLOR_GREEN-DOT_3 | B7: 1393 | C7: 395 | D7: 152 | E7: 152 | F7: 642 | G7: 468 | H7: 171 | I7: 171 | J7: COLOR_BLUE-DOT_3 | K7: 1514 | L7: 0.469727772
A8: COLOR_BLUE-DOT_1 | B8: 937 | C8: 623 | D8: 152 | E8: 152 | F8: 298 | G8: 640 | H8: 171 | I8: 171 | J8: COLOR_BLUE-DOT_2 | K8: 555 | L8: 1.255983756
A9: COLOR_BLUE-DOT_2 | B9: 1165 | C9: 623 | D9: 152 | E9: 152 | F9: 470 | G9: 640 | H9: 171 | I9: 171 | J9: COLOR_GREEN-DOT_3 | K9: 1050 | L9: 0.7110877836
A10: COLOR_BROWN-DOT_3 | B10: 1393 | C10: 623 | D10: 152 | E10: 152 | F10: 642 | G10: 296 | H10: 171 | I10: 171 | J10: COLOR_BROWN-DOT_3 | K10: 936 | L10: 0.9123990972
A12: time | B12: event | C12: element | D12: x | E12: y | F12: game
A13: 0 | B13: START | C13: ALL | D13: 0 | E13: 0 | F13: COLOR_DOT
A14: 1243 | B14: pointerdown | C14: COLOR_GREEN-DOT_2 | D14: 926.4000244 | E14: 145 | F14: COLOR_DOT
A15: 1278 | B15: pointermove | C15: COLOR_GREEN-DOT_2 | D15: 923.2000122 | E15: 150.6000061 | F15: COLOR_DOT
A16: 1287 | B16: pointermove | C16: COLOR_GREEN-DOT_2 | D16: 920 | E16: 153.8000031 | F16: COLOR_DOT
A17: 1307 | B17: pointermove | C17: COLOR_GREEN-DOT_2 | D17: 910.4000244 | E17: 164.1999969 | F17: COLOR_DOT
A18: 1324 | B18: pointermove | C18: COLOR_GREEN-DOT_2 | D18: 898.4000244 | E18: 173 | F18: COLOR_DOT
A19: 1343 | B19: pointermove | C19: COLOR_GREEN-DOT_2 | D19: 884 | E19: 184.1999969 | F19: COLOR_DOT
A20: 1359 | B20: pointermove | C20: COLOR_GREEN-DOT_2 | D20: 866.4000244 | E20: 196.2000122 | F20: COLOR_DOT
A21: 1378 | B21: pointermove | C21: COLOR_GREEN-DOT_2 | D21: 844 | E21: 214.6000061 | F21: COLOR_DOT
A22: 1388 | B22: pointermove | C22: COLOR_GREEN-DOT_2 | D22: 827.2000122 | E22: 226.6000061 | F22: COLOR_DOT
A23: 1408 | B23: pointermove | C23: COLOR_GREEN-DOT_2 | D23: 794.4000244 | E23: 254.6000061 | F23: COLOR_DOT
A24: 1424 | B24: pointermove | C24: COLOR_GREEN-DOT_2 | D24: 761.6000366 | E24: 282.6000061 | F24: COLOR_DOT
A25: 1443 | B25: pointermove | C25: COLOR_GREEN-DOT_2 | D25: 731.2000122 | E25: 309 | F25: COLOR_DOT
A26: 1459 | B26: pointermove | C26: COLOR_GREEN-DOT_2 | D26: 712 | E26: 325 | F26: COLOR_DOT
A27: 1477 | B27: pointermove | C27: COLOR_GREEN-DOT_2 | D27: 700 | E27: 330.6000061 | F27: COLOR_DOT
A28: 1488 | B28: pointermove | C28: COLOR_GREEN-DOT_2 | D28: 697.6000366 | E28: 330.6000061 | F28: COLOR_DOT
A29: 1635 | B29: pointermove | C29: COLOR_GREEN-DOT_2 | D29: 696.7999878 | E29: 333.8000183 | F29: COLOR_DOT
A30: 1644 | B30: pointermove | C30: COLOR_GREEN-DOT_2 | D30: 692.7999878 | E30: 339.3999939 | F30: COLOR_DOT
A31: 1659 | B31: pointermove | C31: COLOR_GREEN-DOT_2 | D31: 676.7999878 | E31: 353.8000183 | F31: COLOR_DOT
A32: 1678 | B32: pointermove | C32: COLOR_GREEN-DOT_2 | D32: 644.7999878 | E32: 379.3999939 | F32: COLOR_DOT
A33: 1687 | B33: pointermove | C33: COLOR_GREEN-DOT_2 | D33: 628 | E33: 391.3999939 | F33: COLOR_DOT
A34: 1707 | B34: pointermove | C34: COLOR_GREEN-DOT_2 | D34: 593.6000366 | E34: 413 | F34: COLOR_DOT
A35: 1723 | B35: pointermove | C35: COLOR_GREEN-DOT_2 | D35: 564.7999878 | E35: 429.8000183 | F35: COLOR_DOT
A36: 1743 | B36: pointermove | C36: COLOR_GREEN-DOT_2 | D36: 548.7999878 | E36: 438.6000061 | F36: COLOR_DOT
A37: 1760 | B37: pointermove | C37: COLOR_GREEN-DOT_2 | D37: 542.4000244 | E37: 442.6000671 | F37: COLOR_DOT
A38: 1778 | B38: pointermove | C38: COLOR_GREEN-DOT_2 | D38: 538.4000244 | E38: 445 | F38: COLOR_DOT
A39: 1797 | B39: pointermove | C39: COLOR_GREEN-DOT_2 | D39: 537.6000366 | E39: 445 | F39: COLOR_DOT
A40: 1807 | B40: pointermove | C40: COLOR_GREEN-DOT_2 | D40: 536.7999878 | E40: 445 | F40: COLOR_DOT
A41: 1823 | B41: pointermove | C41: COLOR_GREEN-DOT_2 | D41: 532.7999878 | E41: 445 | F41: COLOR_DOT
A42: 1842 | B42: pointermove | C42: COLOR_GREEN-DOT_2 | D42: 528.7999878 | E42: 443.3999939 | F42: COLOR_DOT
A43: 1852 | B43: pointermove | C43: COLOR_GREEN-DOT_2 | D43: 526.4000244 | E43: 442.6000671 | F43: COLOR_DOT
A44: 1879 | B44: pointermove | C44: COLOR_GREEN-DOT_2 | D44: 523.2000122 | E44: 441.8000183 | F44: COLOR_DOT
A45: 1895 | B45: pointermove | C45: COLOR_GREEN-DOT_2 | D45: 522.4000244 | E45: 441.8000183 | F45: COLOR_DOT
A46: 1948 | B46: pointermove | C46: COLOR_GREEN-DOT_2 | D46: 521.6000366 | E46: 440.2000122 | F46: COLOR_DOT
A47: 1957 | B47: pointermove | C47: COLOR_GREEN-DOT_2 | D47: 518.4000244 | E47: 437.8000183 | F47: COLOR_DOT
A48: 1977 | B48: pointermove | C48: COLOR_GREEN-DOT_2 | D48: 508.8000183 | E48: 430.6000061 | F48: COLOR_DOT
A49: 1993 | B49: pointermove | C49: COLOR_GREEN-DOT_2 | D49: 499.2000122 | E49: 425.8000183 | F49: COLOR_DOT
A50: 2010 | B50: pointermove | C50: COLOR_GREEN-DOT_2 | D50: 489.6000061 | E50: 423.3999939 | F50: COLOR_DOT
A51: 2021 | B51: pointermove | C51: COLOR_GREEN-DOT_2 | D51: 483.2000122 | E51: 423.3999939 | F51: COLOR_DOT
A52: 2042 | B52: pointermove | C52: COLOR_GREEN-DOT_2 | D52: 476 | E52: 425 | F52: COLOR_DOT
A53: 2057 | B53: pointermove | C53: COLOR_GREEN-DOT_2 | D53: 470.3999939 | E53: 426.6000061 | F53: COLOR_DOT
A54: 2078 | B54: pointermove | C54: COLOR_GREEN-DOT_2 | D54: 468.8000183 | E54: 427.3999939 | F54: COLOR_DOT
A55: 2105 | B55: pointermove | C55: COLOR_GREEN-DOT_2 | D55: 468.8000183 | E55: 428.2000122 | F55: COLOR_DOT
A56: 2112 | B56: pointermove | C56: COLOR_GREEN-DOT_2 | D56: 468 | E56: 428.2000122 | F56: COLOR_DOT
A57: 2123 | B57: pointermove | C57: COLOR_GREEN-DOT_2 | D57: 467.2000122 | E57: 429 | F57: COLOR_DOT
A58: 2141 | B58: pointermove | C58: COLOR_GREEN-DOT_2 | D58: 466.3999939 | E58: 430.6000061 | F58: COLOR_DOT
A59: 2159 | B59: pointermove | C59: COLOR_GREEN-DOT_2 | D59: 464 | E59: 433 | F59: COLOR_DOT
A60: 2169 | B60: pointermove | C60: COLOR_GREEN-DOT_2 | D60: 463.2000122 | E60: 433.8000183 | F60: COLOR_DOT
A61: 2184 | B61: pointermove | C61: COLOR_GREEN-DOT_2 | D61: 462.3999939 | E61: 433.8000183 | F61: COLOR_DOT
A62: 2333 | B62: pointerup | C62: COLOR_GREEN-DOT_2 | D62: 462.3999939 | E62: 433.8000183 | F62: COLOR_DOT
A63: 3247 | B63: pointerdown | C63: COLOR_BROWN-DOT_1 | D63: 908 | E63: 393 | F63: COLOR_DOT
A64: 3308 | B64: pointermove | C64: COLOR_BROWN-DOT_1 | D64: 907.2000122 | E64: 393 | F64: COLOR_DOT
A65: 3327 | B65: pointermove | C65: COLOR_BROWN-DOT_1 | D65: 902.4000244 | E65: 393 | F65: COLOR_DOT
A66: 3343 | B66: pointermove | C66: COLOR_BROWN-DOT_1 | D66: 886.4000244 | E66: 390.6000061 | F66: COLOR_DOT
A67: 3359 | B67: pointermove | C67: COLOR_BROWN-DOT_1 | D67: 860 | E67: 384.2000122 | F67: COLOR_DOT
A68: 3378 | B68: pointermove | C68: COLOR_BROWN-DOT_1 | D68: 817.6000366 | E68: 369.8000183 | F68: COLOR_DOT
A69: 3391 | B69: pointermove | C69: COLOR_BROWN-DOT_1 | D69: 786.4000244 | E69: 357.8000183 | F69: COLOR_DOT
A70: 3407 | B70: pointermove | C70: COLOR_BROWN-DOT_1 | D70: 748 | E70: 338.6000061 | F70: COLOR_DOT
A71: 3426 | B71: pointermove | C71: COLOR_BROWN-DOT_1 | D71: 720 | E71: 328.2000122 | F71: COLOR_DOT
A72: 3441 | B72: pointermove | C72: COLOR_BROWN-DOT_1 | D72: 702.4000244 | E72: 325.8000183 | F72: COLOR_DOT
A73: 3454 | B73: pointermove | C73: COLOR_BROWN-DOT_1 | D73: 700 | E73: 325 | F73: COLOR_DOT
A74: 3617 | B74: pointermove | C74: COLOR_BROWN-DOT_1 | D74: 699.2000122 | E74: 325 | F74: COLOR_DOT
A75: 3625 | B75: pointermove | C75: COLOR_BROWN-DOT_1 | D75: 690.4000244 | E75: 326.6000061 | F75: COLOR_DOT
A76: 3641 | B76: pointermove | C76: COLOR_BROWN-DOT_1 | D76: 646.4000244 | E76: 332.2000122 | F76: COLOR_DOT
A77: 3660 | B77: pointermove | C77: COLOR_BROWN-DOT_1 | D77: 596 | E77: 333 | F77: COLOR_DOT
A78: 3677 | B78: pointermove | C78: COLOR_BROWN-DOT_1 | D78: 528.7999878 | E78: 329.8000183 | F78: COLOR_DOT
A79: 3687 | B79: pointermove | C79: COLOR_BROWN-DOT_1 | D79: 490.3999939 | E79: 325.8000183 | F79: COLOR_DOT
A80: 3705 | B80: pointermove | C80: COLOR_BROWN-DOT_1 | D80: 441.6000061 | E80: 322.6000061 | F80: COLOR_DOT
A81: 3726 | B81: pointermove | C81: COLOR_BROWN-DOT_1 | D81: 416 | E81: 321 | F81: COLOR_DOT
A82: 3741 | B82: pointermove | C82: COLOR_BROWN-DOT_1 | D82: 411.2000122 | E82: 321 | F82: COLOR_DOT
A83: 3899 | B83: pointermove | C83: COLOR_BROWN-DOT_1 | D83: 409.6000061 | E83: 321.8000183 | F83: COLOR_DOT
A84: 3908 | B84: pointermove | C84: COLOR_BROWN-DOT_1 | D84: 405.6000061 | E84: 323.3999939 | F84: COLOR_DOT
A85: 3926 | B85: pointermove | C85: COLOR_BROWN-DOT_1 | D85: 395.2000122 | E85: 329.8000183 | F85: COLOR_DOT
A86: 3941 | B86: pointermove | C86: COLOR_BROWN-DOT_1 | D86: 375.2000122 | E86: 337 | F86: COLOR_DOT
A87: 3961 | B87: pointermove | C87: COLOR_BROWN-DOT_1 | D87: 352 | E87: 339.3999939 | F87: COLOR_DOT
A88: 3977 | B88: pointermove | C88: COLOR_BROWN-DOT_1 | D88: 333.6000061 | E88: 337.8000183 | F88: COLOR_DOT
A89: 3986 | B89: pointermove | C89: COLOR_BROWN-DOT_1 | D89: 320 | E89: 335.3999939 | F89: COLOR_DOT
A90: 4007 | B90: pointermove | C90: COLOR_BROWN-DOT_1 | D90: 305.6000061 | E90: 328.2000122 | F90: COLOR_DOT
A91: 4027 | B91: pointermove | C91: COLOR_BROWN-DOT_1 | D91: 296.8000183 | E91: 321.8000183 | F91: COLOR_DOT
A92: 4042 | B92: pointermove | C92: COLOR_BROWN-DOT_1 | D92: 291.2000122 | E92: 318.6000061 | F92: COLOR_DOT
A93: 4059 | B93: pointermove | C93: COLOR_BROWN-DOT_1 | D93: 288 | E93: 317 | F93: COLOR_DOT
A94: 4077 | B94: pointermove | C94: COLOR_BROWN-DOT_1 | D94: 285.6000061 | E94: 315.3999939 | F94: COLOR_DOT
A95: 4081 | B95: pointermove | C95: COLOR_BROWN-DOT_1 | D95: 285.6000061 | E95: 314.6000061 | F95: COLOR_DOT
A96: 4114 | B96: pointermove | C96: COLOR_BROWN-DOT_1 | D96: 284.8000183 | E96: 314.6000061 | F96: COLOR_DOT
A97: 4227 | B97: pointermove | C97: COLOR_BROWN-DOT_1 | D97: 284.8000183 | E97: 313.8000183 | F97: COLOR_DOT
A98: 4244 | B98: pointermove | C98: COLOR_BROWN-DOT_1 | D98: 284.8000183 | E98: 311.3999939 | F98: COLOR_DOT
A99: 4259 | B99: pointermove | C99: COLOR_BROWN-DOT_1 | D99: 284.8000183 | E99: 308.2000122 | F99: COLOR_DOT
A100: 4277 | B100: pointermove | C100: COLOR_BROWN-DOT_1 | D100: 283.2000122 | E100: 303.3999939 | F100: COLOR_DOT
A101: 4287 | B101: pointermove | C101: COLOR_BROWN-DOT_1 | D101: 282.3999939 | E101: 299.3999939 | F101: COLOR_DOT
A102: 4305 | B102: pointermove | C102: COLOR_BROWN-DOT_1 | D102: 281.6000061 | E102: 296.2000122 | F102: COLOR_DOT
A103: 4318 | B103: pointermove | C103: COLOR_BROWN-DOT_1 | D103: 281.6000061 | E103: 295.3999939 | F103: COLOR_DOT
A104: 4332 | B104: pointermove | C104: COLOR_BROWN-DOT_1 | D104: 281.6000061 | E104: 294.6000061 | F104: COLOR_DOT
A105: 4441 | B105: pointermove | C105: COLOR_BROWN-DOT_1 | D105: 281.6000061 | E105: 293.8000183 | F105: COLOR_DOT
A106: 4476 | B106: pointermove | C106: COLOR_BROWN-DOT_1 | D106: 280.8000183 | E106: 293.8000183 | F106: COLOR_DOT
A107: 4557 | B107: pointerup | C107: COLOR_BROWN-DOT_1 | D107: 280.8000183 | E107: 293.8000183 | F107: COLOR_DOT
A108: 5480 | B108: pointerdown | C108: COLOR_BLUE-DOT_1 | D108: 920.7999878 | E108: 641 | F108: COLOR_DOT
A109: 5492 | B109: pointermove | C109: COLOR_BLUE-DOT_1 | D109: 916.7999878 | E109: 641 | F109: COLOR_DOT
A110: 5509 | B110: pointermove | C110: COLOR_BLUE-DOT_1 | D110: 907.2000122 | E110: 640.2000122 | F110: COLOR_DOT
A111: 5520 | B111: pointermove | C111: COLOR_BLUE-DOT_1 | D111: 899.2000122 | E111: 640.2000122 | F111: COLOR_DOT
A112: 5541 | B112: pointermove | C112: COLOR_BLUE-DOT_1 | D112: 881.6000366 | E112: 638.6000366 | F112: COLOR_DOT
A113: 5557 | B113: pointermove | C113: COLOR_BLUE-DOT_1 | D113: 860 | E113: 638.6000366 | F113: COLOR_DOT
A114: 5576 | B114: pointermove | C114: COLOR_BLUE-DOT_1 | D114: 828.7999878 | E114: 637.7999878 | F114: COLOR_DOT
A115: 5592 | B115: pointermove | C115: COLOR_BLUE-DOT_1 | D115: 784 | E115: 634.6000366 | F115: COLOR_DOT
A116: 5609 | B116: pointermove | C116: COLOR_BLUE-DOT_1 | D116: 740 | E116: 628.2000122 | F116: COLOR_DOT
A117: 5627 | B117: pointermove | C117: COLOR_BLUE-DOT_1 | D117: 684.7999878 | E117: 619.4000244 | F117: COLOR_DOT
A118: 5640 | B118: pointermove | C118: COLOR_BLUE-DOT_1 | D118: 654.4000244 | E118: 614.6000366 | F118: COLOR_DOT
A119: 5655 | B119: pointermove | C119: COLOR_BLUE-DOT_1 | D119: 624 | E119: 607.4000244 | F119: COLOR_DOT
A120: 5675 | B120: pointermove | C120: COLOR_BLUE-DOT_1 | D120: 613.6000366 | E120: 601 | F120: COLOR_DOT
A121: 5831 | B121: pointermove | C121: COLOR_BLUE-DOT_1 | D121: 606.4000244 | E121: 602.6000366 | F121: COLOR_DOT
A122: 5840 | B122: pointermove | C122: COLOR_BLUE-DOT_1 | D122: 592.7999878 | E122: 606.6000366 | F122: COLOR_DOT
A123: 5861 | B123: pointermove | C123: COLOR_BLUE-DOT_1 | D123: 552 | E123: 613.7999878 | F123: COLOR_DOT
A124: 5874 | B124: pointermove | C124: COLOR_BLUE-DOT_1 | D124: 503.2000122 | E124: 621.7999878 | F124: COLOR_DOT
A125: 5891 | B125: pointermove | C125: COLOR_BLUE-DOT_1 | D125: 458.3999939 | E125: 623.4000244 | F125: COLOR_DOT
A126: 5909 | B126: pointermove | C126: COLOR_BLUE-DOT_1 | D126: 414.3999939 | E126: 623.4000244 | F126: COLOR_DOT
A127: 5920 | B127: pointermove | C127: COLOR_BLUE-DOT_1 | D127: 393.6000061 | E127: 623.4000244 | F127: COLOR_DOT
A128: 5941 | B128: pointermove | C128: COLOR_BLUE-DOT_1 | D128: 372.8000183 | E128: 625.7999878 | F128: COLOR_DOT
A129: 5958 | B129: pointermove | C129: COLOR_BLUE-DOT_1 | D129: 368 | E129: 627.4000244 | F129: COLOR_DOT
A130: 5966 | B130: pointermove | C130: COLOR_BLUE-DOT_1 | D130: 368 | E130: 626.6000366 | F130: COLOR_DOT
A131: 6110 | B131: pointermove | C131: COLOR_BLUE-DOT_1 | D131: 367.2000122 | E131: 627.4000244 | F131: COLOR_DOT
A132: 6120 | B132: pointermove | C132: COLOR_BLUE-DOT_1 | D132: 365.6000061 | E132: 629 | F132: COLOR_DOT
A133: 6139 | B133: pointermove | C133: COLOR_BLUE-DOT_1 | D133: 358.3999939 | E133: 633 | F133: COLOR_DOT
A134: 6160 | B134: pointermove | C134: COLOR_BLUE-DOT_1 | D134: 348.8000183 | E134: 637.7999878 | F134: COLOR_DOT
A135: 6175 | B135: pointermove | C135: COLOR_BLUE-DOT_1 | D135: 338.3999939 | E135: 641 | F135: COLOR_DOT
A136: 6192 | B136: pointermove | C136: COLOR_BLUE-DOT_1 | D136: 327.2000122 | E136: 641.7999878 | F136: COLOR_DOT
A137: 6209 | B137: pointermove | C137: COLOR_BLUE-DOT_1 | D137: 316 | E137: 644.2000122 | F137: COLOR_DOT
A138: 6220 | B138: pointermove | C138: COLOR_BLUE-DOT_1 | D138: 309.6000061 | E138: 645 | F138: COLOR_DOT
A139: 6240 | B139: pointermove | C139: COLOR_BLUE-DOT_1 | D139: 301.6000061 | E139: 647.4000244 | F139: COLOR_DOT
A140: 6255 | B140: pointermove | C140: COLOR_BLUE-DOT_1 | D140: 296.8000183 | E140: 649.7999878 | F140: COLOR_DOT
A141: 6274 | B141: pointermove | C141: COLOR_BLUE-DOT_1 | D141: 291.2000122 | E141: 653 | F141: COLOR_DOT
A142: 6291 | B142: pointermove | C142: COLOR_BLUE-DOT_1 | D142: 287.2000122 | E142: 656.2000122 | F142: COLOR_DOT
A143: 6309 | B143: pointermove | C143: COLOR_BLUE-DOT_1 | D143: 284 | E143: 657.7999878 | F143: COLOR_DOT
A144: 6319 | B144: pointermove | C144: COLOR_BLUE-DOT_1 | D144: 282.3999939 | E144: 658.6000366 | F144: COLOR_DOT
A145: 6338 | B145: pointermove | C145: COLOR_BLUE-DOT_1 | D145: 280.8000183 | E145: 658.6000366 | F145: COLOR_DOT
A146: 6356 | B146: pointermove | C146: COLOR_BLUE-DOT_1 | D146: 280 | E146: 658.6000366 | F146: COLOR_DOT
A147: 6421 | B147: pointermove | C147: COLOR_BLUE-DOT_1 | D147: 280.8000183 | E147: 659.4000244 | F147: COLOR_DOT
A148: 6505 | B148: pointerup | C148: COLOR_BLUE-DOT_1 | D148: 280.8000183 | E148: 659.4000244 | F148: COLOR_DOT
A149: 7607 | B149: pointerdown | C149: COLOR_BROWN-DOT_2 | D149: 1158.400024 | E149: 157 | F149: COLOR_DOT
A150: 7609 | B150: pointermove | C150: COLOR_BROWN-DOT_2 | D150: 1157.599976 | E150: 157 | F150: COLOR_DOT
A151: 7623 | B151: pointermove | C151: COLOR_BROWN-DOT_2 | D151: 1155.200073 | E151: 157.8000031 | F151: COLOR_DOT
A152: 7639 | B152: pointermove | C152: COLOR_BROWN-DOT_2 | D152: 1145.599976 | E152: 161.8000031 | F152: COLOR_DOT
A153: 7658 | B153: pointermove | C153: COLOR_BROWN-DOT_2 | D153: 1126.400024 | E153: 169.8000031 | F153: COLOR_DOT
A154: 7676 | B154: pointermove | C154: COLOR_BROWN-DOT_2 | D154: 1096.800049 | E154: 184.1999969 | F154: COLOR_DOT
A155: 7693 | B155: pointermove | C155: COLOR_BROWN-DOT_2 | D155: 1060.800049 | E155: 201.8000336 | F155: COLOR_DOT
A156: 7709 | B156: pointermove | C156: COLOR_BROWN-DOT_2 | D156: 1024.800049 | E156: 215.4000092 | F156: COLOR_DOT
A157: 7719 | B157: pointermove | C157: COLOR_BROWN-DOT_2 | D157: 994.4000244 | E157: 228.1999969 | F157: COLOR_DOT
A158: 7739 | B158: pointermove | C158: COLOR_BROWN-DOT_2 | D158: 944 | E158: 249.8000336 | F158: COLOR_DOT
A159: 7758 | B159: pointermove | C159: COLOR_BROWN-DOT_2 | D159: 900 | E159: 263.3999939 | F159: COLOR_DOT
A160: 7774 | B160: pointermove | C160: COLOR_BROWN-DOT_2 | D160: 873.6000366 | E160: 269 | F160: COLOR_DOT
A161: 7793 | B161: pointermove | C161: COLOR_BROWN-DOT_2 | D161: 865.6000366 | E161: 269.8000183 | F161: COLOR_DOT
A162: 7949 | B162: pointermove | C162: COLOR_BROWN-DOT_2 | D162: 864.7999878 | E162: 270.6000061 | F162: COLOR_DOT
A163: 7960 | B163: pointermove | C163: COLOR_BROWN-DOT_2 | D163: 856 | E163: 273.8000183 | F163: COLOR_DOT
A164: 7975 | B164: pointermove | C164: COLOR_BROWN-DOT_2 | D164: 819.2000122 | E164: 288.2000122 | F164: COLOR_DOT
A165: 7993 | B165: pointermove | C165: COLOR_BROWN-DOT_2 | D165: 767.2000122 | E165: 303.3999939 | F165: COLOR_DOT
A166: 8009 | B166: pointermove | C166: COLOR_BROWN-DOT_2 | D166: 708.7999878 | E166: 316.2000122 | F166: COLOR_DOT
A167: 8023 | B167: pointermove | C167: COLOR_BROWN-DOT_2 | D167: 663.2000122 | E167: 324.2000122 | F167: COLOR_DOT
A168: 8038 | B168: pointermove | C168: COLOR_BROWN-DOT_2 | D168: 597.6000366 | E168: 333.8000183 | F168: COLOR_DOT
A169: 8058 | B169: pointermove | C169: COLOR_BROWN-DOT_2 | D169: 560.7999878 | E169: 337.8000183 | F169: COLOR_DOT
A170: 8074 | B170: pointermove | C170: COLOR_BROWN-DOT_2 | D170: 545.6000366 | E170: 339.3999939 | F170: COLOR_DOT
A171: 8082 | B171: pointermove | C171: COLOR_BROWN-DOT_2 | D171: 544 | E171: 340.2000122 | F171: COLOR_DOT
A172: 8248 | B172: pointermove | C172: COLOR_BROWN-DOT_2 | D172: 543.2000122 | E172: 340.2000122 | F172: COLOR_DOT
A173: 8256 | B173: pointermove | C173: COLOR_BROWN-DOT_2 | D173: 541.6000366 | E173: 338.6000061 | F173: COLOR_DOT
A174: 8274 | B174: pointermove | C174: COLOR_BROWN-DOT_2 | D174: 536 | E174: 333.8000183 | F174: COLOR_DOT
A175: 8292 | B175: pointermove | C175: COLOR_BROWN-DOT_2 | D175: 527.2000122 | E175: 321.8000183 | F175: COLOR_DOT
A176: 8309 | B176: pointermove | C176: COLOR_BROWN-DOT_2 | D176: 517.6000366 | E176: 309.8000183 | F176: COLOR_DOT
A177: 8322 | B177: pointermove | C177: COLOR_BROWN-DOT_2 | D177: 512.7999878 | E177: 303.3999939 | F177: COLOR_DOT
A178: 8338 | B178: pointermove | C178: COLOR_BROWN-DOT_2 | D178: 509.6000061 | E178: 299.3999939 | F178: COLOR_DOT
A179: 8356 | B179: pointermove | C179: COLOR_BROWN-DOT_2 | D179: 507.2000122 | E179: 297.8000183 | F179: COLOR_DOT
A180: 8376 | B180: pointermove | C180: COLOR_BROWN-DOT_2 | D180: 503.2000122 | E180: 296.2000122 | F180: COLOR_DOT
A181: 8391 | B181: pointermove | C181: COLOR_BROWN-DOT_2 | D181: 498.3999939 | E181: 293.8000183 | F181: COLOR_DOT
A182: 8409 | B182: pointermove | C182: COLOR_BROWN-DOT_2 | D182: 493.6000061 | E182: 292.2000122 | F182: COLOR_DOT
A183: 8417 | B183: pointermove | C183: COLOR_BROWN-DOT_2 | D183: 491.2000122 | E183: 289.8000183 | F183: COLOR_DOT
A184: 8437 | B184: pointermove | C184: COLOR_BROWN-DOT_2 | D184: 487.2000122 | E184: 287.3999939 | F184: COLOR_DOT
A185: 8458 | B185: pointermove | C185: COLOR_BROWN-DOT_2 | D185: 486.3999939 | E185: 285.8000183 | F185: COLOR_DOT
A186: 8464 | B186: pointermove | C186: COLOR_BROWN-DOT_2 | D186: 484.8000183 | E186: 285.8000183 | F186: COLOR_DOT
A187: 8649 | B187: pointerup | C187: COLOR_BROWN-DOT_2 | D187: 484.8000183 | E187: 285.8000183 | F187: COLOR_DOT
A188: 9708 | B188: pointerdown | C188: COLOR_GREEN-DOT_1 | D188: 1386.400024 | E188: 193.8000336 | F188: COLOR_DOT
A189: 9708 | B189: pointermove | C189: COLOR_GREEN-DOT_1 | D189: 1385.599976 | E189: 193.8000336 | F189: COLOR_DOT
A190: 9724 | B190: pointermove | C190: COLOR_GREEN-DOT_1 | D190: 1380 | E190: 195.4000092 | F190: COLOR_DOT
A191: 9742 | B191: pointermove | C191: COLOR_GREEN-DOT_1 | D191: 1366.400024 | E191: 198.6000061 | F191: COLOR_DOT
A192: 9751 | B192: pointermove | C192: COLOR_GREEN-DOT_1 | D192: 1352 | E192: 202.6000061 | F192: COLOR_DOT
A193: 9771 | B193: pointermove | C193: COLOR_GREEN-DOT_1 | D193: 1323.200073 | E193: 210.6000061 | F193: COLOR_DOT
A194: 9792 | B194: pointermove | C194: COLOR_GREEN-DOT_1 | D194: 1280.800049 | E194: 221.8000336 | F194: COLOR_DOT
A195: 9808 | B195: pointermove | C195: COLOR_GREEN-DOT_1 | D195: 1235.200073 | E195: 233.8000336 | F195: COLOR_DOT
A196: 9824 | B196: pointermove | C196: COLOR_GREEN-DOT_1 | D196: 1196.800049 | E196: 246.6000061 | F196: COLOR_DOT
A197: 9841 | B197: pointermove | C197: COLOR_GREEN-DOT_1 | D197: 1158.400024 | E197: 260.2000122 | F197: COLOR_DOT
A198: 9852 | B198: pointermove | C198: COLOR_GREEN-DOT_1 | D198: 1140 | E198: 268.2000122 | F198: COLOR_DOT
A199: 9872 | B199: pointermove | C199: COLOR_GREEN-DOT_1 | D199: 1127.200073 | E199: 273 | F199: COLOR_DOT
A200: 9888 | B200: pointermove | C200: COLOR_GREEN-DOT_1 | D200: 1126.400024 | E200: 272.2000122 | F200: COLOR_DOT
A201: 10022 | B201: pointermove | C201: COLOR_GREEN-DOT_1 | D201: 1122.400024 | E201: 272.2000122 | F201: COLOR_DOT
... 209 more rows
